FILE,Service Area Categorisation,Service Division Categorisation,Responsible Unit,Unit Code,Expenses Type,Expenses Sub Type,Expense  Code,Detailed Expenses Type,Transaction No,Amount,Invoice Date,Capital/Revenue,Supplier Name
2012 - JUN,Central Services,Corporate Management,Chief Exec's Office                     ,A01001,Supplies & Services           ,Equip Furniture/Materials     ,DA01,Equipment - R & M,1,517,5/31/2012,R,UNIQUE OFFICE SOLUTIONS LTD   
2012 - JUN,Cultural Env Reg&Plan Services,Comm. Safety (Crime Reduction),Crime and Strategy Team                 ,A01100,Third Party Payments          ,Private Contractors           ,EH02,Miscellaneous Hired Services,2,"19,000.00",5/28/2012,R,VICTIM SUPPORT                
2012 - JUN,Adult Social Care,Other Adult Services,Access and Engagement                   ,A01302,Third Party Payments          ,Private Contractors           ,EH02,Miscellaneous Hired Services,3,"9,749.78",6/15/2012,R,ETHNIC MINORITY CENTRE        
2012 - JUN,Adult Social Care,Other Adult Services,Retention in Drug Treatmt Srvs          ,A01303,Third Party Payments          ,Private Contractors           ,EH02,Miscellaneous Hired Services,4,"5,700.00",6/15/2012,R,CIDARIS CONSULTING LIMITED    
2012 - JUN,Adult Social Care,Other Adult Services,Retention in Drug Treatmt Srvs          ,A01303,Third Party Payments          ,Private Contractors           ,EH02,Miscellaneous Hired Services,5,"47,194.00",3/16/2012,R,SW LONDON ST GEORGES NHS TRUST
2012 - JUN,Adult Social Care,Other Adult Services,Retention in Drug Treatmt Srvs          ,A01303,Third Party Payments          ,Private Contractors           ,EH02,Miscellaneous Hired Services,6,"47,194.00",2/24/2012,R,SW LONDON ST GEORGES NHS TRUST
2012 - JUN,Central Services,Fully rechargeable Overheads,STATUTORY MARKETING & COMM          ,A02018,Supplies & Services           ,Services                      ,DF02,Misc Advertising/Publicity,7,831.6,6/2/2012,R,NEWSQUEST (LONDON)LTD         
2012 - JUN,Central Services,Fully rechargeable Overheads,NON-STATUTORY MARKETING & COMM ,A02019,Supplies & Services           ,Services                      ,DF02,Misc Advertising/Publicity,8,537.5,5/22/2012,R,JCDECAUX UNITED KINGDOM       
2012 - JUN,Central Services,Fully rechargeable Overheads,Democratic Services                     ,A02023,Employees                     ,Direct Employee Expenses      ,AA17,Agency Staff & Casual Paymts,9,676.3,6/6/2012,R,REDACTED
2012 - JUN,Central Services,Fully rechargeable Overheads,Democratic Services                     ,A02023,Supplies & Services           ,Expenses                      ,DH78,Outgoing Mayor (April-May),10,834,6/6/2012,R,REDACTED
2012 - JUN,Central Services,Fully rechargeable Overheads,Democratic Services                     ,A02023,Supplies & Services           ,Expenses                      ,DH79,Incoming Mayor (May-March),11,"1,263.47",6/12/2012,R,MAJESTIC WINE WAREHOUSE       
2012 - JUN,Central Services,Fully rechargeable Overheads,Press and Public Relations.             ,A02026,Employees                     ,Direct Employee Expenses      ,AA17,Agency Staff & Casual Paymts,12,"1,300.00",6/1/2012,R,PUBLIC SELECT                 
2012 - JUN,Central Services,Fully rechargeable Overheads,Press and Public Relations.             ,A02026,Employees                     ,Direct Employee Expenses      ,AA17,Agency Staff & Casual Paymts,13,"1,130.00",5/29/2012,R,HAYS RECRUITING EXPERTS       
2012 - JUN,Central Services,Fully rechargeable Overheads,Press and Public Relations.             ,A02026,Employees                     ,Direct Employee Expenses      ,AA17,Agency Staff & Casual Paymts,14,"1,130.00",6/15/2012,R,HAYS RECRUITING EXPERTS       
2012 - JUN,Central Services,Fully rechargeable Overheads,Press and Public Relations.             ,A02026,Employees                     ,Direct Employee Expenses      ,AA17,Agency Staff & Casual Paymts,15,791,6/12/2012,R,HAYS RECRUITING EXPERTS       
2012 - JUN,Central Services,Fully rechargeable Overheads,Press and Public Relations.             ,A02026,Employees                     ,Direct Employee Expenses      ,AA17,Agency Staff & Casual Paymts,16,678,6/12/2012,R,HAYS RECRUITING EXPERTS       
2012 - JUN,Central Services,Fully rechargeable Overheads,Press and Public Relations.             ,A02026,Employees                     ,Indirect Employee Expenses    ,AB02,Recruitment Adverts,17,640,6/21/2012,R,PENNA COMMUNICATIONS (NO 2 A/C
2012 - JUN,Central Services,Fully rechargeable Overheads,Press and Public Relations.             ,A02026,Supplies & Services           ,Prntng Stnry Gen Off Exp      ,DE20,Council Magazine,18,"19,596.00",6/18/2012,R,ENGAGE GROUP LTD              
2012 - JUN,Central Services,Fully rechargeable Overheads,Press and Public Relations.             ,A02026,Supplies & Services           ,Services                      ,DF35,Graphic Design,19,"1,260.00",5/31/2012,R,THE BIG IDEA (MARK BUCKINGHAM)
2012 - JUN,Central Services,Fully rechargeable Overheads,Press and Public Relations.             ,A02026,Supplies & Services           ,Services                      ,DF35,Graphic Design,20,"4,080.00",6/1/2012,R,PANACEA SOFTWARE LTD          
2012 - JUN,Central Services,Fully rechargeable Overheads,Press and Public Relations.             ,A02026,Supplies & Services           ,Services                      ,DF35,Graphic Design,21,"1,500.00",6/1/2012,R,PANACEA SOFTWARE LTD          
2012 - JUN,Central Services,Fully rechargeable Overheads,Press and Public Relations.             ,A02026,Supplies & Services           ,Services                      ,DF35,Graphic Design,22,"2,430.00",6/21/2012,R,THE BIG IDEA (MARK BUCKINGHAM)
2012 - JUN,Central Services,Fully rechargeable Overheads,Press and Public Relations.             ,A02026,Supplies & Services           ,Grants and Subscriptions      ,DJ04,Subscriptions,23,600,5/31/2012,R,FLAME LIMITED                 
2012 - JUN,Cultural Env Reg&Plan Services,Culture & Heritage,Mitcham Carnival                        ,A02030,Supplies & Services           ,Services                      ,DF04,Miscellaneous Expenses,24,620,5/28/2012,R,REDACTED
2012 - JUN,Cultural Env Reg&Plan Services,Culture & Heritage,Mitcham Carnival                        ,A02030,Supplies & Services           ,Services                      ,DF04,Miscellaneous Expenses,25,"2,500.00",6/6/2012,R,RADIANCE PRODUCTION           
2012 - JUN,Cultural Env Reg&Plan Services,Culture & Heritage,Mitcham Carnival                        ,A02030,Supplies & Services           ,Services                      ,DF09,Miscellaneous Fees,26,"2,115.00",5/31/2012,R,KNIGHTS OF THE DAMNED         
2012 - JUN,Cultural Env Reg&Plan Services,Culture & Heritage,Mitcham Carnival                        ,A02030,Supplies & Services           ,Services                      ,DF09,Miscellaneous Fees,27,775,6/11/2012,R,EVE TRAKWAY LIMITED           
2012 - JUN,CS -Oth Operating Inc & Expend,Trading A/c Surpluses/Deficits,Prtng Jobs - Ext Agncy                  ,A03041,Supplies & Services           ,Prntng Stnry Gen Off Exp      ,DE01,External Printing,28,527,5/30/2012,R,COMMERCIAL COLOUR PRESS       
2012 - JUN,CS -Oth Operating Inc & Expend,Trading A/c Surpluses/Deficits,Translation Services                    ,A04060,Supplies & Services           ,Services                      ,DF45,Payment of Sessional workers,29,825,4/30/2012,R,COSMIC EUROPE LIMTED          
2012 - JUN,CS -Oth Operating Inc & Expend,Trading A/c Surpluses/Deficits,Translation Services                    ,A04060,Supplies & Services           ,Services                      ,DF45,Payment of Sessional workers,30,639,6/18/2012,R,REDACTED
2012 - JUN,Central Services,Fully rechargeable Overheads,Merton Link                             ,A04070,Premises Related Expenditure  ,Cleaning and Domestic Supplies,BH03,Cleaning Services,31,"1,416.73",5/27/2012,R,DYNAMIQ CLEANING LIMITED      
2012 - JUN,Central Services,Fully rechargeable Overheads,Merton Link                             ,A04070,Supplies & Services           ,Equip Furniture/Materials     ,DA01,Equipment - R & M,32,581.35,4/1/2012,R,ADT FIRE & SECURITY PLC       
2012 - JUN,Central Services,Fully rechargeable Overheads,Merton Link                             ,A04070,Supplies & Services           ,Comms and Computing           ,DG15,Network Maintenance,33,809.95,6/1/2012,R,NORTHGATE INFORMATION SOLUTION
2012 - JUN,Central Services,Fully rechargeable Overheads,Local Strategic Partnership             ,A04080,Supplies & Services           ,Grants and Subscriptions      ,DJ01,Grants,34,"9,304.00",5/24/2012,R,MERTON VOLUNTARY SERV COUNCIL 
2012 - JUN,Central Services,Democ' Representation & Mgt,PERFORMANCE REWARD GRANT            ,A04081,Supplies & Services           ,Grants and Subscriptions      ,DJ01,Grants,35,"46,724.00",6/29/2012,R,GRENFELL HOUSING & TRAINING   
2012 - JUN,Central Services,Gen Grants Bequest & Donations,VOLUNTARY SECTOR COORDINATION   ,A04082,Supplies & Services           ,Grants and Subscriptions      ,DJ01,Grants,36,"6,666.00",6/28/2012,R,COMMONSIDE COMMUNITY DEV TRUST
2012 - JUN,Central Services,Gen Grants Bequest & Donations,VOLUNTARY SECTOR COORDINATION   ,A04082,Supplies & Services           ,Grants and Subscriptions      ,DJ01,Grants,37,"42,183.00",6/28/2012,R,MERTON VOLUNTARY SERV COUNCIL 
2012 - JUN,Central Services,Gen Grants Bequest & Donations,VOLUNTARY SECTOR COORDINATION   ,A04082,Supplies & Services           ,Grants and Subscriptions      ,DJ01,Grants,38,"10,000.00",6/27/2012,R,MERTON COMMUNITY TRANSPORT    
2012 - JUN,Central Services,Gen Grants Bequest & Donations,VOLUNTARY SECTOR COORDINATION   ,A04082,Supplies & Services           ,Grants and Subscriptions      ,DJ01,Grants,39,"27,000.00",6/27/2012,R,SW LONDON LAW CENTRES         
2012 - JUN,Central Services,Gen Grants Bequest & Donations,VOLUNTARY SECTOR COORDINATION   ,A04082,Supplies & Services           ,Grants and Subscriptions      ,DJ01,Grants,40,"11,126.00",6/28/2012,R,MERTON VOLUNTARY SERV COUNCIL 
2012 - JUN,Central Services,Gen Grants Bequest & Donations,VOLUNTARY SECTOR COORDINATION   ,A04082,Supplies & Services           ,Grants and Subscriptions      ,DJ01,Grants,41,"31,666.00",6/28/2012,R,SPRINGFIELD LAW CENTRE LTD
2012 - JUN,Central Services,Gen Grants Bequest & Donations,VOLUNTARY SECTOR COORDINATION   ,A04082,Supplies & Services           ,Grants and Subscriptions      ,DJ01,Grants,42,"24,915.00",6/29/2012,R,VOLUNTEER CENTRE MERTON       
2012 - JUN,Central Services,Gen Grants Bequest & Donations,VOLUNTARY SECTOR COORDINATION   ,A04082,Supplies & Services           ,Grants and Subscriptions      ,DJ04,Subscriptions,43,"76,712.75",6/11/2012,R,LONDON COUNCILS               
2012 - JUN,Central Services,Emergency Planning (CS),Emergency Planning                      ,B06138,Supplies & Services           ,Comms and Computing           ,DG14,Telephones - Mobile,44,642.28,6/18/2012,R,T MOBILE (UK)                 
2012 - JUN,Central Services,Registr'n Birth/Death/Marriage,Reg of B. Deaths & Ms                   ,B06143,Employees                     ,Direct Employee Expenses      ,AA04,Shared Services Salaries,45,"6,532.55",5/14/2012,R,LONDON BOROUGH OF SUTTON      
2012 - JUN,Central Services,Fully rechargeable Overheads,Learning and Development                ,B06146,Employees                     ,Indirect Employee Expenses    ,AB56,Internal Training Costs,46,750,3/31/2012,R,TAYLOR CONSULTING LIMITED     
2012 - JUN,Central Services,Fully rechargeable Overheads,Learning and Development                ,B06146,Employees                     ,Indirect Employee Expenses    ,AB57,External Training Costs,47,850,5/30/2012,R,SOUTH EAST EMPLOYERS          
2012 - JUN,Central Services,Fully rechargeable Overheads,Learning and Development                ,B06146,Employees                     ,Indirect Employee Expenses    ,AB57,External Training Costs,48,"6,470.00",5/31/2012,R,THE HAY GROUP                 
2012 - JUN,Central Services,Fully rechargeable Overheads,Learning and Development                ,B06146,Employees                     ,Indirect Employee Expenses    ,AB57,External Training Costs,49,"2,200.00",3/30/2012,R,REDACTED
2012 - JUN,Central Services,Fully rechargeable Overheads,Learning and Development                ,B06146,Employees                     ,Indirect Employee Expenses    ,AB57,External Training Costs,50,"2,411.00",4/27/2012,R,PERSONAL STRENGTHS (UK) LTD   
2012 - JUN,CS -Oth Operating Inc & Expend,Trading A/c Surpluses/Deficits,CHAS Scheme                             ,B06150,Supplies & Services           ,Services                      ,DF88,Assessor Fees,51,665,5/20/2012,R,REDACTED
2012 - JUN,CS -Oth Operating Inc & Expend,Trading A/c Surpluses/Deficits,CHAS Scheme                             ,B06150,Supplies & Services           ,Services                      ,DF88,Assessor Fees,52,"1,525.00",5/21/2012,R,REDACTED
2012 - JUN,CS -Oth Operating Inc & Expend,Trading A/c Surpluses/Deficits,CHAS Scheme                             ,B06150,Supplies & Services           ,Services                      ,DF88,Assessor Fees,53,710,5/28/2012,R,REDACTED
2012 - JUN,CS -Oth Operating Inc & Expend,Trading A/c Surpluses/Deficits,CHAS Scheme                             ,B06150,Supplies & Services           ,Services                      ,DF88,Assessor Fees,54,735,5/15/2012,R,MCG HEALTH & SAFETY LTD       
2012 - JUN,CS -Oth Operating Inc & Expend,Trading A/c Surpluses/Deficits,CHAS Scheme                             ,B06150,Supplies & Services           ,Services                      ,DF88,Assessor Fees,55,"1,655.00",5/25/2012,R,REDACTED
2012 - JUN,CS -Oth Operating Inc & Expend,Trading A/c Surpluses/Deficits,CHAS Scheme                             ,B06150,Supplies & Services           ,Services                      ,DF88,Assessor Fees,56,"2,125.00",5/25/2012,R,ALIMOR SAFETY LTD             
2012 - JUN,CS -Oth Operating Inc & Expend,Trading A/c Surpluses/Deficits,CHAS Scheme                             ,B06150,Supplies & Services           ,Services                      ,DF88,Assessor Fees,57,"1,080.00",3/31/2012,R,ARC ASSOCIATES (UK)           
2012 - JUN,CS -Oth Operating Inc & Expend,Trading A/c Surpluses/Deficits,CHAS Scheme                             ,B06150,Supplies & Services           ,Services                      ,DF88,Assessor Fees,58,500,5/29/2012,R,REDACTED
2012 - JUN,CS -Oth Operating Inc & Expend,Trading A/c Surpluses/Deficits,CHAS Scheme                             ,B06150,Supplies & Services           ,Services                      ,DF88,Assessor Fees,59,715,5/29/2012,R,REDACTED
2012 - JUN,CS -Oth Operating Inc & Expend,Trading A/c Surpluses/Deficits,CHAS Scheme                             ,B06150,Supplies & Services           ,Services                      ,DF88,Assessor Fees,60,500,5/31/2012,R,REDACTED
2012 - JUN,CS -Oth Operating Inc & Expend,Trading A/c Surpluses/Deficits,CHAS Scheme                             ,B06150,Supplies & Services           ,Services                      ,DF88,Assessor Fees,61,"1,620.00",5/30/2012,R,REDACTED
2012 - JUN,CS -Oth Operating Inc & Expend,Trading A/c Surpluses/Deficits,CHAS Scheme                             ,B06150,Supplies & Services           ,Services                      ,DF88,Assessor Fees,62,886.5,5/31/2012,R,REDACTED
2012 - JUN,CS -Oth Operating Inc & Expend,Trading A/c Surpluses/Deficits,CHAS Scheme                             ,B06150,Supplies & Services           ,Services                      ,DF88,Assessor Fees,63,"1,045.00",5/31/2012,R,REDACTED
2012 - JUN,CS -Oth Operating Inc & Expend,Trading A/c Surpluses/Deficits,CHAS Scheme                             ,B06150,Supplies & Services           ,Services                      ,DF88,Assessor Fees,64,"1,910.00",6/1/2012,R,REDACTED
2012 - JUN,CS -Oth Operating Inc & Expend,Trading A/c Surpluses/Deficits,CHAS Scheme                             ,B06150,Supplies & Services           ,Services                      ,DF88,Assessor Fees,65,625,5/31/2012,R,REDACTED
2012 - JUN,CS -Oth Operating Inc & Expend,Trading A/c Surpluses/Deficits,CHAS Scheme                             ,B06150,Supplies & Services           ,Services                      ,DF88,Assessor Fees,66,"1,185.00",5/31/2012,R,REDACTED
2012 - JUN,CS -Oth Operating Inc & Expend,Trading A/c Surpluses/Deficits,CHAS Scheme                             ,B06150,Supplies & Services           ,Services                      ,DF88,Assessor Fees,67,"2,190.00",6/1/2012,R,MGW SAFETY SERVICES           
2012 - JUN,CS -Oth Operating Inc & Expend,Trading A/c Surpluses/Deficits,CHAS Scheme                             ,B06150,Supplies & Services           ,Services                      ,DF88,Assessor Fees,68,675,6/1/2012,R,REDACTED
2012 - JUN,CS -Oth Operating Inc & Expend,Trading A/c Surpluses/Deficits,CHAS Scheme                             ,B06150,Supplies & Services           ,Services                      ,DF88,Assessor Fees,69,"1,891.55",5/31/2012,R,REDACTED
2012 - JUN,CS -Oth Operating Inc & Expend,Trading A/c Surpluses/Deficits,CHAS Scheme                             ,B06150,Supplies & Services           ,Services                      ,DF88,Assessor Fees,70,"2,900.00",5/31/2012,R,SOUTH EAST HEALTH & SAFETY LTD
2012 - JUN,CS -Oth Operating Inc & Expend,Trading A/c Surpluses/Deficits,CHAS Scheme                             ,B06150,Supplies & Services           ,Services                      ,DF88,Assessor Fees,71,"1,103.80",5/31/2012,R,REDACTED
2012 - JUN,CS -Oth Operating Inc & Expend,Trading A/c Surpluses/Deficits,CHAS Scheme                             ,B06150,Supplies & Services           ,Services                      ,DF88,Assessor Fees,72,"2,145.00",5/25/2012,R,REDACTED
2012 - JUN,CS -Oth Operating Inc & Expend,Trading A/c Surpluses/Deficits,CHAS Scheme                             ,B06150,Supplies & Services           ,Services                      ,DF88,Assessor Fees,73,"1,175.00",5/31/2012,R,REDACTED
2012 - JUN,CS -Oth Operating Inc & Expend,Trading A/c Surpluses/Deficits,CHAS Scheme                             ,B06150,Supplies & Services           ,Services                      ,DF88,Assessor Fees,74,670,6/4/2012,R,REDACTED
2012 - JUN,CS -Oth Operating Inc & Expend,Trading A/c Surpluses/Deficits,CHAS Scheme                             ,B06150,Supplies & Services           ,Services                      ,DF88,Assessor Fees,75,"2,660.00",11/30/2011,R,ARC ASSOCIATES (UK)           
2012 - JUN,CS -Oth Operating Inc & Expend,Trading A/c Surpluses/Deficits,CHAS Scheme                             ,B06150,Supplies & Services           ,Services                      ,DF88,Assessor Fees,76,590,5/31/2012,R,REDACTED
2012 - JUN,CS -Oth Operating Inc & Expend,Trading A/c Surpluses/Deficits,CHAS Scheme                             ,B06150,Supplies & Services           ,Services                      ,DF88,Assessor Fees,77,585,6/1/2012,R,REDACTED
2012 - JUN,CS -Oth Operating Inc & Expend,Trading A/c Surpluses/Deficits,CHAS Scheme                             ,B06150,Supplies & Services           ,Services                      ,DF88,Assessor Fees,78,510,5/31/2012,R,REDACTED
2012 - JUN,CS -Oth Operating Inc & Expend,Trading A/c Surpluses/Deficits,CHAS Scheme                             ,B06150,Supplies & Services           ,Services                      ,DF88,Assessor Fees,79,895,6/1/2012,R,REDACTED
2012 - JUN,CS -Oth Operating Inc & Expend,Trading A/c Surpluses/Deficits,CHAS Scheme                             ,B06150,Supplies & Services           ,Services                      ,DF88,Assessor Fees,80,630,5/31/2012,R,REDACTED
2012 - JUN,CS -Oth Operating Inc & Expend,Trading A/c Surpluses/Deficits,CHAS Scheme                             ,B06150,Supplies & Services           ,Services                      ,DF88,Assessor Fees,81,"2,070.00",5/31/2012,R,REDACTED
2012 - JUN,CS -Oth Operating Inc & Expend,Trading A/c Surpluses/Deficits,CHAS Scheme                             ,B06150,Supplies & Services           ,Services                      ,DF88,Assessor Fees,82,"1,005.00",5/29/2012,R,REDACTED
2012 - JUN,CS -Oth Operating Inc & Expend,Trading A/c Surpluses/Deficits,CHAS Scheme                             ,B06150,Supplies & Services           ,Services                      ,DF88,Assessor Fees,83,"1,510.00",6/10/2012,R,REDACTED
2012 - JUN,CS -Oth Operating Inc & Expend,Trading A/c Surpluses/Deficits,CHAS Scheme                             ,B06150,Supplies & Services           ,Services                      ,DF88,Assessor Fees,84,715,6/8/2012,R,REDACTED
2012 - JUN,CS -Oth Operating Inc & Expend,Trading A/c Surpluses/Deficits,CHAS Scheme                             ,B06150,Supplies & Services           ,Services                      ,DF88,Assessor Fees,85,925,6/1/2012,R,REDACTED
2012 - JUN,CS -Oth Operating Inc & Expend,Trading A/c Surpluses/Deficits,CHAS Scheme                             ,B06150,Supplies & Services           ,Services                      ,DF88,Assessor Fees,86,505,5/31/2012,R,REDACTED
2012 - JUN,CS -Oth Operating Inc & Expend,Trading A/c Surpluses/Deficits,CHAS Scheme                             ,B06150,Supplies & Services           ,Services                      ,DF88,Assessor Fees,87,"1,385.00",6/10/2012,R,REDACTED
2012 - JUN,CS -Oth Operating Inc & Expend,Trading A/c Surpluses/Deficits,CHAS Scheme                             ,B06150,Supplies & Services           ,Services                      ,DF88,Assessor Fees,88,"2,655.00",5/18/2012,R,HOLLYGLADE LTD T/A BEACONRISK 
2012 - JUN,CS -Oth Operating Inc & Expend,Trading A/c Surpluses/Deficits,CHAS Scheme                             ,B06150,Supplies & Services           ,Services                      ,DF88,Assessor Fees,89,550,6/12/2012,R,REDACTED
2012 - JUN,CS -Oth Operating Inc & Expend,Trading A/c Surpluses/Deficits,CHAS Scheme                             ,B06150,Supplies & Services           ,Services                      ,DF88,Assessor Fees,90,"1,540.00",6/12/2012,R,REDACTED
2012 - JUN,CS -Oth Operating Inc & Expend,Trading A/c Surpluses/Deficits,CHAS Scheme                             ,B06150,Supplies & Services           ,Services                      ,DF88,Assessor Fees,91,"1,130.00",6/18/2012,R,REDACTED
2012 - JUN,CS -Oth Operating Inc & Expend,Trading A/c Surpluses/Deficits,CHAS Scheme                             ,B06150,Supplies & Services           ,Services                      ,DF88,Assessor Fees,92,"3,400.00",5/31/2012,R,STALLARD KANE ASSOCIATES LTD  
2012 - JUN,CS -Oth Operating Inc & Expend,Trading A/c Surpluses/Deficits,CHAS Scheme                             ,B06150,Supplies & Services           ,Services                      ,DF88,Assessor Fees,93,"4,860.00",6/1/2012,R,ARC ASSOCIATES (UK)           
2012 - JUN,CS -Oth Operating Inc & Expend,Trading A/c Surpluses/Deficits,CHAS Scheme                             ,B06150,Supplies & Services           ,Services                      ,DF88,Assessor Fees,94,"1,610.00",6/6/2012,R,REDACTED
2012 - JUN,CS -Oth Operating Inc & Expend,Trading A/c Surpluses/Deficits,CHAS Scheme                             ,B06150,Supplies & Services           ,Services                      ,DF88,Assessor Fees,95,626.55,6/1/2012,R,REDACTED
2012 - JUN,CS -Oth Operating Inc & Expend,Trading A/c Surpluses/Deficits,CHAS Scheme                             ,B06150,Supplies & Services           ,Services                      ,DF88,Assessor Fees,96,595,6/6/2012,R,REDACTED
2012 - JUN,CS -Oth Operating Inc & Expend,Trading A/c Surpluses/Deficits,CHAS Scheme                             ,B06150,Supplies & Services           ,Services                      ,DF88,Assessor Fees,97,925,6/3/2012,R,REDACTED
2012 - JUN,CS -Oth Operating Inc & Expend,Trading A/c Surpluses/Deficits,CHAS Scheme                             ,B06150,Supplies & Services           ,Services                      ,DF88,Assessor Fees,98,"2,395.30",6/9/2012,R,REDACTED
2012 - JUN,CS -Oth Operating Inc & Expend,Trading A/c Surpluses/Deficits,CHAS Scheme                             ,B06150,Supplies & Services           ,Services                      ,DF88,Assessor Fees,99,"2,150.00",6/6/2012,R,REDACTED
2012 - JUN,CS -Oth Operating Inc & Expend,Trading A/c Surpluses/Deficits,CHAS Scheme                             ,B06150,Supplies & Services           ,Services                      ,DF88,Assessor Fees,100,"2,465.00",6/5/2012,R,REDACTED
2012 - JUN,CS -Oth Operating Inc & Expend,Trading A/c Surpluses/Deficits,CHAS Scheme                             ,B06150,Supplies & Services           ,Services                      ,DF88,Assessor Fees,101,710,5/31/2012,R,REDACTED
2012 - JUN,CS -Oth Operating Inc & Expend,Trading A/c Surpluses/Deficits,CHAS Scheme                             ,B06150,Supplies & Services           ,Services                      ,DF88,Assessor Fees,102,845,5/31/2012,R,REDACTED
2012 - JUN,CS -Oth Operating Inc & Expend,Trading A/c Surpluses/Deficits,CHAS Scheme                             ,B06150,Supplies & Services           ,Services                      ,DF88,Assessor Fees,103,"2,185.00",6/14/2012,R,REDACTED
2012 - JUN,CS -Oth Operating Inc & Expend,Trading A/c Surpluses/Deficits,CHAS Scheme                             ,B06150,Supplies & Services           ,Services                      ,DF88,Assessor Fees,104,"1,715.00",5/28/2012,R,WOODS CONSULTANCY SERVICES LTD
2012 - JUN,CS -Oth Operating Inc & Expend,Trading A/c Surpluses/Deficits,CHAS Scheme                             ,B06150,Supplies & Services           ,Services                      ,DF88,Assessor Fees,105,660,6/2/2012,R,REDACTED
2012 - JUN,CS -Oth Operating Inc & Expend,Trading A/c Surpluses/Deficits,CHAS Scheme                             ,B06150,Supplies & Services           ,Services                      ,DF88,Assessor Fees,106,800,6/6/2012,R,REDACTED
2012 - JUN,CS -Oth Operating Inc & Expend,Trading A/c Surpluses/Deficits,CHAS Scheme                             ,B06150,Supplies & Services           ,Services                      ,DF88,Assessor Fees,107,"3,207.62",4/13/2012,R,REDACTED
2012 - JUN,CS -Oth Operating Inc & Expend,Trading A/c Surpluses/Deficits,CHAS Scheme                             ,B06150,Supplies & Services           ,Grants and Subscriptions      ,DJ04,Subscriptions,108,"6,000.00",5/30/2012,R,NHBC SERVICES                 
2012 - JUN,CS -Oth Operating Inc & Expend,Trading A/c Surpluses/Deficits,CHAS Scheme                             ,B06150,Supplies & Services           ,Grants and Subscriptions      ,DJ04,Subscriptions,109,757,6/6/2012,R,NHBC SERVICES                 
2012 - JUN,,,Disabled Facilities Grant DCLG          ,CE004RA,Other Capital Expenditure,,E1,Grants,110,"6,861.00",6/11/2012,C,DAKIN CONSTRUCTION LTD        
2012 - JUN,,,Disabled Facilities Grant DCLG          ,CE004RA,Other Capital Expenditure,,E1,Grants,111,"1,012.75",6/11/2012,C,CBS ADAPTATION                
2012 - JUN,,,Disabled Facilities Grant DCLG          ,CE004RA,Other Capital Expenditure,,E1,Grants,112,570.86,6/13/2012,C,ABLE 2 OCCUP.THERAPY SERV.LTD 
2012 - JUN,,,Disabled Facilities Grant DCLG          ,CE004RA,Other Capital Expenditure,,E1,Grants,113,"4,735.00",6/13/2012,C,ASCENDIT LIFTS LTD            
2012 - JUN,,,Disabled Facilities Grant DCLG          ,CE004RA,Other Capital Expenditure,,E1,Grants,114,"2,708.13",6/13/2012,C,ATRIUM DESIGN & INSTALLATION  
2012 - JUN,,,Disabled Facilities Grant DCLG          ,CE004RA,Other Capital Expenditure,,E1,Grants,115,"5,989.00",6/13/2012,C,THE LIFECARE CENTRE           
2012 - JUN,,,Disabled Facilities Grant DCLG          ,CE004RA,Other Capital Expenditure,,E1,Grants,116,750,6/13/2012,C,HARDING DESIGN LIMITED        
2012 - JUN,,,Disabled Facilities Grant DCLG          ,CE004RA,Other Capital Expenditure,,E1,Grants,117,"1,440.00",6/13/2012,C,TUFFIN FERRABY TAYLOR CONSULT.
2012 - JUN,,,Disabled Facilities Grant DCLG          ,CE004RA,Other Capital Expenditure,,E1,Grants,118,"4,854.00",6/20/2012,C,DAKIN CONSTRUCTION LTD        
2012 - JUN,,,Disabled Facilities Grant DCLG          ,CE004RA,Other Capital Expenditure,,E1,Grants,119,"13,204.95",6/20/2012,C,REDACTED
2012 - JUN,,,Disabled Facilities Grant DCLG          ,CE004RA,Other Capital Expenditure,,E1,Grants,120,"9,462.70",6/21/2012,C,ATRIUM DESIGN & INSTALLATION  
2012 - JUN,,,Disabled Facilities Grant DCLG          ,CE004RA,Other Capital Expenditure,,E1,Grants,121,"1,682.66",6/20/2012,C,CBS ADAPTATION                
2012 - JUN,,,DFG - Ex-Service Personnel              ,CE004RC,Other Capital Expenditure,,E1,Grants,122,"1,473.72",6/28/2012,C,CBS ADAPTATION                
2012 - JUN,,,Small Repairs Grant                     ,CE005RA,Other Capital Expenditure,,E1,Grants,123,"4,000.00",6/11/2012,C,HUNTER ROOFING                
2012 - JUN,,,Groundwork Trust                        ,CE011SA,Acquisition of Land and Existing Buildings,,A4,Other Acquisition Costs,124,"47,000.00",2/6/2012,C,GROUNDWORK LONDON LTD.        
2012 - JUN,,,Parks Investment                        ,CE013SA,New Construction Conversion and Renovation,,B4,Site Works - Contractor,125,"1,250.00",5/14/2012,C,REDACTED
2012 - JUN,,,Parks Investment                        ,CE013SA,New Construction Conversion and Renovation,,B4,Site Works - Contractor,126,"30,468.97",4/16/2012,C,SOUTHERN LANDSCAPE & CONST LTD
2012 - JUN,,,Parks Investment                        ,CE013SA,New Construction Conversion and Renovation,,B4,Site Works - Contractor,127,"1,995.00",6/14/2012,C,JUST METAL UK LTD             
2012 - JUN,,,Parks Investment                        ,CE013SA,New Construction Conversion and Renovation,,B4,Site Works - Contractor,128,"2,125.00",6/14/2012,C,JUST METAL UK LTD             
2012 - JUN,,,Parks Investment                        ,CE013SA,New Construction Conversion and Renovation,,B4,Site Works - Contractor,129,530,6/14/2012,C,JUST METAL UK LTD             
2012 - JUN,,,Parks Investment                        ,CE013SA,New Construction Conversion and Renovation,,B4,Site Works - Contractor,130,"2,937.00",6/19/2012,C,TAYLOR BUILDING COMPANY LTD   
2012 - JUN,,,Parks Investment                        ,CE013SA,New Construction Conversion and Renovation,,B4,Site Works - Contractor,131,597,6/20/2012,C,TAYLOR BUILDING COMPANY LTD   
2012 - JUN,,,Borough Roads Maintenance               ,CE026FA,New Construction Conversion and Renovation,,B4,Site Works - Contractor,132,"51,812.36",6/1/2012,C,FM CONWAY LTD                 
2012 - JUN,,,Borough Roads Maintenance               ,CE026FA,New Construction Conversion and Renovation,,B4,Site Works - Contractor,133,"37,383.15",6/1/2012,C,FM CONWAY LTD                 
2012 - JUN,,,Borough Roads Maintenance               ,CE026FA,New Construction Conversion and Renovation,,B4,Site Works - Contractor,134,"34,568.66",6/1/2012,C,FM CONWAY LTD                 
2012 - JUN,,,Borough Roads Maintenance               ,CE026FA,New Construction Conversion and Renovation,,B4,Site Works - Contractor,135,"9,426.12",6/14/2012,C,FM CONWAY LTD                 
2012 - JUN,,,Borough Roads Maintenance               ,CE026FA,New Construction Conversion and Renovation,,B4,Site Works - Contractor,136,"10,108.87",6/27/2012,C,FM CONWAY LTD                 
2012 - JUN,,,Maintain AntiSkid and Coloured          ,CE027FA,New Construction Conversion and Renovation,,B4,Site Works - Contractor,137,"9,500.00",6/14/2012,C,FM CONWAY LTD                 
2012 - JUN,,,Maintain AntiSkid and Coloured          ,CE027FA,New Construction Conversion and Renovation,,B4,Site Works - Contractor,138,"12,000.00",6/14/2012,C,FM CONWAY LTD                 
2012 - JUN,,,Maintain AntiSkid and Coloured          ,CE027FA,New Construction Conversion and Renovation,,B4,Site Works - Contractor,139,"11,207.40",6/14/2012,C,FM CONWAY LTD                 
2012 - JUN,,,Maintain AntiSkid and Coloured          ,CE027FA,New Construction Conversion and Renovation,,B4,Site Works - Contractor,140,"11,700.67",6/14/2012,C,FM CONWAY LTD                 
2012 - JUN,,,Maintain AntiSkid and Coloured          ,CE027FA,New Construction Conversion and Renovation,,B4,Site Works - Contractor,141,"6,373.25",6/27/2012,C,FM CONWAY LTD                 
2012 - JUN,,,Repairs to Footways                     ,CE029FA,New Construction Conversion and Renovation,,B4,Site Works - Contractor,142,"12,000.00",5/30/2012,C,FM CONWAY LTD                 
2012 - JUN,,,Repairs to Footways                     ,CE029FA,New Construction Conversion and Renovation,,B4,Site Works - Contractor,143,"6,380.62",5/30/2012,C,FM CONWAY LTD                 
2012 - JUN,,,Repairs to Footways                     ,CE029FA,New Construction Conversion and Renovation,,B4,Site Works - Contractor,144,509.24,5/25/2012,C,MAY GURNEY LTD T/A CARTLEDGE  
2012 - JUN,,,Repairs to Footways                     ,CE029FA,New Construction Conversion and Renovation,,B4,Site Works - Contractor,145,"30,000.00",6/27/2012,C,FM CONWAY LTD                 
2012 - JUN,,,Repairs to Footways                     ,CE029FA,New Construction Conversion and Renovation,,B4,Site Works - Contractor,146,"20,000.00",6/27/2012,C,FM CONWAY LTD                 
2012 - JUN,,,Repairs to Footways                     ,CE029FA,New Construction Conversion and Renovation,,B4,Site Works - Contractor,147,"16,000.00",6/27/2012,C,FM CONWAY LTD                 
2012 - JUN,,,Repairs to Footways                     ,CE029FA,New Construction Conversion and Renovation,,B4,Site Works - Contractor,148,"20,000.00",6/27/2012,C,FM CONWAY LTD                 
2012 - JUN,,,Repairs to Footways                     ,CE029FA,New Construction Conversion and Renovation,,B6,Site Works - Other Costs,149,644,6/12/2012,C,UK POWER NETWORKS (OPERATIONS)
2012 - JUN,,,Leisure Centre Plant & Machine          ,CE038MA,New Construction Conversion and Renovation,,B2,Design and Supervision - Site Surveys,150,"1,125.00",4/30/2012,C,ASHDOWN SITE INVESTIGATION    
2012 - JUN,,,Leisure Centre Plant & Machine          ,CE038MA,New Construction Conversion and Renovation,,B4,Site Works - Contractor,151,585,6/12/2012,C,LIFESTYLE WINDOW SYSTEMS      
2012 - JUN,,,B545 Public Art WTC                     ,CE043FA,New Construction Conversion and Renovation,,B5,Site Works - Suppliers,152,"3,562.50",3/30/2012,C,BENSON-SEDGWICK ENGINEERING LT
2012 - JUN,,,Morden Park changing rooms              ,CE045AB,New Construction Conversion and Renovation,,B4,Site Works - Contractor,153,"30,000.00",5/31/2012,C,KOMPAN LTD                    
2012 - JUN,,,CPZ - Parking Management                ,CE046EA,New Construction Conversion and Renovation,,B4,Site Works - Contractor,154,"4,428.54",6/1/2012,C,FM CONWAY LTD                 
2012 - JUN,,,CPZ - Parking Management                ,CE046EA,New Construction Conversion and Renovation,,B4,Site Works - Contractor,155,"5,450.00",6/1/2012,C,FM CONWAY LTD                 
2012 - JUN,,,CPZ - Parking Management                ,CE046EA,New Construction Conversion and Renovation,,B4,Site Works - Contractor,156,"1,246.78",6/1/2012,C,FM CONWAY LTD                 
2012 - JUN,,,Street scene enhancements               ,CE066FE,New Construction Conversion and Renovation,,B3,Design and Supervision - Other Expenses,157,"2,480.00",4/19/2012,C,NETWORK RAIL INFRASTRUCTURE LT
2012 - JUN,,,Street scene enhancements               ,CE066FE,New Construction Conversion and Renovation,,B6,Site Works - Other Costs,158,"2,105.87",4/23/2012,C,JEWSON                        
2012 - JUN,,,B574 Town Centre transport imp          ,CE085FJ,New Construction Conversion and Renovation,,B4,Site Works - Contractor,159,988,6/8/2012,C,THAMES WATER DEVELOPER SERVICE
2012 - JUN,,,B574 Town Centre transport imp          ,CE085FJ,New Construction Conversion and Renovation,,B4,Site Works - Contractor,160,656.56,6/8/2012,C,THAMES WATER DEVELOPER SERVICE
2012 - JUN,,,Alley Gating Scheme - Fly Tip           ,CE087FA,Other Capital Expenditure,,E1,Grants,161,857.66,6/6/2012,C,SALCOMBE GATES COMMITTEE      
2012 - JUN,,,B453 Haydons Road                       ,CE098FA,New Construction Conversion and Renovation,,B4,Site Works - Contractor,162,"11,000.00",4/16/2012,C,SOUTHERN LANDSCAPE & CONST LTD
2012 - JUN,,,Strategic corridor Mitcham              ,CE104FB,New Construction Conversion and Renovation,,B4,Site Works - Contractor,163,"2,384.34",6/27/2012,C,FM CONWAY LTD                 
2012 - JUN,,,Accesibility Programme                  ,CE104FD,New Construction Conversion and Renovation,,B2,Design and Supervision - Site Surveys,164,"1,250.00",6/14/2012,C,TRAFFICWATCH (UK) LTD.        
2012 - JUN,,,Accesibility Programme                  ,CE104FD,New Construction Conversion and Renovation,,B4,Site Works - Contractor,165,"2,500.00",5/25/2012,C,MAY GURNEY LTD T/A CARTLEDGE  
2012 - JUN,,,Accesibility Programme                  ,CE104FD,New Construction Conversion and Renovation,,B4,Site Works - Contractor,166,530.84,6/27/2012,C,FM CONWAY LTD                 
2012 - JUN,,,Car Clubs                               ,CE104RF,New Construction Conversion and Renovation,,B4,Site Works - Contractor,167,"1,888.56",6/14/2012,C,FM CONWAY LTD                 
2012 - JUN,,,TFL Slippage - Corridors&Neigh          ,CE104RK,New Construction Conversion and Renovation,,B4,Site Works - Contractor,168,"1,426.82",5/25/2012,C,MAY GURNEY LTD T/A CARTLEDGE  
2012 - JUN,,,Car Clubs Expansion                     ,CE104RL,New Construction Conversion and Renovation,,B4,Site Works - Contractor,169,890.32,6/1/2012,C,FM CONWAY LTD                 
2012 - JUN,,,Morden Rd-Ravensbury-London Rd          ,CE105FE,New Construction Conversion and Renovation,,B4,Site Works - Contractor,170,"122,110.91",5/30/2012,C,FM CONWAY LTD                 
2012 - JUN,,,Morden Rd-Ravensbury-London Rd          ,CE105FE,New Construction Conversion and Renovation,,B4,Site Works - Contractor,171,"7,531.30",6/14/2012,C,FM CONWAY LTD                 
2012 - JUN,,,Morden Rd-Ravensbury-London Rd          ,CE105FE,New Construction Conversion and Renovation,,B4,Site Works - Contractor,172,"15,000.00",6/14/2012,C,FM CONWAY LTD                 
2012 - JUN,,,Durnsfrd Rd-Revelstke Rd-Arthr          ,CE105FF,New Construction Conversion and Renovation,,B4,Site Works - Contractor,173,"4,000.00",6/14/2012,C,FM CONWAY LTD                 
2012 - JUN,,,Wimbledon-Sutton Cycle Scheme           ,CE107FA,New Construction Conversion and Renovation,,B4,Site Works - Contractor,174,"7,000.00",6/14/2012,C,FM CONWAY LTD                 
2012 - JUN,,,Marathon Trust BMX Track                ,CE114SA,New Construction Conversion and Renovation,,B1,Design and Supervision - Consultants Fee,175,615,6/18/2012,C,MATERIALS SCIENCE CONS. LTD   
2012 - JUN,,,Marathon Trust BMX Track                ,CE114SA,New Construction Conversion and Renovation,,B4,Site Works - Contractor,176,"31,980.00",6/19/2012,C,CLARK AND KENT CONTRACTORS    
2012 - JUN,,,Universal Cold Busters                  ,CE120RA,Other Capital Expenditure,,E1,Grants,177,"3,272.85",6/13/2012,C,CLIMATE ENERGY SOLUTIONS LTD  
2012 - JUN,,,Universal Cold Busters                  ,CE120RA,Other Capital Expenditure,,E1,Grants,178,533.16,6/13/2012,C,CLIMATE ENERGY LTD            
2012 - JUN,,,Universal Cold Busters                  ,CE120RA,Other Capital Expenditure,,E1,Grants,179,"1,533.00",6/20/2012,C,GLOWARM CENTRAL HEATING LTD   
2012 - JUN,,,Universal Cold Busters                  ,CE120RA,Other Capital Expenditure,,E1,Grants,180,"4,221.00",6/20/2012,C,CLIMATE ENERGY SOLUTIONS LTD  
2012 - JUN,,,Universal Cold Busters                  ,CE120RA,Other Capital Expenditure,,E1,Grants,181,641.52,6/20/2012,C,CLIMATE ENERGY LTD            
2012 - JUN,,,Universal Cold Busters                  ,CE120RA,Other Capital Expenditure,,E1,Grants,182,"2,596.65",6/20/2012,C,CLIMATE ENERGY SOLUTIONS LTD  
2012 - JUN,,,Universal Cold Busters                  ,CE120RA,Other Capital Expenditure,,E1,Grants,183,514.44,6/29/2012,C,CLIMATE ENERGY LTD            
2012 - JUN,,,Universal Cold Busters                  ,CE120RA,Other Capital Expenditure,,E1,Grants,184,"3,109.05",6/29/2012,C,KERSHAW CONTRACTING SERVICES  
2012 - JUN,,,Civic Centre refurbishment              ,CF001AB,New Construction Conversion and Renovation,,B4,Site Works - Contractor,185,"20,000.00",5/28/2012,C,HART DECORATORS LIMITED       
2012 - JUN,,,Civic Centre refurbishment              ,CF001AB,New Construction Conversion and Renovation,,B4,Site Works - Contractor,186,"1,600.00",6/13/2012,C,SSD LIMITED                   
2012 - JUN,,,Civic Centre refurbishment              ,CF001AB,Vehicles Plant Equipment and Machinery,,D4,Specialist Furniture,187,"1,165.60",5/31/2012,C,UNIQUE OFFICE SOLUTIONS LTD   
2012 - JUN,,,Civic Centre refurbishment              ,CF001AB,Vehicles Plant Equipment and Machinery,,D4,Specialist Furniture,188,"1,854.00",5/31/2012,C,UNIQUE OFFICE SOLUTIONS LTD   
2012 - JUN,,,Civic Centre refurbishment              ,CF001AB,Vehicles Plant Equipment and Machinery,,D4,Specialist Furniture,189,957.6,6/7/2012,C,UNIQUE OFFICE SOLUTIONS LTD   
2012 - JUN,,,Civic Centre refurbishment              ,CF001AB,Other Capital Expenditure,,E3,Miscellaneous Capital Expenditure,190,"1,250.00",5/25/2012,C,NEC (UK) LTD                  
2012 - JUN,,,Civic Centre refurbishment              ,CF001AB,Other Capital Expenditure,,E3,Miscellaneous Capital Expenditure,191,"1,160.00",5/31/2012,C,NETWORK SOLUTIONS INC         
2012 - JUN,,,Energy Utility Invest to Save           ,CF002SA,New Construction Conversion and Renovation,,B4,Site Works - Contractor,192,500,4/19/2012,C,COFELY LIMITED                
2012 - JUN,,,Energy Utility Invest to Save           ,CF002SA,New Construction Conversion and Renovation,,B4,Site Works - Contractor,193,650,3/30/2012,C,PW INDUSTRIAL SVCE/S LTD      
2012 - JUN,,,Energy Utility Invest to Save           ,CF002SA,New Construction Conversion and Renovation,,B4,Site Works - Contractor,194,750,3/30/2012,C,PW INDUSTRIAL SVCE/S LTD      
2012 - JUN,,,Fixed Electrical Ins. Testing           ,CF004SG,New Construction Conversion and Renovation,,B4,Site Works - Contractor,195,"5,000.00",4/25/2012,C,MORTON FAIRVIEW ELEC SERVICES 
2012 - JUN,,,Pollards-Electric Lighting Wks          ,CF008BA,New Construction Conversion and Renovation,,B4,Site Works - Contractor,196,"1,602.02",5/25/2012,C,MORTON FAIRVIEW ELEC SERVICES 
2012 - JUN,,,Pollards-Electric Lighting Wks          ,CF008BA,New Construction Conversion and Renovation,,B4,Site Works - Contractor,197,"6,863.72",5/31/2012,C,MORTON FAIRVIEW ELEC SERVICES 
2012 - JUN,,,Plant and Ceiling Works,CPG43MB,New Construction Conversion and Renovation,,2N,Capital main contractor payments,198,985.6,3/30/2012,C,COBSEN-DAVIES ROOFING (LOND)LT
2012 - JUN,,,Plant and Ceiling Works,CPG43MB,New Construction Conversion and Renovation,,2N,Capital main contractor payments,199,"1,469.50",3/30/2012,C,COBSEN-DAVIES ROOFING (LOND)LT
2012 - JUN,,,St Ann's - Targeted Capital             ,CS001DA,New Construction Conversion and Renovation,,B1,Design and Supervision - Consultants Fee,200,"13,001.00",5/26/2012,C,WYG MANAGEMENT SERVICES LTD   
2012 - JUN,,,St Ann's - Targeted Capital             ,CS001DA,New Construction Conversion and Renovation,,B4,Site Works - Contractor,201,663.37,6/15/2012,C,EXTRASPACE (NI) LTD           
2012 - JUN,,,Raynes Park Sports Pavilion             ,CS003CA,New Construction Conversion and Renovation,,B4,Site Works - Contractor,202,"90,000.00",6/11/2012,C,LENGUARD LIMITED              
2012 - JUN,,,Bishop Gilpin new classroom             ,CS003RA,New Construction Conversion and Renovation,,B2,Design and Supervision - Site Surveys,203,"20,132.74",5/29/2012,C,WILBY & BURNETT               
2012 - JUN,,,Brightwell                              ,CS004AA,New Construction Conversion and Renovation,,B4,Site Works - Contractor,204,"71,418.79",5/8/2012,C,STP SOLUTIONS                 
2012 - JUN,,,Brightwell                              ,CS004AA,New Construction Conversion and Renovation,,B4,Site Works - Contractor,205,"72,828.65",6/14/2012,C,STP SOLUTIONS                 
2012 - JUN,,,Aragon expansion                        ,CS008AA,New Construction Conversion and Renovation,,B4,Site Works - Contractor,206,"48,573.87",5/28/2012,C,THOMAS SINDEN CONSTRUCTION LTD
2012 - JUN,,,Aragon expansion                        ,CS008AA,New Construction Conversion and Renovation,,B4,Site Works - Contractor,207,"70,575.41",5/21/2012,C,THOMAS SINDEN CONSTRUCTION LTD
2012 - JUN,,,St Mary's expansion                     ,CS008RA,New Construction Conversion and Renovation,,B1,Design and Supervision - Consultants Fee,208,"3,281.82",5/15/2012,C,ATKINS LIMITED                
2012 - JUN,,,Pupil Growth - Unallocated              ,CS008SA,New Construction Conversion and Renovation,,B2,Design and Supervision - Site Surveys,209,715,6/20/2012,C,PENNINGTON CHOICES            
2012 - JUN,,,All Saints/ South Wim YCC exp           ,CS008SB,New Construction Conversion and Renovation,,B1,Design and Supervision - Consultants Fee,210,"9,102.47",5/16/2012,C,ATKINS LIMITED                
2012 - JUN,,,All Saints/ South Wim YCC exp           ,CS008SB,New Construction Conversion and Renovation,,B2,Design and Supervision - Site Surveys,211,"1,250.00",5/30/2012,C,DF20 LTD                      
2012 - JUN,,,All Saints/ South Wim YCC exp           ,CS008SB,New Construction Conversion and Renovation,,B2,Design and Supervision - Site Surveys,212,607,6/12/2012,C,SOILS LIMITED                 
2012 - JUN,,,All Saints/ South Wim YCC exp           ,CS008SB,New Construction Conversion and Renovation,,B2,Design and Supervision - Site Surveys,213,"1,495.00",6/12/2012,C,SOILS LIMITED                 
2012 - JUN,,,All Saints/ South Wim YCC exp           ,CS008SB,New Construction Conversion and Renovation,,B2,Design and Supervision - Site Surveys,214,"2,575.00",6/12/2012,C,SOILS LIMITED                 
2012 - JUN,,,Benedict expansion                      ,CS009AA,New Construction Conversion and Renovation,,B4,Site Works - Contractor,215,"167,295.21",5/31/2012,C,R DURTNELL & SONS LTD         
2012 - JUN,,,Hollymount Permanent Expansion          ,CS011AA,New Construction Conversion and Renovation,,B2,Design and Supervision - Site Surveys,216,"1,507.50",5/25/2012,C,REDACTED
2012 - JUN,,,Hollymount Permanent Expansion          ,CS011AA,Vehicles Plant Equipment and Machinery,,D3,Equipment,217,"3,150.54",5/18/2012,C,SCHOOL BUSINESS SERVICES LTD  
2012 - JUN,,,Joseph Hood Permanent Expansn           ,CS012AA,New Construction Conversion and Renovation,,B4,Site Works - Contractor,218,"301,000.00",6/13/2012,C,GEE CONSTRUCTION LTD          
2012 - JUN,,,Garden PCP                              ,CS013AA,New Construction Conversion and Renovation,,B4,Site Works - Contractor,219,"108,981.94",5/28/2012,C,R DURTNELL & SONS LTD         
2012 - JUN,,,SS Peter & Paul PCP                     ,CS014RA,New Construction Conversion and Renovation,,B1,Design and Supervision - Consultants Fee,220,"8,273.59",5/18/2012,C,ATKINS LIMITED                
2012 - JUN,,,Gorringe Park expansion                 ,CS018AB,New Construction Conversion and Renovation,,B4,Site Works - Contractor,221,"134,000.00",6/6/2012,C,GEE CONSTRUCTION LTD          
2012 - JUN,,,Hillcross School Expansion              ,CS020AC,New Construction Conversion and Renovation,,B1,Design and Supervision - Consultants Fee,222,"5,334.00",5/25/2012,C,EC HARRIS LLP                 
2012 - JUN,,,Merton Abbey Temp Accomodation          ,CS022AC,New Construction Conversion and Renovation,,B1,Design and Supervision - Consultants Fee,223,"8,500.00",3/28/2012,C,THE HOCA PRACTISE             
2012 - JUN,,,Merton Abbey Temp Accomodation          ,CS022AC,New Construction Conversion and Renovation,,B4,Site Works - Contractor,224,"2,678.13",5/30/2012,C,PORTAKABIN LIMITED            
2012 - JUN,,,Pelham School Expansion                 ,CS023AC,New Construction Conversion and Renovation,,B1,Design and Supervision - Consultants Fee,225,"5,334.00",5/25/2012,C,EC HARRIS LLP                 
2012 - JUN,,,Cricket Grn Exp-Chapel Orchard          ,CS026AC,New Construction Conversion and Renovation,,B2,Design and Supervision - Site Surveys,226,"1,275.00",6/11/2012,C,REDACTED
2012 - JUN,,,Cricket Grn Exp-Chapel Orchard          ,CS026AC,New Construction Conversion and Renovation,,B2,Design and Supervision - Site Surveys,227,965,5/30/2012,C,ABN AMRO COMMERCIAL FINANCE   
2012 - JUN,,,Cricket Grn Exp-Chapel Orchard          ,CS026AC,New Construction Conversion and Renovation,,B2,Design and Supervision - Site Surveys,228,"1,920.00",5/30/2012,C,ABN AMRO COMMERCIAL FINANCE   
2012 - JUN,,,Dundonald expansion                     ,CS031AC,New Construction Conversion and Renovation,,B1,Design and Supervision - Consultants Fee,229,"2,000.00",5/28/2012,C,SYNERGY CPC LLP               
2012 - JUN,,,Dundonald expansion                     ,CS031AC,New Construction Conversion and Renovation,,B2,Design and Supervision - Site Surveys,230,"2,193.25",4/30/2012,C,RSK ENVIRONMENT LTD           
2012 - JUN,,,St Ann's Primary Phase                  ,CS032AA,New Construction Conversion and Renovation,,B2,Design and Supervision - Site Surveys,231,787.5,6/11/2012,C,REDACTED
2012 - JUN,,,St Anns - Primary                       ,CS032AB,New Construction Conversion and Renovation,,B4,Site Works - Contractor,232,680.34,6/1/2012,C,PORTAKABIN LIMITED            
2012 - JUN,,,Poplar Permanent Expansion              ,CS034AB,New Construction Conversion and Renovation,,B2,Design and Supervision - Site Surveys,233,745,6/11/2012,C,ABN AMRO COMMERCIAL FINANCE   
2012 - JUN,,,Liberty expansion                       ,CS036AB,New Construction Conversion and Renovation,,B1,Design and Supervision - Consultants Fee,234,"16,916.03",4/26/2012,C,ATKINS LIMITED                
2012 - JUN,,,Liberty expansion                       ,CS036AB,New Construction Conversion and Renovation,,B4,Site Works - Contractor,235,"214,521.02",5/22/2012,C,R DURTNELL & SONS LTD         
2012 - JUN,,,Targeted Capital Fund (TCF)             ,CS047SA,New Construction Conversion and Renovation,,B4,Site Works - Contractor,236,"134,750.00",6/15/2012,C,EXTRASPACE (NI) LTD           
2012 - JUN,,,Singlegate expansion                    ,CS049AA,New Construction Conversion and Renovation,,B2,Design and Supervision - Site Surveys,237,"1,347.50",5/10/2012,C,JMP CONSULTANTS LTD           
2012 - JUN,,,Singlegate expansion                    ,CS049AA,New Construction Conversion and Renovation,,B2,Design and Supervision - Site Surveys,238,945,4/30/2012,C,DF CLARK BIONOMIQUE LTD       
2012 - JUN,,,Singlegate expansion                    ,CS049AA,New Construction Conversion and Renovation,,B2,Design and Supervision - Site Surveys,239,612.3,6/11/2012,C,JMP CONSULTANTS LTD           
2012 - JUN,,,Singlegate expansion                    ,CS049AA,New Construction Conversion and Renovation,,B2,Design and Supervision - Site Surveys,240,745,5/30/2012,C,DF CLARK BIONOMIQUE LTD       
2012 - JUN,,,Singlegate expansion                    ,CS049AA,New Construction Conversion and Renovation,,B4,Site Works - Contractor,241,"54,000.00",5/21/2012,C,MANSELL CONSTRUCTION SERVICES 
2012 - JUN,,,Wimbledon Park expansion                ,CS050AA,New Construction Conversion and Renovation,,B1,Design and Supervision - Consultants Fee,242,"2,400.00",5/28/2012,C,SYNERGY CPC LLP               
2012 - JUN,,,Wimbledon Park expansion                ,CS050AA,New Construction Conversion and Renovation,,B1,Design and Supervision - Consultants Fee,243,"37,223.60",5/22/2012,C,CURL LA TOURELLE ARCHITECTS   
2012 - JUN,,,Wimbledon Park expansion                ,CS050AA,New Construction Conversion and Renovation,,B2,Design and Supervision - Site Surveys,244,"4,500.00",5/30/2012,C,REDACTED
2012 - JUN,,,Various schls-asbestos removal          ,CS080SA,New Construction Conversion and Renovation,,B4,Site Works - Contractor,245,"3,450.00",6/13/2012,C,FOREST ENVIRONMENTAL          
2012 - JUN,,,Contingency                             ,CS080SC,New Construction Conversion and Renovation,,B1,Design and Supervision - Consultants Fee,246,"11,457.50",5/15/2012,C,ATKINS LIMITED                
2012 - JUN,,,Contingency                             ,CS080SC,New Construction Conversion and Renovation,,B1,Design and Supervision - Consultants Fee,247,"5,974.08",5/25/2012,C,EC HARRIS LLP                 
2012 - JUN,,,Contingency                             ,CS080SC,New Construction Conversion and Renovation,,B4,Site Works - Contractor,248,"11,523.93",3/13/2012,C,MOY CONSTRUCTION CO LTD       
2012 - JUN,,,Breaks-disabled children grant          ,CS085RA,Vehicles Plant Equipment and Machinery,,D4,Specialist Furniture,249,"2,186.38",5/24/2012,C,SOUTHERN CARE SYSTEMS LTD     
2012 - JUN,,,IT Equipment                            ,CT006EA,Other Capital Expenditure,,E3,Miscellaneous Capital Expenditure,250,625,5/28/2012,C,AMTEC COMPUTER CORPORATION LTD
2012 - JUN,,,Capital Reporting Project               ,CT012EC,Vehicles Plant Equipment and Machinery,,D5,Software,251,785,5/29/2012,C,UNISERVE CONSULTING LIMITED   
2012 - JUN,,,Stability Networks                      ,CT012ED,Other Capital Expenditure,,E3,Miscellaneous Capital Expenditure,252,"1,899.90",5/31/2012,C,HORNBILL SERVICE MGMENT LTD   
2012 - JUN,,,Replacement parking system              ,CT012EF,Vehicles Plant Equipment and Machinery,,D5,Software,253,"9,782.50",5/31/2012,C,IMPERIAL CIVIL ENFORC.SOLUT.  
2012 - JUN,Central Services,Local Tax Collection,Local Taxation Services                 ,E02100,Supplies & Services           ,Services                      ,DF11,Counsel's fees,254,690,5/26/2012,R,INCASSO DEBT RECOVERY         
2012 - JUN,Housing Services,Housing Benefit Administration,Benefits Administration                 ,E02120,Supplies & Services           ,Comms and Computing           ,DG09,Computer Purchases - Misc,255,"27,000.00",3/12/2012,R,CIVICA UK LIMITED             
2012 - JUN,Central Services,Fully rechargeable Overheads,Payroll                                 ,E02140,Supplies & Services           ,Services                      ,DF01,General Office Expenses,256,500,6/22/2012,R,MARKS AND SPENCER GIFT VOUCHER
2012 - JUN,Central Services,Fully rechargeable Overheads,Payroll                                 ,E02140,Supplies & Services           ,Comms and Computing           ,DG02,Software Licences,257,715,4/30/2012,R,TMP WORLDWIDE LTD             
2012 - JUN,Central Services,Fully rechargeable Overheads,Payroll                                 ,E02140,Supplies & Services           ,Comms and Computing           ,DG02,Software Licences,258,"1,950.00",3/30/2012,R,TMP WORLDWIDE LTD             
2012 - JUN,Central Services,Fully rechargeable Overheads,Payroll                                 ,E02140,Supplies & Services           ,Comms and Computing           ,DG02,Software Licences,259,715,5/25/2012,R,TMP WORLDWIDE LTD             
2012 - JUN,Central Services,Fully rechargeable Overheads,Post Room                               ,E02220,Supplies & Services           ,Prntng Stnry Gen Off Exp      ,DE30,General Office Expenses,260,500,5/29/2012,R,TRAVELCARE                    
2012 - JUN,Central Services,Fully rechargeable Overheads,Civic Centre                            ,E02222,Premises Related Expenditure  ,RepairsAlterations&MtceOfBldgs,BA29,Build Maint Mgt Fees,261,770.86,5/24/2012,R,ADT FIRE AND SECURITY PLC     
2012 - JUN,Central Services,Fully rechargeable Overheads,Civic Centre                            ,E02222,Premises Related Expenditure  ,RepairsAlterations&MtceOfBldgs,BA29,Build Maint Mgt Fees,262,769.5,4/30/2012,R,EDE'S (U.K.) LTD              
2012 - JUN,Central Services,Fully rechargeable Overheads,Civic Centre                            ,E02222,Premises Related Expenditure  ,RepairsAlterations&MtceOfBldgs,BA29,Build Maint Mgt Fees,263,"2,025.00",5/22/2012,R,KH FLOORING LTD               
2012 - JUN,Central Services,Fully rechargeable Overheads,Civic Centre                            ,E02222,Premises Related Expenditure  ,RepairsAlterations&MtceOfBldgs,BA29,Build Maint Mgt Fees,264,"1,678.50",5/22/2012,R,KH FLOORING LTD               
2012 - JUN,Central Services,Fully rechargeable Overheads,Civic Centre                            ,E02222,Premises Related Expenditure  ,RepairsAlterations&MtceOfBldgs,BA29,Build Maint Mgt Fees,265,870,5/22/2012,R,KH FLOORING LTD               
2012 - JUN,Central Services,Fully rechargeable Overheads,Civic Centre                            ,E02222,Premises Related Expenditure  ,RepairsAlterations&MtceOfBldgs,BA29,Build Maint Mgt Fees,266,500,5/26/2012,R,EDE'S (U.K.) LTD              
2012 - JUN,Central Services,Fully rechargeable Overheads,Civic Centre                            ,E02222,Premises Related Expenditure  ,Cleaning and Domestic Supplies,BH02,Window Cleaning,267,552.19,5/27/2012,R,DYNAMIQ CLEANING LIMITED      
2012 - JUN,Central Services,Fully rechargeable Overheads,Civic Centre                            ,E02222,Premises Related Expenditure  ,Cleaning and Domestic Supplies,BH03,Cleaning Services,268,"3,089.34",4/29/2012,R,DYNAMIQ CLEANING LIMITED      
2012 - JUN,Central Services,Fully rechargeable Overheads,Civic Centre                            ,E02222,Premises Related Expenditure  ,Cleaning and Domestic Supplies,BH03,Cleaning Services,269,"3,089.34",5/27/2012,R,DYNAMIQ CLEANING LIMITED      
2012 - JUN,Central Services,Fully rechargeable Overheads,Civic Centre                            ,E02222,Premises Related Expenditure  ,Cleaning and Domestic Supplies,BH03,Cleaning Services,270,"1,461.29",5/27/2012,R,DYNAMIQ CLEANING LIMITED      
2012 - JUN,Central Services,Fully rechargeable Overheads,Civic Centre                            ,E02222,Premises Related Expenditure  ,Cleaning and Domestic Supplies,BH03,Cleaning Services,271,"1,451.44",5/27/2012,R,DYNAMIQ CLEANING LIMITED      
2012 - JUN,Central Services,Fully rechargeable Overheads,Civic Centre                            ,E02222,Premises Related Expenditure  ,Cleaning and Domestic Supplies,BH03,Cleaning Services,272,"9,019.98",5/27/2012,R,DYNAMIQ CLEANING LIMITED      
2012 - JUN,Central Services,Fully rechargeable Overheads,Civic Centre                            ,E02222,Third Party Payments          ,Private Contractors           ,EH02,Miscellaneous Hired Services,273,511.29,5/1/2012,R,OCS GROUP UK LTD T/A CANNON   
2012 - JUN,Central Services,Fully rechargeable Overheads,Gifford House                           ,E02223,Premises Related Expenditure  ,Cleaning and Domestic Supplies,BH03,Cleaning Services,274,841.16,5/27/2012,R,DYNAMIQ CLEANING LIMITED      
2012 - JUN,Central Services,Fully rechargeable Overheads,Worsfold House                          ,E02224,Premises Related Expenditure  ,Cleaning and Domestic Supplies,BH03,Cleaning Services,275,"1,141.15",5/27/2012,R,DYNAMIQ CLEANING LIMITED      
2012 - JUN,Central Services,Fully rechargeable Overheads,Morden Park House                       ,E02229,Premises Related Expenditure  ,Cleaning and Domestic Supplies,BH03,Cleaning Services,276,"1,579.28",5/27/2012,R,DYNAMIQ CLEANING LIMITED      
2012 - JUN,Central Services,Fully rechargeable Overheads,Morden Park House                       ,E02229,Premises Related Expenditure  ,Cleaning and Domestic Supplies,BH03,Cleaning Services,277,"1,579.28",4/29/2012,R,DYNAMIQ CLEANING LIMITED      
2012 - JUN,Central Services,Fully rechargeable Overheads,Facilities                              ,E02231,Premises Related Expenditure  ,RepairsAlterations&MtceOfBldgs,BA06,Repairs & Maintenance General,278,"15,913.94",3/28/2012,R,STP SOLUTIONS                 
2012 - JUN,Central Services,Fully rechargeable Overheads,Facilities                              ,E02231,Premises Related Expenditure  ,RepairsAlterations&MtceOfBldgs,BA06,Repairs & Maintenance General,279,"9,600.00",6/12/2012,R,FORBO FLOORING UK LTD         
2012 - JUN,Central Services,Fully rechargeable Overheads,Corporate Services Buildings            ,E02240,Premises Related Expenditure  ,RepairsAlterations&MtceOfBldgs,BA01,DDM - General Building,280,534.35,5/8/2012,R,COFELY LIMITED                
2012 - JUN,Central Services,Fully rechargeable Overheads,Corporate Services Buildings            ,E02240,Premises Related Expenditure  ,RepairsAlterations&MtceOfBldgs,BA01,DDM - General Building,281,"1,854.75",5/22/2012,R,STATUTORY SUPPORT SERV(UK) LTD
2012 - JUN,Central Services,Fully rechargeable Overheads,Corporate Services Buildings            ,E02240,Premises Related Expenditure  ,RepairsAlterations&MtceOfBldgs,BA03,DDM - Mechanical,282,"1,774.98",5/14/2012,R,TREND CONTROL SYSTEMS         
2012 - JUN,Central Services,Fully rechargeable Overheads,Corporate Services Buildings            ,E02240,Premises Related Expenditure  ,RepairsAlterations&MtceOfBldgs,BA05,DDM - Electrical,283,"4,902.34",4/1/2012,R,ADT FIRE & SECURITY PLC       
2012 - JUN,Central Services,Fully rechargeable Overheads,Corporate Services Buildings            ,E02240,Premises Related Expenditure  ,RepairsAlterations&MtceOfBldgs,BA05,DDM - Electrical,284,587.93,6/11/2012,R,COFELY LIMITED                
2012 - JUN,Central Services,Fully rechargeable Overheads,Corporate Services Buildings            ,E02240,Premises Related Expenditure  ,Energy Costs                  ,BB02,Electricity,285,"1,261.75",5/1/2012,R,EDF ENERGY 1 LIMITED          
2012 - JUN,Central Services,Fully rechargeable Overheads,Corporate Services Buildings            ,E02240,Premises Related Expenditure  ,Energy Costs                  ,BB02,Electricity,286,758.89,5/1/2012,R,EDF ENERGY 1 LIMITED          
2012 - JUN,Central Services,Fully rechargeable Overheads,Corporate Services Buildings            ,E02240,Premises Related Expenditure  ,Energy Costs                  ,BB02,Electricity,287,"3,125.62",5/1/2012,R,EDF ENERGY 1 LIMITED          
2012 - JUN,Central Services,Fully rechargeable Overheads,Corporate Services Buildings            ,E02240,Premises Related Expenditure  ,Energy Costs                  ,BB02,Electricity,288,"18,957.91",5/10/2012,R,KENT COUNTY COUNCIL           
2012 - JUN,Central Services,Fully rechargeable Overheads,Corporate Services Buildings            ,E02240,Premises Related Expenditure  ,Energy Costs                  ,BB03,Gas (incl. Butane),289,543.53,4/23/2012,R,KENT COUNTY COUNCIL           
2012 - JUN,Central Services,Fully rechargeable Overheads,Corporate Services Buildings            ,E02240,Premises Related Expenditure  ,Energy Costs                  ,BB03,Gas (incl. Butane),290,"5,646.95",5/24/2012,R,KENT COUNTY COUNCIL           
2012 - JUN,Central Services,Fully rechargeable Overheads,Corporate Services Buildings            ,E02240,Premises Related Expenditure  ,Water Services                ,BE01,Use of Water (Metered),291,936.77,5/25/2012,R,SUTTON AND EAST SURREY WATER  
2012 - JUN,Childrens & Education Services,Service Strategy,CSF Buildings                           ,E02256,Premises Related Expenditure  ,RepairsAlterations&MtceOfBldgs,BA01,DDM - General Building,292,848.4,5/29/2012,R,SALTASH ENTERPRISES LTD       
2012 - JUN,Adult Social Care,Adult u65 Phys/Sensory Impair,C & H Buildings                         ,E02345,Premises Related Expenditure  ,RepairsAlterations&MtceOfBldgs,BA01,DDM - General Building,293,594.8,5/29/2012,R,SALTASH ENTERPRISES LTD       
2012 - JUN,Adult Social Care,Adult u65 Phys/Sensory Impair,C & H Buildings                         ,E02345,Premises Related Expenditure  ,RepairsAlterations&MtceOfBldgs,BA05,DDM - Electrical,294,520.49,7/27/2011,R,CROWN SECURITY SYSTEMS LTD    
2012 - JUN,Adult Social Care,Adult u65 Phys/Sensory Impair,C & H Buildings                         ,E02345,Premises Related Expenditure  ,RepairsAlterations&MtceOfBldgs,BA05,DDM - Electrical,295,-520.49,5/31/2012,R,CROWN SECURITY SYSTEMS LTD    
2012 - JUN,Cultural Env Reg&Plan Services,Open Spaces,Leisure Buildings                       ,E02350,Premises Related Expenditure  ,RepairsAlterations&MtceOfBldgs,BA05,DDM - Electrical,296,538.71,7/27/2012,R,CROWN SECURITY SYSTEMS LTD    
2012 - JUN,Cultural Env Reg&Plan Services,Open Spaces,Leisure Buildings                       ,E02350,Premises Related Expenditure  ,RepairsAlterations&MtceOfBldgs,BA05,DDM - Electrical,297,593.73,6/18/2012,R,COFELY LIMITED                
2012 - JUN,Central Services,Fully rechargeable Overheads,Director of Corporate Services          ,E04060,Employees                     ,Direct Employee Expenses      ,AA17,Agency Staff & Casual Paymts,298,"10,075.00",6/3/2012,R,REDACTED
2012 - JUN,Central Services,Fully rechargeable Overheads,Director of Corporate Services          ,E04060,Employees                     ,Indirect Employee Expenses    ,AB57,External Training Costs,299,"2,865.00",3/28/2012,R,CIPFA                         
2012 - JUN,Central Services,Fully rechargeable Overheads,Director of Corporate Services          ,E04060,Supplies & Services           ,Services                      ,DF11,Counsel's fees,300,"1,035.00",6/20/2012,R,REDACTED
2012 - JUN,Central Services,Fully rechargeable Overheads,Internal Audit&Service Review           ,E05101,Supplies & Services           ,Services                      ,DF58,Audit Fee,301,"5,400.00",4/24/2012,R,RSM TENON                     
2012 - JUN,Central Services,Fully rechargeable Overheads,Corporate Accountancy                   ,E06209,Supplies & Services           ,Services                      ,DF03,Consultants,302,"30,837.75",4/30/2012,R,PRICEWATERHOUSE COOPERS       
2012 - JUN,Central Services,Fully rechargeable Overheads,Corporate Accountancy                   ,E06209,Supplies & Services           ,Services                      ,DF58,Audit Fee,303,"2,676.00",6/1/2012,R,AUDIT COMMISSION              
2012 - JUN,Central Services,Fully rechargeable Overheads,Accounts Payable                        ,E06212,Supplies & Services           ,Services                      ,DF03,Consultants,304,"2,883.95",6/8/2012,R,MERIDIAN COST BENEFIT LTD     
2012 - JUN,Central Services,Fully rechargeable Overheads,Accounts Payable                        ,E06212,Oth Grants Reimbmnts/Contribs ,Cost recharges to other bodies,QC10,Recovery of Costs (X),305,-512.3,9/2/2009,R,ADT FIRE AND SECURITY PLC     
2012 - JUN,Central Services,Fully rechargeable Overheads,Business Planning                       ,E06221,Supplies & Services           ,Services                      ,DF09,Miscellaneous Fees,306,"1,916.67",12/28/2011,R,MAPPIN & WEBB                 
2012 - JUN,Central Services,Fully rechargeable Overheads,Treasury & Insurance                    ,E06222,Employees                     ,Direct Employee Expenses      ,AA17,Agency Staff & Casual Paymts,307,"4,700.00",6/12/2012,R,RANDSTAD FIN & PROF LTD.      
2012 - JUN,Central Services,Fully rechargeable Overheads,Treasury & Insurance                    ,E06222,Employees                     ,Direct Employee Expenses      ,AA17,Agency Staff & Casual Paymts,308,"2,310.00",6/12/2012,R,RANDSTAD FIN & PROF LTD.      
2012 - JUN,Central Services,Fully rechargeable Overheads,Treasury & Insurance                    ,E06222,Employees                     ,Direct Employee Expenses      ,AA17,Agency Staff & Casual Paymts,309,600,4/23/2012,R,RANDSTAD FIN & PROF LTD.      
2012 - JUN,Central Services,Fully rechargeable Overheads,Treasury & Insurance                    ,E06222,Employees                     ,Direct Employee Expenses      ,AA17,Agency Staff & Casual Paymts,310,"3,600.00",4/16/2012,R,RANDSTAD FIN & PROF LTD.      
2012 - JUN,Central Services,Fully rechargeable Overheads,Treasury & Insurance                    ,E06222,Employees                     ,Direct Employee Expenses      ,AA17,Agency Staff & Casual Paymts,311,660,4/16/2012,R,RANDSTAD FIN & PROF LTD.      
2012 - JUN,Central Services,Fully rechargeable Overheads,Parking Cash Collect'n Contrct          ,E06225,Third Party Payments          ,Private Contractors           ,EH02,Miscellaneous Hired Services,312,756.6,5/31/2012,R,LOOMIS UK LTD                 
2012 - JUN,Central Services,Fully rechargeable Overheads,Parking Cash Collect'n Contrct          ,E06225,Third Party Payments          ,Private Contractors           ,EH02,Miscellaneous Hired Services,313,"10,573.30",5/31/2012,R,BANKING AUTOMATION LTD        
2012 - JUN,Central Services,Fully rechargeable Overheads,Establishments' Cash Collect'n          ,E06226,Third Party Payments          ,Private Contractors           ,EH02,Miscellaneous Hired Services,314,"3,264.13",5/15/2012,R,LOOMIS UK LTD                 
2012 - JUN,Central Services,Fully rechargeable Overheads,Service Accountancy                     ,E06227,Employees                     ,Direct Employee Expenses      ,AA17,Agency Staff & Casual Paymts,315,"2,300.00",5/23/2012,R,RANDSTAD FIN & PROF LTD.      
2012 - JUN,Central Services,Fully rechargeable Overheads,Service Accountancy                     ,E06227,Employees                     ,Direct Employee Expenses      ,AA17,Agency Staff & Casual Paymts,316,"3,600.00",6/12/2012,R,RANDSTAD FIN & PROF LTD.      
2012 - JUN,Central Services,Fully rechargeable Overheads,Service Accountancy                     ,E06227,Employees                     ,Direct Employee Expenses      ,AA17,Agency Staff & Casual Paymts,317,"5,060.00",6/12/2012,R,RANDSTAD FIN & PROF LTD.      
2012 - JUN,Central Services,Fully rechargeable Overheads,Service Accountancy                     ,E06227,Employees                     ,Indirect Employee Expenses    ,AB57,External Training Costs,318,500,3/5/2012,R,BPP PROFESSIONAL EDUCATION LTD
2012 - JUN,Central Services,Fully rechargeable Overheads,AD CORPORATE GOVERNANCE               ,E10279,Supplies & Services           ,Services                      ,DF03,Consultants,319,648,10/31/2011,R,LONDON BOROUGH OF BRENT       
2012 - JUN,Central Services,Fully rechargeable Overheads,Legal Services                          ,E10282,Supplies & Services           ,Services                      ,DF11,Counsel's fees,320,600,5/29/2012,R,REDACTED
2012 - JUN,Central Services,Fully rechargeable Overheads,Legal Services                          ,E10282,Supplies & Services           ,Services                      ,DF11,Counsel's fees,321,"2,105.00",4/20/2012,R,REDACTED
2012 - JUN,Central Services,Fully rechargeable Overheads,Legal Services                          ,E10282,Supplies & Services           ,Services                      ,DF28,Court Fees,322,"5,695.00",6/14/2012,R,REDACTED
2012 - JUN,Central Services,Fully rechargeable Overheads,Legal Services                          ,E10282,Supplies & Services           ,Services                      ,DF28,Court Fees,323,"2,600.00",6/21/2012,R,REDACTED
2012 - JUN,Central Services,Local Land Charges,Land Charges                            ,E10283,Employees                     ,Indirect Employee Expenses    ,AB57,External Training Costs,324,"1,750.00",6/1/2012,R,REDACTED
2012 - JUN,Central Services,Local Land Charges,Land Charges                            ,E10283,Supplies & Services           ,Services                      ,DF11,Counsel's fees,325,"1,379.93",5/9/2012,R,LOCAL GOVERNMENT ASSOCIATION  
2012 - JUN,Central Services,Elections,Election Expenses                       ,E10284,Supplies & Services           ,Prntng Stnry Gen Off Exp      ,DE03,Stationery,326,806.6,4/30/2012,R,FINANCIAL DATA MANAGEMENT PLC 
2012 - JUN,Central Services,Fully rechargeable Overheads,Shared Legal Service                    ,E10288,Supplies & Services           ,Services                      ,DF03,Consultants,327,"2,972.48",5/8/2012,R,CGJ ROBERTS - HRC GROUP       
2012 - JUN,Central Services,Fully rechargeable Overheads,Richmond Legal                          ,E10289,Supplies & Services           ,Services                      ,DF11,Counsel's fees,328,600,5/28/2012,R,REDACTED
2012 - JUN,Central Services,Fully rechargeable Overheads,Richmond Legal                          ,E10289,Supplies & Services           ,Services                      ,DF11,Counsel's fees,329,"2,225.00",5/29/2012,R,REDACTED
2012 - JUN,Central Services,Fully rechargeable Overheads,Richmond Legal                          ,E10289,Supplies & Services           ,Services                      ,DF11,Counsel's fees,330,"3,350.00",5/15/2012,R,REDACTED
2012 - JUN,Central Services,Fully rechargeable Overheads,Richmond Legal                          ,E10289,Supplies & Services           ,Services                      ,DF11,Counsel's fees,331,520,5/24/2012,R,REDACTED
2012 - JUN,Central Services,Fully rechargeable Overheads,Richmond Legal                          ,E10289,Supplies & Services           ,Services                      ,DF95,Services from Provider,332,"2,415.50",5/14/2012,R,REDACTED
2012 - JUN,Central Services,Fully rechargeable Overheads,Richmond Legal                          ,E10289,Supplies & Services           ,Services                      ,DF95,Services from Provider,333,"3,043.48",4/30/2012,R,REDACTED
2012 - JUN,Central Services,Fully rechargeable Overheads,Richmond Legal                          ,E10289,Supplies & Services           ,Services                      ,DF95,Services from Provider,334,"6,164.00",6/14/2012,R,BRENT PRIVATE TENANT RIGHTS GP
2012 - JUN,Central Services,Fully rechargeable Overheads,Richmond Legal                          ,E10289,Supplies & Services           ,Services                      ,DF95,Services from Provider,335,585,4/27/2012,R,GOODWIN MALATESTA LEGAL SERVS 
2012 - JUN,Central Services,Fully rechargeable Overheads,Richmond Legal                          ,E10289,Supplies & Services           ,Services                      ,DF95,Services from Provider,336,"4,458.10",5/30/2012,R,RIDLEY & HALL                 
2012 - JUN,Central Services,Fully rechargeable Overheads,Richmond Legal                          ,E10289,Supplies & Services           ,Services                      ,DF95,Services from Provider,337,"1,836.25",5/22/2012,R,REDACTED
2012 - JUN,Central Services,Fully rechargeable Overheads,Richmond Legal                          ,E10289,Supplies & Services           ,Services                      ,DF95,Services from Provider,338,"5,265.00",6/21/2012,R,NIGHTINGALE ESTATES (GB) LLP  
2012 - JUN,Central Services,Fully rechargeable Overheads,Richmond Legal                          ,E10289,Supplies & Services           ,Services                      ,DF95,Services from Provider,339,"2,689.10",5/31/2012,R,REDACTED
2012 - JUN,Central Services,Fully rechargeable Overheads,Richmond Legal                          ,E10289,Supplies & Services           ,Services                      ,DF95,Services from Provider,340,"5,265.00",6/25/2012,R,NIGHTINGALE ESTATES (GB) LLP  
2012 - JUN,Central Services,Fully rechargeable Overheads,Richmond Legal                          ,E10289,Supplies & Services           ,Services                      ,DF95,Services from Provider,341,"-5,265.00",6/21/2012,R,NIGHTINGALE ESTATES (GB) LLP  
2012 - JUN,Central Services,Fully rechargeable Overheads,Richmond Legal                          ,E10289,Supplies & Services           ,Services                      ,DF95,Services from Provider,342,"20,893.82",6/27/2012,R,MISHCON DE REYA               
2012 - JUN,Central Services,Fully rechargeable Overheads,AD Business Improvement                 ,E14358,Employees                     ,Direct Employee Expenses      ,AA17,Agency Staff & Casual Paymts,343,"8,250.00",5/25/2012,R,JW MANAGEMENT                 
2012 - JUN,Central Services,Fully rechargeable Overheads,AD Business Improvement                 ,E14358,Employees                     ,Direct Employee Expenses      ,AA17,Agency Staff & Casual Paymts,344,"4,390.00",5/31/2012,R,PENNA PLC                     
2012 - JUN,Central Services,Fully rechargeable Overheads,AD Business Improvement                 ,E14358,Employees                     ,Direct Employee Expenses      ,AA17,Agency Staff & Casual Paymts,345,"3,512.00",6/18/2012,R,PENNA PLC                     
2012 - JUN,Central Services,Fully rechargeable Overheads,AD Business Improvement                 ,E14358,Employees                     ,Indirect Employee Expenses    ,AB02,Recruitment Adverts,346,"3,020.00",5/29/2012,R,PENNA COMMUNICATIONS (NO 2 A/C
2012 - JUN,Central Services,Fully rechargeable Overheads,AD Business Improvement                 ,E14358,Employees                     ,Indirect Employee Expenses    ,AB02,Recruitment Adverts,347,"4,830.00",3/30/2012,R,PENNA COMMUNICATIONS (NO 2 A/C
2012 - JUN,Central Services,Fully rechargeable Overheads,AD Business Improvement                 ,E14358,Employees                     ,Indirect Employee Expenses    ,AB02,Recruitment Adverts,348,"5,735.90",5/4/2012,R,ODGERS RAY & BERNDTSON INTERIM
2012 - JUN,Central Services,Fully rechargeable Overheads,Corp Saving-Print Strategy              ,E14359,Supplies & Services           ,Equip Furniture/Materials     ,DA77,Photocopier Rental,349,"47,608.38",5/31/2012,R,ALTODIGITAL NETWORKS LTD      
2012 - JUN,Central Services,Fully rechargeable Overheads,Corp Saving-Print Strategy              ,E14359,Supplies & Services           ,Prntng Stnry Gen Off Exp      ,DE06,Internal Printing,350,"37,170.50",5/31/2012,R,ALTODIGITAL NETWORKS LTD      
2012 - JUN,Central Services,Fully rechargeable Overheads,BI IT Projects                          ,E14360,Supplies & Services           ,Services                      ,DF03,Consultants,351,"5,850.00",6/1/2012,R,REDACTED
2012 - JUN,Central Services,Fully rechargeable Overheads,BI IT Projects                          ,E14360,Supplies & Services           ,Services                      ,DF03,Consultants,352,"2,500.00",5/30/2012,R,CASHFRIDAY                    
2012 - JUN,Central Services,Fully rechargeable Overheads,BI IT Projects                          ,E14360,Supplies & Services           ,Services                      ,DF03,Consultants,353,"1,250.00",6/6/2012,R,CASHFRIDAY                    
2012 - JUN,Central Services,Fully rechargeable Overheads,BI IT Projects                          ,E14360,Supplies & Services           ,Services                      ,DF03,Consultants,354,750,6/13/2012,R,CASHFRIDAY                    
2012 - JUN,Central Services,Fully rechargeable Overheads,BI IT Projects                          ,E14360,Supplies & Services           ,Comms and Computing           ,DG07,Computer Software,355,"8,144.77",3/29/2012,R,ALIGNED ASSETS                
2012 - JUN,Central Services,Fully rechargeable Overheads,Operations & Telecomms                  ,E14367,Supplies & Services           ,Comms and Computing           ,DG54,Corporate Telephones,356,"1,035.00",4/29/2012,R,O2 (UK) LIMITED               
2012 - JUN,Central Services,Fully rechargeable Overheads,Operations & Telecomms                  ,E14367,Supplies & Services           ,Comms and Computing           ,DG54,Corporate Telephones,357,"4,956.85",6/3/2012,R,BRITISH TELECOMMUNICATIONS PLC
2012 - JUN,Central Services,Fully rechargeable Overheads,Operations & Telecomms                  ,E14367,Supplies & Services           ,Comms and Computing           ,DG54,Corporate Telephones,358,"3,229.44",6/2/2012,R,COLT TELECOMMUNICATIONS       
2012 - JUN,Central Services,Fully rechargeable Overheads,Operations & Telecomms                  ,E14367,Supplies & Services           ,Comms and Computing           ,DG54,Corporate Telephones,359,"1,035.00",5/29/2012,R,O2 (UK) LIMITED               
2012 - JUN,Central Services,Fully rechargeable Overheads,Operations & Telecomms                  ,E14367,Supplies & Services           ,Comms and Computing           ,DG54,Corporate Telephones,360,"22,932.69",5/29/2012,R,BRITISH TELECOMMUNICATIONS PLC
2012 - JUN,Central Services,Fully rechargeable Overheads,Operations & Telecomms                  ,E14367,Supplies & Services           ,Comms and Computing           ,DG54,Corporate Telephones,361,"4,523.08",4/4/2012,R,T MOBILE (UK)                 
2012 - JUN,Central Services,Fully rechargeable Overheads,Distributed Services                    ,E14368,Supplies & Services           ,Comms and Computing           ,DG63,Software Licences - Data,362,"19,053.20",5/22/2012,R,HEWLETT PACKARD LTD           
2012 - JUN,Central Services,Fully rechargeable Overheads,Distributed Services                    ,E14368,Supplies & Services           ,Comms and Computing           ,DG63,Software Licences - Data,363,"16,927.00",4/30/2012,R,ON365.CO.UK                   
2012 - JUN,Central Services,Fully rechargeable Overheads,Distributed Services                    ,E14368,Supplies & Services           ,Comms and Computing           ,DG63,Software Licences - Data,364,642.84,6/11/2012,R,CONDUSIV TECHNOLOGIES         
2012 - JUN,Central Services,Fully rechargeable Overheads,Distributed Services                    ,E14368,Supplies & Services           ,Comms and Computing           ,DG63,Software Licences - Data,365,530.3,6/11/2012,R,CONDUSIV TECHNOLOGIES         
2012 - JUN,Central Services,Fully rechargeable Overheads,Distributed Services                    ,E14368,Supplies & Services           ,Comms and Computing           ,DG65,Application Licences,366,"9,735.00",5/31/2012,R,BDO STOY HAYWARD LLP          
2012 - JUN,Cultural Env Reg&Plan Services,SMSS (Env),ES Support & Development                ,G00070,Supplies & Services           ,Expenses                      ,DH02,Conferences,367,520,6/20/2012,R,EMPTY HOMES NETWORK           
2012 - JUN,Cultural Env Reg&Plan Services,SMSS (Env),ES Business Systems                     ,G00075,Supplies & Services           ,Comms and Computing           ,DG61,Computer Servs Special,368,"5,251.84",6/12/2012,R,PITNEY BOWES SOFTWARE LTD     
2012 - JUN,Highways & Transport Services,Structural Maintenance,C'way & F'way Mtce                      ,G00121,Employees                     ,Direct Employee Expenses      ,AA17,Agency Staff & Casual Paymts,369,"11,323.00",6/14/2012,R,RIDGEWAY CONSULTING LTD.      
2012 - JUN,Highways & Transport Services,Structural Maintenance,Surf Water Drainage                     ,G00123,Third Party Payments          ,Private Contractors           ,EH56,Carriageway/Fway Maint,370,"2,097.28",5/30/2012,R,FM CONWAY LTD                 
2012 - JUN,Highways & Transport Services,Env Safety&Routine Maintenance,Carriageway Patching                    ,G00125,Third Party Payments          ,Private Contractors           ,EH56,Carriageway/Fway Maint,371,"3,000.00",6/27/2012,R,FM CONWAY LTD                 
2012 - JUN,Highways & Transport Services,Env Safety&Routine Maintenance,Walk Sheets                             ,G00127,Third Party Payments          ,Private Contractors           ,EH56,Carriageway/Fway Maint,372,"30,500.59",5/30/2012,R,FM CONWAY LTD                 
2012 - JUN,Highways & Transport Services,Env Safety&Routine Maintenance,Walk Sheets                             ,G00127,Third Party Payments          ,Private Contractors           ,EH56,Carriageway/Fway Maint,373,"2,505.32",6/1/2012,R,FM CONWAY LTD                 
2012 - JUN,Highways & Transport Services,Env Safety&Routine Maintenance,Walk Sheets                             ,G00127,Third Party Payments          ,Private Contractors           ,EH56,Carriageway/Fway Maint,374,"33,951.19",5/30/2012,R,FM CONWAY LTD                 
2012 - JUN,Highways & Transport Services,Env Safety&Routine Maintenance,Walk Sheets                             ,G00127,Third Party Payments          ,Private Contractors           ,EH56,Carriageway/Fway Maint,375,"39,802.88",6/14/2012,R,FM CONWAY LTD                 
2012 - JUN,Highways & Transport Services,Env Safety&Routine Maintenance,Walk Sheets                             ,G00127,Third Party Payments          ,Private Contractors           ,EH56,Carriageway/Fway Maint,376,"27,148.87",6/27/2012,R,FM CONWAY LTD                 
2012 - JUN,Highways & Transport Services,Env Safety&Routine Maintenance,Traffic Signs.                          ,G00160,Third Party Payments          ,Private Contractors           ,EH01,Miscellaneous Agency Services,377,900,6/11/2012,R,TEASDALE GROUP LTD            
2012 - JUN,Highways & Transport Services,Env Safety&Routine Maintenance,Traffic Signs.                          ,G00160,Third Party Payments          ,Private Contractors           ,EH01,Miscellaneous Agency Services,378,851.29,5/25/2012,R,MAY GURNEY LTD T/A CARTLEDGE  
2012 - JUN,Highways & Transport Services,Env Safety&Routine Maintenance,Traffic Signs.                          ,G00160,Third Party Payments          ,Private Contractors           ,EH01,Miscellaneous Agency Services,379,"5,771.78",6/14/2012,R,FM CONWAY LTD                 
2012 - JUN,Highways & Transport Services,Env Safety&Routine Maintenance,Traffic Signs.                          ,G00160,Third Party Payments          ,Private Contractors           ,EH01,Miscellaneous Agency Services,380,"2,271.75",6/27/2012,R,FM CONWAY LTD                 
2012 - JUN,Highways & Transport Services,Tr'sport Plg / Policy / Str'gy,CPZ implementation & Consultat          ,G00211,Third Party Payments          ,Private Contractors           ,EH56,Carriageway/Fway Maint,381,"4,540.83",6/27/2012,R,FM CONWAY LTD                 
2012 - JUN,Highways & Transport Services,Traffic Mgt & Road Safety,Tr Man & Accid Sch                      ,G00220,Supplies & Services           ,Equip Furniture/Materials     ,DA09,Equip-Purchases,382,984.76,5/1/2012,R,OCE (UK) LTD                  
2012 - JUN,Highways & Transport Services,Traffic Mgt & Road Safety,Tr Man & Accid Sch                      ,G00220,Supplies & Services           ,Equip Furniture/Materials     ,DA09,Equip-Purchases,383,"1,020.00",5/30/2012,R,VIGLEN LIMITED                
2012 - JUN,Highways & Transport Services,Street Lights(Inc Energy Cost),Street Lighting .                       ,G00260,Premises Related Expenditure  ,Energy Costs                  ,BB02,Electricity,384,"53,398.59",5/24/2012,R,KENT COUNTY COUNCIL           
2012 - JUN,Highways & Transport Services,Street Lights(Inc Energy Cost),Street Lighting .                       ,G00260,Third Party Payments          ,Private Contractors           ,EH01,Miscellaneous Agency Services,385,839.98,5/25/2012,R,MAY GURNEY LTD T/A CARTLEDGE  
2012 - JUN,Highways & Transport Services,Street Lights(Inc Energy Cost),Street Lighting .                       ,G00260,Third Party Payments          ,Private Contractors           ,EH01,Miscellaneous Agency Services,386,643,5/29/2012,R,UK POWER NETWORKS (OPERATIONS)
2012 - JUN,Highways & Transport Services,Street Lights(Inc Energy Cost),Street Lighting .                       ,G00260,Third Party Payments          ,Private Contractors           ,EH01,Miscellaneous Agency Services,387,644,5/29/2012,R,UK POWER NETWORKS (OPERATIONS)
2012 - JUN,Highways & Transport Services,Street Lights(Inc Energy Cost),Street Lighting .                       ,G00260,Third Party Payments          ,Private Contractors           ,EH01,Miscellaneous Agency Services,388,"14,708.82",5/25/2012,R,MAY GURNEY LTD T/A CARTLEDGE  
2012 - JUN,Highways & Transport Services,Parking Services,York Close CP                           ,G00298,Premises Related Expenditure  ,Rents                         ,BC01,Miscellaneous Rents,389,"30,460.50",5/22/2012,R,TRANSPORT TRADING LTD PROP A/C
2012 - JUN,Highways & Transport Services,Parking Services,St. Georges Car Park EAST               ,G00300,Premises Related Expenditure  ,Rents                         ,BC01,Miscellaneous Rents,390,681.87,5/22/2012,R,LLOYDS BANK SF NOMINEES LTD   
2012 - JUN,Highways & Transport Services,Parking Services,St. Georges Car Park WEST M/S           ,G00302,Premises Related Expenditure  ,Energy Costs                  ,BB02,Electricity,391,"1,362.30",6/6/2012,R,KENT COUNTY COUNCIL           
2012 - JUN,Highways & Transport Services,Parking Services,St. Georges Car Park WEST M/S           ,G00302,Premises Related Expenditure  ,Rents                         ,BC01,Miscellaneous Rents,392,"3,688.02",5/17/2012,R,SACKVILLE SPF IV (GP) NO 1 LTD
2012 - JUN,Highways & Transport Services,Parking Services,"St. Mks Rd, Multi Sty                   ",G00308,Premises Related Expenditure  ,RepairsAlterations&MtceOfBldgs,BA06,Repairs & Maintenance General,393,702,6/3/2012,R,R.J.H.WELDING                 
2012 - JUN,Highways & Transport Services,Parking Services,"St. Mks Rd, Multi Sty                   ",G00308,Premises Related Expenditure  ,RepairsAlterations&MtceOfBldgs,BA06,Repairs & Maintenance General,394,"2,746.00",6/3/2012,R,R.J.H.WELDING                 
2012 - JUN,Highways & Transport Services,Parking Services,On Street Parking.                      ,G00311,Premises Related Expenditure  ,RepairsAlterations&MtceOfBldgs,BA06,Repairs & Maintenance General,395,"2,987.25",5/29/2012,R,TEASDALE GROUP LTD            
2012 - JUN,Highways & Transport Services,Traffic Mgt & Road Safety,MERTON PRIORY (S106)                    ,G00323,Supplies & Services           ,Services                      ,DF03,Consultants,396,"2,000.00",4/6/2012,R,REDACTED
2012 - JUN,Highways & Transport Services,Traffic Mgt & Road Safety,MERTON PRIORY (S106)                    ,G00323,Third Party Payments          ,Private Contractors           ,EH02,Miscellaneous Hired Services,397,500,6/6/2012,R,ELLIOTT ENVIRONMENTAL LTD     
2012 - JUN,Highways & Transport Services,Traffic Mgt & Road Safety,CYCLECITIES - INTERREG IVC              ,G00324,Supplies & Services           ,Services                      ,DF03,Consultants,398,"12,500.00",6/18/2012,R,ORTELIO LTD                   
2012 - JUN,Highways & Transport Services,Parking Services,Civil Enforcement Officers              ,G00330,Premises Related Expenditure  ,Rents                         ,BC01,Miscellaneous Rents,399,"4,377.50",6/12/2012,R,WOODCOCK BROTHERS (WIMBLEDON) 
2012 - JUN,Highways & Transport Services,Parking Services,Civil Enforcement Officers              ,G00330,Supplies & Services           ,Equip Furniture/Materials     ,DA09,Equip-Purchases,400,526.5,6/6/2012,R,QUARTIX                       
2012 - JUN,Highways & Transport Services,Parking Services,Operational Running Costs               ,G00331,Supplies & Services           ,Equip Furniture/Materials     ,DA09,Equip-Purchases,401,"2,815.00",5/31/2012,R,PARKEON LTD                   
2012 - JUN,Highways & Transport Services,Parking Services,Operational Running Costs               ,G00331,Third Party Payments          ,Other Agencies                ,EJ58,Parking Cttee for London,402,"10,000.00",6/27/2012,R,HMCTS                         
2012 - JUN,Highways & Transport Services,Env Safety&Routine Maintenance,Flood Risk Management                   ,G00350,Third Party Payments          ,Private Contractors           ,EH56,Carriageway/Fway Maint,403,"1,507.52",5/30/2012,R,FM CONWAY LTD                 
2012 - JUN,Highways & Transport Services,Structural Maintenance,Footpath Crossings.                     ,G00390,Third Party Payments          ,Private Contractors           ,EH01,Miscellaneous Agency Services,404,"1,990.37",6/14/2012,R,FM CONWAY LTD                 
2012 - JUN,Highways & Transport Services,Structural Maintenance,Footpath Crossings.                     ,G00390,Third Party Payments          ,Private Contractors           ,EH56,Carriageway/Fway Maint,405,"2,224.29",5/30/2012,R,FM CONWAY LTD                 
2012 - JUN,Highways & Transport Services,Structural Maintenance,Footpath Crossings.                     ,G00390,Third Party Payments          ,Private Contractors           ,EH56,Carriageway/Fway Maint,406,797,5/11/2012,R,UK POWER NETWORKS (OPERATIONS)
2012 - JUN,Highways & Transport Services,Structural Maintenance,Footpath Crossings.                     ,G00390,Third Party Payments          ,Private Contractors           ,EH56,Carriageway/Fway Maint,407,"6,290.01",6/14/2012,R,FM CONWAY LTD                 
2012 - JUN,Cultural Env Reg&Plan Services,Economic Development,Street Markets - Unl                    ,G00430,Customer and client receipts  ,Rents etc                     ,RD62,Street Trading Licences X,408,586,6/8/2012,R,THANKS A BUNCH LTD            
2012 - JUN,Cultural Env Reg&Plan Services,Street Cleaning - Not highways,Street Cleansing (Inc. Gully)           ,G00492,Employees                     ,Indirect Employee Expenses    ,AB57,External Training Costs,409,"2,100.00",4/27/2012,R,TRACKSS LTD                   
2012 - JUN,Cultural Env Reg&Plan Services,Street Cleaning - Not highways,Street Cleansing (Inc. Gully)           ,G00492,Premises Related Expenditure  ,Rents                         ,BC01,Miscellaneous Rents,410,926.64,5/29/2012,R,MERTON PRIORY HOMES (RENT)    
2012 - JUN,Cultural Env Reg&Plan Services,Street Cleaning - Not highways,Street Cleansing (Inc. Gully)           ,G00492,Supplies & Services           ,Equip Furniture/Materials     ,DA01,Equipment - R & M,411,567.1,5/31/2012,R,N A BROWN LTD                 
2012 - JUN,Cultural Env Reg&Plan Services,Street Cleaning - Not highways,Street Cleansing (Inc. Gully)           ,G00492,Supplies & Services           ,Equip Furniture/Materials     ,DA08,Tools-Purchase,412,"1,244.75",5/25/2012,R,BELL BRUSH                    
2012 - JUN,Cultural Env Reg&Plan Services,Street Cleaning - Not highways,Street Cleansing (Inc. Gully)           ,G00492,Supplies & Services           ,Equip Furniture/Materials     ,DA08,Tools-Purchase,413,500,6/7/2012,R,BELL BRUSH                    
2012 - JUN,Cultural Env Reg&Plan Services,Street Cleaning - Not highways,Street Cleansing (Inc. Gully)           ,G00492,Supplies & Services           ,Equip Furniture/Materials     ,DA08,Tools-Purchase,414,500,6/12/2012,R,BELL BRUSH                    
2012 - JUN,Cultural Env Reg&Plan Services,Street Cleaning - Not highways,Street Cleansing (Inc. Gully)           ,G00492,Supplies & Services           ,Equip Furniture/Materials     ,DA08,Tools-Purchase,415,545.5,6/18/2012,R,BELL BRUSH                    
2012 - JUN,Cultural Env Reg&Plan Services,Street Cleaning - Not highways,Street Cleansing (Inc. Gully)           ,G00492,Supplies & Services           ,Equip Furniture/Materials     ,DA08,Tools-Purchase,416,843.6,6/21/2012,R,BELL BRUSH                    
2012 - JUN,Cultural Env Reg&Plan Services,Street Cleaning - Not highways,Street Cleansing (Inc. Gully)           ,G00492,Supplies & Services           ,Equip Furniture/Materials     ,DA31,Waste Sacks & Bags,417,"1,852.20",5/14/2012,R,POLARIS PLASTICS LTD          
2012 - JUN,Cultural Env Reg&Plan Services,Street Cleaning - Not highways,Street Cleansing (Inc. Gully)           ,G00492,Supplies & Services           ,Equip Furniture/Materials     ,DA31,Waste Sacks & Bags,418,"1,852.20",5/30/2012,R,POLARIS PLASTICS LTD          
2012 - JUN,Cultural Env Reg&Plan Services,Street Cleaning - Not highways,Street Cleansing (Inc. Gully)           ,G00492,Supplies & Services           ,Equip Furniture/Materials     ,DA32,Wheeled Bins,419,674.16,5/8/2012,R,UK WASTE CONTAINERS           
2012 - JUN,Cultural Env Reg&Plan Services,Street Cleaning - Not highways,Street Cleansing (Inc. Gully)           ,G00492,Supplies & Services           ,Catering                      ,DB50,Refreshments,420,"2,467.50",6/1/2012,R,FACILITIES MANAGEMENT CATERING
2012 - JUN,Cultural Env Reg&Plan Services,Street Cleaning - Not highways,Street Cleansing (Inc. Gully)           ,G00492,Supplies & Services           ,Clothing Unfrms Laundry       ,DC02,Clothing & Uniforms,421,666.66,5/11/2012,R,SAFETY MANAGEMENT             
2012 - JUN,Cultural Env Reg&Plan Services,Street Cleaning - Not highways,Graffiti                                ,G00495,Employees                     ,Indirect Employee Expenses    ,AB57,External Training Costs,422,825,4/25/2012,R,GRAFFITIHOTLINE               
2012 - JUN,Cultural Env Reg&Plan Services,Waste Disposal,Waste Disposal .                        ,G00550,Third Party Payments          ,Private Contractors           ,EH01,Miscellaneous Agency Services,423,592.17,5/18/2012,R,BIFFA WASTE SERVICES LTD      
2012 - JUN,Cultural Env Reg&Plan Services,Waste Disposal,Waste Disposal .                        ,G00550,Third Party Payments          ,Private Contractors           ,EH66,Clinical Waste Disposal,424,816.74,5/31/2012,R,S.GRUNDON (WASTE) LTD.        
2012 - JUN,Cultural Env Reg&Plan Services,Waste Disposal,Waste Disposal .                        ,G00550,Third Party Payments          ,Private Contractors           ,EH96,Hardcore Disposal - Country Waste,425,"2,057.39",5/31/2012,R,CORY ENVIRONMENTAL LIMITED    
2012 - JUN,Cultural Env Reg&Plan Services,Waste Disposal,Garth Road Site                         ,G00580,Premises Related Expenditure  ,Energy Costs                  ,BB02,Electricity,426,"5,109.50",6/18/2012,R,EDF ENERGY 1 LIMITED          
2012 - JUN,Highways & Transport Services,Structural Maintenance,Grass Cut/Tr Mtce                       ,G00600,Premises Related Expenditure  ,Ground Maintenance Costs      ,BL03,Maintenance of Grounds,427,"13,490.38",5/28/2012,R,VEOLIA ES (UK) LIMITED        
2012 - JUN,Cultural Env Reg&Plan Services,Environmental Health,Dog Control.                            ,G00620,Third Party Payments          ,Private Contractors           ,EH02,Miscellaneous Hired Services,428,"1,660.00",5/16/2012,R,RIVERSIDE ANIMAL SERVICES     
2012 - JUN,Cultural Env Reg&Plan Services,Environmental Health,Dog Control.                            ,G00620,Third Party Payments          ,Private Contractors           ,EH02,Miscellaneous Hired Services,429,"1,555.00",4/30/2012,R,WOODLANDS ANIMAL CARE LTD     
2012 - JUN,Cultural Env Reg&Plan Services,Waste Collection,Recycling Activities                    ,G00640,Supplies & Services           ,Equip Furniture/Materials     ,DA09,Equip-Purchases,430,964,5/10/2012,R,PJ HARVEY & CO LTD            
2012 - JUN,Cultural Env Reg&Plan Services,Waste Collection,Recycling Activities                    ,G00640,Supplies & Services           ,Equip Furniture/Materials     ,DA09,Equip-Purchases,431,"1,044.00",6/22/2012,R,SCANGUARD LIMITED             
2012 - JUN,Cultural Env Reg&Plan Services,Waste Collection,Recycling Activities                    ,G00640,Supplies & Services           ,Equip Furniture/Materials     ,DA32,Wheeled Bins,432,674.16,5/8/2012,R,UK WASTE CONTAINERS           
2012 - JUN,Cultural Env Reg&Plan Services,Waste Collection,Recycling Activities                    ,G00640,Supplies & Services           ,Equip Furniture/Materials     ,DA32,Wheeled Bins,433,"1,848.00",5/4/2012,R,SPIDER UK LTD                 
2012 - JUN,Cultural Env Reg&Plan Services,Waste Collection,Recycling Activities                    ,G00640,Supplies & Services           ,Equip Furniture/Materials     ,DA32,Wheeled Bins,434,"1,110.00",5/4/2012,R,SPIDER UK LTD                 
2012 - JUN,Cultural Env Reg&Plan Services,Waste Collection,Recycling Activities                    ,G00640,Third Party Payments          ,Private Contractors           ,EH61,Green Waste Disposal,435,"-7,539.94",5/16/2012,R,VIRIDOR WASTE KENT LTD        
2012 - JUN,Cultural Env Reg&Plan Services,Waste Collection,Recycling Collection                    ,G00645,Supplies & Services           ,Clothing Unfrms Laundry       ,DC02,Clothing & Uniforms,436,666.66,5/11/2012,R,SAFETY MANAGEMENT             
2012 - JUN,Cultural Env Reg&Plan Services,Waste Collection,Refuse Collection (Operations)          ,G00661,Transport Related Expenditure ,Direct Transport Costs        ,CA52,Reps Vehicles Ins Claims,437,750,6/2/2012,R,S.E.T.S SERVICES              
2012 - JUN,Cultural Env Reg&Plan Services,Waste Collection,Refuse Collection (Operations)          ,G00661,Supplies & Services           ,Equip Furniture/Materials     ,DA32,Wheeled Bins,438,674.16,5/8/2012,R,UK WASTE CONTAINERS           
2012 - JUN,Cultural Env Reg&Plan Services,Waste Collection,Refuse Collection (Operations)          ,G00661,Supplies & Services           ,Clothing Unfrms Laundry       ,DC02,Clothing & Uniforms,439,666.68,5/11/2012,R,SAFETY MANAGEMENT             
2012 - JUN,Cultural Env Reg&Plan Services,Waste Collection,Commercial Waste Collection             ,G00665,Supplies & Services           ,Equip Furniture/Materials     ,DA32,Wheeled Bins,440,674.16,5/8/2012,R,UK WASTE CONTAINERS           
2012 - JUN,Cultural Env Reg&Plan Services,Street Cleaning - Not highways,Waste Enforcement                       ,G00680,Supplies & Services           ,Services                      ,DF30,Activities Programme,441,"1,920.00",5/29/2012,R,DANGEROUS THEATRE COMPANY     
2012 - JUN,Cultural Env Reg&Plan Services,Street Cleaning - Not highways,Waste Enforcement                       ,G00680,Third Party Payments          ,Private Contractors           ,EH56,Carriageway/Fway Maint,442,685,6/19/2012,R,REDACTED
2012 - JUN,Cultural Env Reg&Plan Services,Consumer Protection,Trading Standards                       ,G00690,Supplies & Services           ,Services                      ,DF11,Counsel's fees,443,765,5/25/2012,R,REDACTED
2012 - JUN,Cultural Env Reg&Plan Services,Environmental Health,Pest Control                            ,G00724,Supplies & Services           ,Equip Furniture/Materials     ,DA09,Equip-Purchases,444,581.3,5/16/2012,R,KILLGERM CHEMICALS LIMITED    
2012 - JUN,Cultural Env Reg&Plan Services,Environmental Health,Housing/Env                             ,G00730,Employees                     ,Direct Employee Expenses      ,AA17,Agency Staff & Casual Paymts,445,901.6,5/23/2012,R,REDACTED
2012 - JUN,Cultural Env Reg&Plan Services,Environmental Health,Housing/Env                             ,G00730,Employees                     ,Direct Employee Expenses      ,AA17,Agency Staff & Casual Paymts,446,611.8,5/16/2012,R,REDACTED
2012 - JUN,Cultural Env Reg&Plan Services,Environmental Health,Housing/Env                             ,G00730,Employees                     ,Direct Employee Expenses      ,AA17,Agency Staff & Casual Paymts,447,901.6,6/6/2012,R,REDACTED
2012 - JUN,Cultural Env Reg&Plan Services,Environmental Health,Housing/Env                             ,G00730,Employees                     ,Direct Employee Expenses      ,AA17,Agency Staff & Casual Paymts,448,869.4,5/9/2012,R,REDACTED
2012 - JUN,Central Services,Gen Grants Bequest & Donations,Vestry Hall                             ,G40314,Premises Related Expenditure  ,Energy Costs                  ,BB03,Gas (incl. Butane),449,595.96,5/24/2012,R,KENT COUNTY COUNCIL           
2012 - JUN,Central Services,Gen Grants Bequest & Donations,Vestry Hall                             ,G40314,Third Party Payments          ,Private Contractors           ,EH02,Miscellaneous Hired Services,450,"1,408.47",5/27/2012,R,DYNAMIQ CLEANING LIMITED      
2012 - JUN,Cultural Env Reg&Plan Services,Building Control,Building Control                        ,H01100,Supplies & Services           ,Services                      ,DF57,Consulting Engineers Fees,451,784,6/13/2012,R,BSI CUSTOMER SERVICES         
2012 - JUN,Cultural Env Reg&Plan Services,Development Control,Development Control                     ,H01130,Supplies & Services           ,Services                      ,DF02,Misc Advertising/Publicity,452,527.04,6/9/2012,R,NEWSQUEST (LONDON)LTD         
2012 - JUN,Cultural Env Reg&Plan Services,Planning Policy,Spatial Policy                          ,H01173,Supplies & Services           ,Services                      ,DF03,Consultants,453,750,6/8/2012,R,PAULA OWEN CONSULTING         
2012 - JUN,Cultural Env Reg&Plan Services,Planning Policy,Spatial Policy                          ,H01173,Third Party Payments          ,Private Contractors           ,EH10,Contract Payments,454,"3,900.00",5/31/2012,R,GVA GRIMLEY LTD               
2012 - JUN,Cultural Env Reg&Plan Services,Planning Policy,REGENERATION & INVESTMENT              ,H01174,Supplies & Services           ,Services                      ,DF03,Consultants,455,"10,000.00",6/12/2012,R,SWBA                          
2012 - JUN,Cultural Env Reg&Plan Services,Planning Policy,REGENERATION & INVESTMENT              ,H01174,Supplies & Services           ,Grants and Subscriptions      ,DJ01,Grants,456,"6,786.00",6/13/2012,R,COURTESY FLOWERS              
2012 - JUN,CS -Oth Operating Inc & Expend,INVESTMENT PROPERTIES,MILES RD GENERATOR                      ,H01203,Premises Related Expenditure  ,Rents                         ,BC01,Miscellaneous Rents,457,"8,000.00",5/10/2012,R,W&R BUXTON LTD PENSION FUND   
2012 - JUN,CS -Oth Operating Inc & Expend,INVESTMENT PROPERTIES,MILES RD GENERATOR                      ,H01203,Third Party Payments          ,Private Contractors           ,EH02,Miscellaneous Hired Services,458,"28,875.00",6/10/2012,R,MERTON CHAMBER OF COMMERCE    
2012 - JUN,CS -Oth Operating Inc & Expend,INVESTMENT PROPERTIES,MILES RD GENERATOR                      ,H01203,Third Party Payments          ,Private Contractors           ,EH02,Miscellaneous Hired Services,459,"28,875.00",4/30/2012,R,MERTON CHAMBER OF COMMERCE    
2012 - JUN,Cultural Env Reg&Plan Services,Economic Development,(LABGI)-BUSINESS SUPPORT                ,H01210,Supplies & Services           ,Services                      ,DF03,Consultants,460,"10,000.00",6/15/2012,R,SHARED INTELLIGENCE LTD       
2012 - JUN,CS -Oth Operating Inc & Expend,Trading A/c Surpluses/Deficits,Transport-Contract Hire                 ,J01374,Transport Related Expenditure ,Direct Transport Costs        ,CA01,Petrol Derv & Oil,461,"38,831.22",5/25/2012,R,EMO OILS LTD                  
2012 - JUN,CS -Oth Operating Inc & Expend,Trading A/c Surpluses/Deficits,Transport-Contract Hire                 ,J01374,Transport Related Expenditure ,Contract Hire and Op Leasing  ,CC53,Plant Hire for MRCS,462,"3,045.00",6/1/2012,R,FARID MUNICIPAL VEHICLES LTD  
2012 - JUN,CS -Oth Operating Inc & Expend,Trading A/c Surpluses/Deficits,Transport-Contract Hire                 ,J01374,Transport Related Expenditure ,Contract Hire and Op Leasing  ,CC53,Plant Hire for MRCS,463,"1,311.00",6/1/2012,R,GVS HIRE LTD                  
2012 - JUN,CS -Oth Operating Inc & Expend,Trading A/c Surpluses/Deficits,Transport-Contract Hire                 ,J01374,Transport Related Expenditure ,Contract Hire and Op Leasing  ,CC53,Plant Hire for MRCS,464,"1,219.00",6/1/2012,R,GVS HIRE LTD                  
2012 - JUN,CS -Oth Operating Inc & Expend,Trading A/c Surpluses/Deficits,Transport-Contract Hire                 ,J01374,Transport Related Expenditure ,Contract Hire and Op Leasing  ,CC53,Plant Hire for MRCS,465,759,6/1/2012,R,GVS HIRE LTD                  
2012 - JUN,CS -Oth Operating Inc & Expend,Trading A/c Surpluses/Deficits,Transport-Contract Hire                 ,J01374,Transport Related Expenditure ,Contract Hire and Op Leasing  ,CC53,Plant Hire for MRCS,466,840,5/28/2012,R,GULLIVER'S TRUCK HIRE LTD.    
2012 - JUN,CS -Oth Operating Inc & Expend,Trading A/c Surpluses/Deficits,Transport-Contract Hire                 ,J01374,Transport Related Expenditure ,Contract Hire and Op Leasing  ,CC53,Plant Hire for MRCS,467,"2,000.00",5/25/2012,R,NOBLET MUNICIPAL SERVICES LTD 
2012 - JUN,CS -Oth Operating Inc & Expend,Trading A/c Surpluses/Deficits,Transport-Contract Hire                 ,J01374,Transport Related Expenditure ,Contract Hire and Op Leasing  ,CC53,Plant Hire for MRCS,468,650,5/25/2012,R,GO PLANT                      
2012 - JUN,CS -Oth Operating Inc & Expend,Trading A/c Surpluses/Deficits,Transport-Contract Hire                 ,J01374,Transport Related Expenditure ,Contract Hire and Op Leasing  ,CC53,Plant Hire for MRCS,469,535,5/28/2012,R,PHOENIX VEHICLE HIRE LTD      
2012 - JUN,CS -Oth Operating Inc & Expend,Trading A/c Surpluses/Deficits,Transport-Contract Hire                 ,J01374,Transport Related Expenditure ,Contract Hire and Op Leasing  ,CC53,Plant Hire for MRCS,470,535,5/28/2012,R,PHOENIX VEHICLE HIRE LTD      
2012 - JUN,CS -Oth Operating Inc & Expend,Trading A/c Surpluses/Deficits,Transport-Contract Hire                 ,J01374,Transport Related Expenditure ,Contract Hire and Op Leasing  ,CC53,Plant Hire for MRCS,471,851,5/31/2012,R,SHB HIRE LTD                  
2012 - JUN,CS -Oth Operating Inc & Expend,Trading A/c Surpluses/Deficits,Transport-Contract Hire                 ,J01374,Transport Related Expenditure ,Contract Hire and Op Leasing  ,CC53,Plant Hire for MRCS,472,851,5/31/2012,R,SHB HIRE LTD                  
2012 - JUN,CS -Oth Operating Inc & Expend,Trading A/c Surpluses/Deficits,Transport-Contract Hire                 ,J01374,Transport Related Expenditure ,Contract Hire and Op Leasing  ,CC53,Plant Hire for MRCS,473,851,5/31/2012,R,SHB HIRE LTD                  
2012 - JUN,CS -Oth Operating Inc & Expend,Trading A/c Surpluses/Deficits,Transport-Contract Hire                 ,J01374,Transport Related Expenditure ,Contract Hire and Op Leasing  ,CC53,Plant Hire for MRCS,474,"1,541.00",5/31/2012,R,SHB HIRE LTD                  
2012 - JUN,CS -Oth Operating Inc & Expend,Trading A/c Surpluses/Deficits,Transport-Contract Hire                 ,J01374,Transport Related Expenditure ,Contract Hire and Op Leasing  ,CC53,Plant Hire for MRCS,475,840,6/7/2012,R,GULLIVER'S TRUCK HIRE LTD.    
2012 - JUN,CS -Oth Operating Inc & Expend,Trading A/c Surpluses/Deficits,Transport-Contract Hire                 ,J01374,Transport Related Expenditure ,Contract Hire and Op Leasing  ,CC53,Plant Hire for MRCS,476,"2,576.00",6/15/2012,R,GVS HIRE LTD                  
2012 - JUN,CS -Oth Operating Inc & Expend,Trading A/c Surpluses/Deficits,Transport-Contract Hire                 ,J01374,Transport Related Expenditure ,Contract Hire and Op Leasing  ,CC53,Plant Hire for MRCS,477,840,6/18/2012,R,GULLIVER'S TRUCK HIRE LTD.    
2012 - JUN,CS -Oth Operating Inc & Expend,Trading A/c Surpluses/Deficits,Transport-Contract Hire                 ,J01374,Transport Related Expenditure ,Contract Hire and Op Leasing  ,CC53,Plant Hire for MRCS,478,535,6/17/2012,R,PHOENIX VEHICLE HIRE LTD      
2012 - JUN,CS -Oth Operating Inc & Expend,Trading A/c Surpluses/Deficits,Transport-Contract Hire                 ,J01374,Transport Related Expenditure ,Contract Hire and Op Leasing  ,CC53,Plant Hire for MRCS,479,535,6/11/2012,R,PHOENIX VEHICLE HIRE LTD      
2012 - JUN,CS -Oth Operating Inc & Expend,Trading A/c Surpluses/Deficits,Transport-Contract Hire                 ,J01374,Transport Related Expenditure ,Contract Hire and Op Leasing  ,CC53,Plant Hire for MRCS,480,535,6/1/2012,R,PHOENIX VEHICLE HIRE LTD      
2012 - JUN,CS -Oth Operating Inc & Expend,Trading A/c Surpluses/Deficits,Transport-Contract Hire                 ,J01374,Transport Related Expenditure ,Contract Hire and Op Leasing  ,CC53,Plant Hire for MRCS,481,535,6/1/2012,R,PHOENIX VEHICLE HIRE LTD      
2012 - JUN,CS -Oth Operating Inc & Expend,Trading A/c Surpluses/Deficits,Transport-Contract Hire                 ,J01374,Transport Related Expenditure ,Contract Hire and Op Leasing  ,CC53,Plant Hire for MRCS,482,840,6/11/2012,R,GULLIVER'S TRUCK HIRE LTD.    
2012 - JUN,CS -Oth Operating Inc & Expend,Trading A/c Surpluses/Deficits,Transport-Contract Hire                 ,J01374,Transport Related Expenditure ,Contract Hire and Op Leasing  ,CC53,Plant Hire for MRCS,483,535,6/17/2012,R,PHOENIX VEHICLE HIRE LTD      
2012 - JUN,CS -Oth Operating Inc & Expend,Trading A/c Surpluses/Deficits,Transport-Contract Hire                 ,J01374,Transport Related Expenditure ,Contract Hire and Op Leasing  ,CC53,Plant Hire for MRCS,484,535,6/11/2012,R,PHOENIX VEHICLE HIRE LTD      
2012 - JUN,CS -Oth Operating Inc & Expend,Trading A/c Surpluses/Deficits,Transport-Contract Hire                 ,J01374,Transport Related Expenditure ,Contract Hire and Op Leasing  ,CC57,Plant Hire for Housing,485,702,5/20/2012,R,KENT COUNTY COUNCIL           
2012 - JUN,CS -Oth Operating Inc & Expend,Trading A/c Surpluses/Deficits,Transport-Contract Hire                 ,J01374,Transport Related Expenditure ,Contract Hire and Op Leasing  ,CC57,Plant Hire for Housing,486,940,5/31/2012,R,REDACTED
2012 - JUN,CS -Oth Operating Inc & Expend,Trading A/c Surpluses/Deficits,Transport-Contract Hire                 ,J01374,Transport Related Expenditure ,Contract Hire and Op Leasing  ,CC58,Plant Hire - Ad Hoc,487,"-1,360.06",5/15/2012,R,DAWSON RENTALS BUS AND COACH  
2012 - JUN,CS -Oth Operating Inc & Expend,Trading A/c Surpluses/Deficits,Transport-Contract Hire                 ,J01374,Transport Related Expenditure ,Contract Hire and Op Leasing  ,CC58,Plant Hire - Ad Hoc,488,847,6/1/2012,R,GVS HIRE LTD                  
2012 - JUN,CS -Oth Operating Inc & Expend,Trading A/c Surpluses/Deficits,Transport-Contract Hire                 ,J01374,Transport Related Expenditure ,Contract Hire and Op Leasing  ,CC58,Plant Hire - Ad Hoc,489,847,6/1/2012,R,GVS HIRE LTD                  
2012 - JUN,CS -Oth Operating Inc & Expend,Trading A/c Surpluses/Deficits,Transport-Contract Hire                 ,J01374,Transport Related Expenditure ,Contract Hire and Op Leasing  ,CC59,Plant Hire - Non Rechargeable,490,804,5/25/2012,R,BURNT TREE VEHICLE RENTAL     
2012 - JUN,CS -Oth Operating Inc & Expend,Trading A/c Surpluses/Deficits,Transport-Contract Hire                 ,J01374,Transport Related Expenditure ,Contract Hire and Op Leasing  ,CC59,Plant Hire - Non Rechargeable,491,"1,458.62",6/4/2012,R,DAWSON RENTALS BUS AND COACH  
2012 - JUN,CS -Oth Operating Inc & Expend,Trading A/c Surpluses/Deficits,Transport-Contract Hire                 ,J01374,Transport Related Expenditure ,Contract Hire and Op Leasing  ,CC59,Plant Hire - Non Rechargeable,492,"1,458.62",6/4/2012,R,DAWSON RENTALS BUS AND COACH  
2012 - JUN,CS -Oth Operating Inc & Expend,Trading A/c Surpluses/Deficits,Transport-Contract Hire                 ,J01374,Transport Related Expenditure ,Contract Hire and Op Leasing  ,CC59,Plant Hire - Non Rechargeable,493,804,5/31/2012,R,BURNT TREE VEHICLE RENTAL     
2012 - JUN,CS -Oth Operating Inc & Expend,Trading A/c Surpluses/Deficits,Transport-Contract Hire                 ,J01374,Transport Related Expenditure ,Contract Hire and Op Leasing  ,CC59,Plant Hire - Non Rechargeable,494,"1,541.00",5/31/2012,R,BURNT TREE VEHICLE RENTAL     
2012 - JUN,CS -Oth Operating Inc & Expend,Trading A/c Surpluses/Deficits,Transport-Contract Hire                 ,J01374,Transport Related Expenditure ,Contract Hire and Op Leasing  ,CC59,Plant Hire - Non Rechargeable,495,"1,541.00",5/31/2012,R,BURNT TREE VEHICLE RENTAL     
2012 - JUN,CS -Oth Operating Inc & Expend,Trading A/c Surpluses/Deficits,Transport-Contract Hire                 ,J01374,Transport Related Expenditure ,Contract Hire and Op Leasing  ,CC59,Plant Hire - Non Rechargeable,496,"1,458.62",7/4/2012,R,DAWSON RENTALS BUS AND COACH  
2012 - JUN,CS -Oth Operating Inc & Expend,Trading A/c Surpluses/Deficits,Transport-Contract Hire                 ,J01374,Transport Related Expenditure ,Contract Hire and Op Leasing  ,CC59,Plant Hire - Non Rechargeable,497,"1,458.62",7/4/2012,R,DAWSON RENTALS BUS AND COACH  
2012 - JUN,CS -Oth Operating Inc & Expend,Trading A/c Surpluses/Deficits,Transport-Contract Hire                 ,J01374,Transport Related Expenditure ,Contract Hire and Op Leasing  ,CC60,Vehicle Hire for LB Sutton,498,814,5/31/2012,R,CAPITAL CARS                  
2012 - JUN,CS -Oth Operating Inc & Expend,Trading A/c Surpluses/Deficits,Transport-Contract Hire                 ,J01374,Transport Related Expenditure ,Contract Hire and Op Leasing  ,CC64,Mini Cab Hire for Education,499,520,4/30/2012,R,CAREFIRST24                   
2012 - JUN,CS -Oth Operating Inc & Expend,Trading A/c Surpluses/Deficits,Transport-Contract Hire                 ,J01374,Transport Related Expenditure ,Contract Hire and Op Leasing  ,CC64,Mini Cab Hire for Education,500,910,5/14/2012,R,CAREFIRST24                   
2012 - JUN,CS -Oth Operating Inc & Expend,Trading A/c Surpluses/Deficits,Transport-Contract Hire                 ,J01374,Transport Related Expenditure ,Contract Hire and Op Leasing  ,CC64,Mini Cab Hire for Education,501,910,4/30/2012,R,SHERWOOD TRANSPORT GROUP      
2012 - JUN,CS -Oth Operating Inc & Expend,Trading A/c Surpluses/Deficits,Transport-Contract Hire                 ,J01374,Transport Related Expenditure ,Contract Hire and Op Leasing  ,CC64,Mini Cab Hire for Education,502,"8,068.76",6/3/2012,R,KINGSTON ACCESSIBILITY TRAN LT
2012 - JUN,CS -Oth Operating Inc & Expend,Trading A/c Surpluses/Deficits,Transport-Contract Hire                 ,J01374,Transport Related Expenditure ,Contract Hire and Op Leasing  ,CC64,Mini Cab Hire for Education,503,875,5/31/2012,R,BARCLAYS ASSET & SALES FINANCE
2012 - JUN,CS -Oth Operating Inc & Expend,Trading A/c Surpluses/Deficits,Transport-Contract Hire                 ,J01374,Transport Related Expenditure ,Contract Hire and Op Leasing  ,CC64,Mini Cab Hire for Education,504,"1,790.00",5/31/2012,R,BARCLAYS ASSET & SALES FINANCE
2012 - JUN,CS -Oth Operating Inc & Expend,Trading A/c Surpluses/Deficits,Transport-Contract Hire                 ,J01374,Transport Related Expenditure ,Contract Hire and Op Leasing  ,CC64,Mini Cab Hire for Education,505,"2,112.00",5/31/2012,R,BARCLAYS ASSET & SALES FINANCE
2012 - JUN,CS -Oth Operating Inc & Expend,Trading A/c Surpluses/Deficits,Transport-Contract Hire                 ,J01374,Transport Related Expenditure ,Contract Hire and Op Leasing  ,CC64,Mini Cab Hire for Education,506,"1,672.00",5/31/2012,R,BARCLAYS ASSET & SALES FINANCE
2012 - JUN,CS -Oth Operating Inc & Expend,Trading A/c Surpluses/Deficits,Transport-Contract Hire                 ,J01374,Transport Related Expenditure ,Contract Hire and Op Leasing  ,CC64,Mini Cab Hire for Education,507,"2,860.00",5/31/2012,R,BARCLAYS ASSET & SALES FINANCE
2012 - JUN,CS -Oth Operating Inc & Expend,Trading A/c Surpluses/Deficits,Transport-Contract Hire                 ,J01374,Transport Related Expenditure ,Contract Hire and Op Leasing  ,CC64,Mini Cab Hire for Education,508,"2,640.00",5/31/2012,R,BARCLAYS ASSET & SALES FINANCE
2012 - JUN,CS -Oth Operating Inc & Expend,Trading A/c Surpluses/Deficits,Transport-Contract Hire                 ,J01374,Transport Related Expenditure ,Contract Hire and Op Leasing  ,CC64,Mini Cab Hire for Education,509,"6,540.24",5/31/2012,R,BARCLAYS ASSET & SALES FINANCE
2012 - JUN,CS -Oth Operating Inc & Expend,Trading A/c Surpluses/Deficits,Transport-Contract Hire                 ,J01374,Transport Related Expenditure ,Contract Hire and Op Leasing  ,CC64,Mini Cab Hire for Education,510,"1,100.00",5/31/2012,R,BARCLAYS ASSET & SALES FINANCE
2012 - JUN,CS -Oth Operating Inc & Expend,Trading A/c Surpluses/Deficits,Transport-Contract Hire                 ,J01374,Transport Related Expenditure ,Contract Hire and Op Leasing  ,CC64,Mini Cab Hire for Education,511,"1,330.00",5/31/2012,R,BARCLAYS ASSET & SALES FINANCE
2012 - JUN,CS -Oth Operating Inc & Expend,Trading A/c Surpluses/Deficits,Transport-Contract Hire                 ,J01374,Transport Related Expenditure ,Contract Hire and Op Leasing  ,CC64,Mini Cab Hire for Education,512,"1,764.00",5/31/2012,R,BARCLAYS ASSET & SALES FINANCE
2012 - JUN,CS -Oth Operating Inc & Expend,Trading A/c Surpluses/Deficits,Transport-Contract Hire                 ,J01374,Transport Related Expenditure ,Contract Hire and Op Leasing  ,CC64,Mini Cab Hire for Education,513,964.5,5/31/2012,R,BARCLAYS ASSET & SALES FINANCE
2012 - JUN,CS -Oth Operating Inc & Expend,Trading A/c Surpluses/Deficits,Transport-Contract Hire                 ,J01374,Transport Related Expenditure ,Contract Hire and Op Leasing  ,CC64,Mini Cab Hire for Education,514,"1,344.00",5/31/2012,R,BARCLAYS ASSET & SALES FINANCE
2012 - JUN,CS -Oth Operating Inc & Expend,Trading A/c Surpluses/Deficits,Transport-Contract Hire                 ,J01374,Transport Related Expenditure ,Contract Hire and Op Leasing  ,CC64,Mini Cab Hire for Education,515,"2,552.00",5/31/2012,R,BARCLAYS ASSET & SALES FINANCE
2012 - JUN,CS -Oth Operating Inc & Expend,Trading A/c Surpluses/Deficits,Transport-Contract Hire                 ,J01374,Transport Related Expenditure ,Contract Hire and Op Leasing  ,CC64,Mini Cab Hire for Education,516,"2,816.00",5/31/2012,R,BARCLAYS ASSET & SALES FINANCE
2012 - JUN,CS -Oth Operating Inc & Expend,Trading A/c Surpluses/Deficits,Transport-Contract Hire                 ,J01374,Transport Related Expenditure ,Contract Hire and Op Leasing  ,CC64,Mini Cab Hire for Education,517,"3,520.00",5/31/2012,R,BARCLAYS ASSET & SALES FINANCE
2012 - JUN,CS -Oth Operating Inc & Expend,Trading A/c Surpluses/Deficits,Transport-Contract Hire                 ,J01374,Transport Related Expenditure ,Contract Hire and Op Leasing  ,CC64,Mini Cab Hire for Education,518,"1,184.00",5/31/2012,R,BARCLAYS ASSET & SALES FINANCE
2012 - JUN,CS -Oth Operating Inc & Expend,Trading A/c Surpluses/Deficits,Transport-Contract Hire                 ,J01374,Transport Related Expenditure ,Contract Hire and Op Leasing  ,CC64,Mini Cab Hire for Education,519,"1,890.00",5/31/2012,R,BARCLAYS ASSET & SALES FINANCE
2012 - JUN,CS -Oth Operating Inc & Expend,Trading A/c Surpluses/Deficits,Transport-Contract Hire                 ,J01374,Transport Related Expenditure ,Contract Hire and Op Leasing  ,CC64,Mini Cab Hire for Education,520,"2,046.00",5/31/2012,R,BARCLAYS ASSET & SALES FINANCE
2012 - JUN,CS -Oth Operating Inc & Expend,Trading A/c Surpluses/Deficits,Transport-Contract Hire                 ,J01374,Transport Related Expenditure ,Contract Hire and Op Leasing  ,CC64,Mini Cab Hire for Education,521,"1,672.00",5/31/2012,R,BARCLAYS ASSET & SALES FINANCE
2012 - JUN,CS -Oth Operating Inc & Expend,Trading A/c Surpluses/Deficits,Transport-Contract Hire                 ,J01374,Transport Related Expenditure ,Contract Hire and Op Leasing  ,CC64,Mini Cab Hire for Education,522,"1,787.68",5/31/2012,R,BARCLAYS ASSET & SALES FINANCE
2012 - JUN,CS -Oth Operating Inc & Expend,Trading A/c Surpluses/Deficits,Transport-Contract Hire                 ,J01374,Transport Related Expenditure ,Contract Hire and Op Leasing  ,CC64,Mini Cab Hire for Education,523,"2,828.00",5/31/2012,R,BARCLAYS ASSET & SALES FINANCE
2012 - JUN,CS -Oth Operating Inc & Expend,Trading A/c Surpluses/Deficits,Transport-Contract Hire                 ,J01374,Transport Related Expenditure ,Contract Hire and Op Leasing  ,CC64,Mini Cab Hire for Education,524,"1,092.00",5/31/2012,R,BARCLAYS ASSET & SALES FINANCE
2012 - JUN,CS -Oth Operating Inc & Expend,Trading A/c Surpluses/Deficits,Transport-Contract Hire                 ,J01374,Transport Related Expenditure ,Contract Hire and Op Leasing  ,CC64,Mini Cab Hire for Education,525,"1,530.00",5/31/2012,R,BARCLAYS ASSET & SALES FINANCE
2012 - JUN,CS -Oth Operating Inc & Expend,Trading A/c Surpluses/Deficits,Transport-Contract Hire                 ,J01374,Transport Related Expenditure ,Contract Hire and Op Leasing  ,CC64,Mini Cab Hire for Education,526,"1,100.00",5/31/2012,R,BARCLAYS ASSET & SALES FINANCE
2012 - JUN,CS -Oth Operating Inc & Expend,Trading A/c Surpluses/Deficits,Transport-Contract Hire                 ,J01374,Transport Related Expenditure ,Contract Hire and Op Leasing  ,CC64,Mini Cab Hire for Education,527,"2,728.00",5/31/2012,R,BARCLAYS ASSET & SALES FINANCE
2012 - JUN,CS -Oth Operating Inc & Expend,Trading A/c Surpluses/Deficits,Transport-Contract Hire                 ,J01374,Transport Related Expenditure ,Contract Hire and Op Leasing  ,CC64,Mini Cab Hire for Education,528,875,5/31/2012,R,BARCLAYS ASSET & SALES FINANCE
2012 - JUN,CS -Oth Operating Inc & Expend,Trading A/c Surpluses/Deficits,Transport-Contract Hire                 ,J01374,Transport Related Expenditure ,Contract Hire and Op Leasing  ,CC64,Mini Cab Hire for Education,529,"3,080.00",5/31/2012,R,BARCLAYS ASSET & SALES FINANCE
2012 - JUN,CS -Oth Operating Inc & Expend,Trading A/c Surpluses/Deficits,Transport-Contract Hire                 ,J01374,Transport Related Expenditure ,Contract Hire and Op Leasing  ,CC64,Mini Cab Hire for Education,530,"3,124.00",5/31/2012,R,BARCLAYS ASSET & SALES FINANCE
2012 - JUN,CS -Oth Operating Inc & Expend,Trading A/c Surpluses/Deficits,Transport-Contract Hire                 ,J01374,Transport Related Expenditure ,Contract Hire and Op Leasing  ,CC64,Mini Cab Hire for Education,531,"2,068.00",5/31/2012,R,BARCLAYS ASSET & SALES FINANCE
2012 - JUN,CS -Oth Operating Inc & Expend,Trading A/c Surpluses/Deficits,Transport-Contract Hire                 ,J01374,Transport Related Expenditure ,Contract Hire and Op Leasing  ,CC64,Mini Cab Hire for Education,532,"3,328.16",5/31/2012,R,BARCLAYS ASSET & SALES FINANCE
2012 - JUN,CS -Oth Operating Inc & Expend,Trading A/c Surpluses/Deficits,Transport-Contract Hire                 ,J01374,Transport Related Expenditure ,Contract Hire and Op Leasing  ,CC64,Mini Cab Hire for Education,533,"1,056.00",5/31/2012,R,NVCAR HIRE LTD                
2012 - JUN,CS -Oth Operating Inc & Expend,Trading A/c Surpluses/Deficits,Transport-Contract Hire                 ,J01374,Transport Related Expenditure ,Contract Hire and Op Leasing  ,CC64,Mini Cab Hire for Education,534,528,5/31/2012,R,NVCAR HIRE LTD                
2012 - JUN,CS -Oth Operating Inc & Expend,Trading A/c Surpluses/Deficits,Transport-Contract Hire                 ,J01374,Transport Related Expenditure ,Contract Hire and Op Leasing  ,CC64,Mini Cab Hire for Education,535,"2,024.00",5/31/2012,R,BARCLAYS ASSET & SALES FINANCE
2012 - JUN,CS -Oth Operating Inc & Expend,Trading A/c Surpluses/Deficits,Transport-Contract Hire                 ,J01374,Transport Related Expenditure ,Contract Hire and Op Leasing  ,CC64,Mini Cab Hire for Education,536,"1,786.00",5/31/2012,R,NVCAR HIRE LTD                
2012 - JUN,CS -Oth Operating Inc & Expend,Trading A/c Surpluses/Deficits,Transport-Contract Hire                 ,J01374,Transport Related Expenditure ,Contract Hire and Op Leasing  ,CC64,Mini Cab Hire for Education,537,"1,848.00",5/31/2012,R,NVCAR HIRE LTD                
2012 - JUN,CS -Oth Operating Inc & Expend,Trading A/c Surpluses/Deficits,Transport-Contract Hire                 ,J01374,Transport Related Expenditure ,Contract Hire and Op Leasing  ,CC64,Mini Cab Hire for Education,538,885,5/31/2012,R,NVCAR HIRE LTD                
2012 - JUN,CS -Oth Operating Inc & Expend,Trading A/c Surpluses/Deficits,Transport-Contract Hire                 ,J01374,Transport Related Expenditure ,Contract Hire and Op Leasing  ,CC64,Mini Cab Hire for Education,539,"1,496.00",5/31/2012,R,BRUNSWICK CARS LTD            
2012 - JUN,CS -Oth Operating Inc & Expend,Trading A/c Surpluses/Deficits,Transport-Contract Hire                 ,J01374,Transport Related Expenditure ,Contract Hire and Op Leasing  ,CC64,Mini Cab Hire for Education,540,"1,188.00",5/31/2012,R,CAPITAL CARS                  
2012 - JUN,CS -Oth Operating Inc & Expend,Trading A/c Surpluses/Deficits,Transport-Contract Hire                 ,J01374,Transport Related Expenditure ,Contract Hire and Op Leasing  ,CC64,Mini Cab Hire for Education,541,"2,860.00",5/31/2012,R,CAPITAL CARS                  
2012 - JUN,CS -Oth Operating Inc & Expend,Trading A/c Surpluses/Deficits,Transport-Contract Hire                 ,J01374,Transport Related Expenditure ,Contract Hire and Op Leasing  ,CC64,Mini Cab Hire for Education,542,"1,591.00",5/31/2012,R,CAPITAL CARS                  
2012 - JUN,CS -Oth Operating Inc & Expend,Trading A/c Surpluses/Deficits,Transport-Contract Hire                 ,J01374,Transport Related Expenditure ,Contract Hire and Op Leasing  ,CC64,Mini Cab Hire for Education,543,855,5/31/2012,R,CAPITAL CARS                  
2012 - JUN,CS -Oth Operating Inc & Expend,Trading A/c Surpluses/Deficits,Transport-Contract Hire                 ,J01374,Transport Related Expenditure ,Contract Hire and Op Leasing  ,CC64,Mini Cab Hire for Education,544,528,5/31/2012,R,CAPITAL CARS                  
2012 - JUN,CS -Oth Operating Inc & Expend,Trading A/c Surpluses/Deficits,Transport-Contract Hire                 ,J01374,Transport Related Expenditure ,Contract Hire and Op Leasing  ,CC64,Mini Cab Hire for Education,545,760,5/31/2012,R,CAPITAL CARS                  
2012 - JUN,CS -Oth Operating Inc & Expend,Trading A/c Surpluses/Deficits,Transport-Contract Hire                 ,J01374,Transport Related Expenditure ,Contract Hire and Op Leasing  ,CC64,Mini Cab Hire for Education,546,693,5/30/2012,R,CALVERTON FACTORS LTD         
2012 - JUN,CS -Oth Operating Inc & Expend,Trading A/c Surpluses/Deficits,Transport-Contract Hire                 ,J01374,Transport Related Expenditure ,Contract Hire and Op Leasing  ,CC64,Mini Cab Hire for Education,547,"1,864.00",5/31/2012,R,CAPITAL CARS                  
2012 - JUN,CS -Oth Operating Inc & Expend,Trading A/c Surpluses/Deficits,Transport-Contract Hire                 ,J01374,Transport Related Expenditure ,Contract Hire and Op Leasing  ,CC64,Mini Cab Hire for Education,548,"1,100.00",5/31/2012,R,CAPITAL CARS                  
2012 - JUN,CS -Oth Operating Inc & Expend,Trading A/c Surpluses/Deficits,Transport-Contract Hire                 ,J01374,Transport Related Expenditure ,Contract Hire and Op Leasing  ,CC64,Mini Cab Hire for Education,549,"2,860.00",5/30/2012,R,CALVERTON FACTORS LTD         
2012 - JUN,CS -Oth Operating Inc & Expend,Trading A/c Surpluses/Deficits,Transport-Contract Hire                 ,J01374,Transport Related Expenditure ,Contract Hire and Op Leasing  ,CC64,Mini Cab Hire for Education,550,735,5/31/2012,R,AERIAL CAR SERVICES LTD       
2012 - JUN,CS -Oth Operating Inc & Expend,Trading A/c Surpluses/Deficits,Transport-Contract Hire                 ,J01374,Transport Related Expenditure ,Contract Hire and Op Leasing  ,CC64,Mini Cab Hire for Education,551,968,5/31/2012,R,AERIAL CAR SERVICES LTD       
2012 - JUN,CS -Oth Operating Inc & Expend,Trading A/c Surpluses/Deficits,Transport-Contract Hire                 ,J01374,Transport Related Expenditure ,Contract Hire and Op Leasing  ,CC64,Mini Cab Hire for Education,552,"2,002.00",5/31/2012,R,SHERWOOD TRANSPORT GROUP      
2012 - JUN,CS -Oth Operating Inc & Expend,Trading A/c Surpluses/Deficits,Transport-Contract Hire                 ,J01374,Transport Related Expenditure ,Contract Hire and Op Leasing  ,CC64,Mini Cab Hire for Education,553,"1,540.00",5/31/2012,R,SHERWOOD TRANSPORT GROUP      
2012 - JUN,CS -Oth Operating Inc & Expend,Trading A/c Surpluses/Deficits,Transport-Contract Hire                 ,J01374,Transport Related Expenditure ,Contract Hire and Op Leasing  ,CC64,Mini Cab Hire for Education,554,"2,385.00",5/31/2012,R,SHERWOOD TRANSPORT GROUP      
2012 - JUN,CS -Oth Operating Inc & Expend,Trading A/c Surpluses/Deficits,Transport-Contract Hire                 ,J01374,Transport Related Expenditure ,Contract Hire and Op Leasing  ,CC64,Mini Cab Hire for Education,555,"1,232.00",5/31/2012,R,SILVERBURN FINANCE (UK) LTD   
2012 - JUN,CS -Oth Operating Inc & Expend,Trading A/c Surpluses/Deficits,Transport-Contract Hire                 ,J01374,Transport Related Expenditure ,Contract Hire and Op Leasing  ,CC64,Mini Cab Hire for Education,556,"1,997.20",5/31/2012,R,SILVERBURN FINANCE (UK) LTD   
2012 - JUN,CS -Oth Operating Inc & Expend,Trading A/c Surpluses/Deficits,Transport-Contract Hire                 ,J01374,Transport Related Expenditure ,Contract Hire and Op Leasing  ,CC64,Mini Cab Hire for Education,557,899.8,5/31/2012,R,SILVERBURN FINANCE (UK) LTD   
2012 - JUN,CS -Oth Operating Inc & Expend,Trading A/c Surpluses/Deficits,Transport-Contract Hire                 ,J01374,Transport Related Expenditure ,Contract Hire and Op Leasing  ,CC64,Mini Cab Hire for Education,558,"1,885.55",5/31/2012,R,SILVERBURN FINANCE (UK) LTD   
2012 - JUN,CS -Oth Operating Inc & Expend,Trading A/c Surpluses/Deficits,Transport-Contract Hire                 ,J01374,Transport Related Expenditure ,Contract Hire and Op Leasing  ,CC64,Mini Cab Hire for Education,559,"2,112.00",5/31/2012,R,SILVERBURN FINANCE (UK) LTD   
2012 - JUN,CS -Oth Operating Inc & Expend,Trading A/c Surpluses/Deficits,Transport-Contract Hire                 ,J01374,Transport Related Expenditure ,Contract Hire and Op Leasing  ,CC64,Mini Cab Hire for Education,560,"1,232.00",5/31/2012,R,SILVERBURN FINANCE (UK) LTD   
2012 - JUN,CS -Oth Operating Inc & Expend,Trading A/c Surpluses/Deficits,Transport-Contract Hire                 ,J01374,Transport Related Expenditure ,Contract Hire and Op Leasing  ,CC64,Mini Cab Hire for Education,561,"7,891.28",6/17/2012,R,KINGSTON ACCESSIBILITY TRAN LT
2012 - JUN,CS -Oth Operating Inc & Expend,Trading A/c Surpluses/Deficits,Transport-Contract Hire                 ,J01374,Transport Related Expenditure ,Contract Hire and Op Leasing  ,CC64,Mini Cab Hire for Education,562,595,5/31/2012,R,SILVERBURN FINANCE (UK) LTD   
2012 - JUN,CS -Oth Operating Inc & Expend,Trading A/c Surpluses/Deficits,Transport-Contract Hire                 ,J01374,Transport Related Expenditure ,Contract Hire and Op Leasing  ,CC64,Mini Cab Hire for Education,563,"2,112.00",5/31/2012,R,SILVERBURN FINANCE (UK) LTD   
2012 - JUN,CS -Oth Operating Inc & Expend,Trading A/c Surpluses/Deficits,Transport-Contract Hire                 ,J01374,Transport Related Expenditure ,Contract Hire and Op Leasing  ,CC64,Mini Cab Hire for Education,564,"1,056.00",5/31/2012,R,SILVERBURN FINANCE (UK) LTD   
2012 - JUN,CS -Oth Operating Inc & Expend,Trading A/c Surpluses/Deficits,Transport-Contract Hire                 ,J01374,Transport Related Expenditure ,Contract Hire and Op Leasing  ,CC64,Mini Cab Hire for Education,565,792,5/31/2012,R,SILVERBURN FINANCE (UK) LTD   
2012 - JUN,CS -Oth Operating Inc & Expend,Trading A/c Surpluses/Deficits,Transport-Contract Hire                 ,J01374,Transport Related Expenditure ,Contract Hire and Op Leasing  ,CC64,Mini Cab Hire for Education,566,"1,584.00",5/31/2012,R,SILVERBURN FINANCE (UK) LTD   
2012 - JUN,CS -Oth Operating Inc & Expend,Trading A/c Surpluses/Deficits,Transport-Contract Hire                 ,J01374,Transport Related Expenditure ,Contract Hire and Op Leasing  ,CC64,Mini Cab Hire for Education,567,528,5/31/2012,R,AERIAL CAR SERVICES LTD       
2012 - JUN,CS -Oth Operating Inc & Expend,Trading A/c Surpluses/Deficits,Transport-Contract Hire                 ,J01374,Transport Related Expenditure ,Contract Hire and Op Leasing  ,CC64,Mini Cab Hire for Education,568,675,5/31/2012,R,AERIAL CAR SERVICES LTD       
2012 - JUN,CS -Oth Operating Inc & Expend,Trading A/c Surpluses/Deficits,Transport-Contract Hire                 ,J01374,Transport Related Expenditure ,Contract Hire and Op Leasing  ,CC64,Mini Cab Hire for Education,569,580,5/31/2012,R,SHERWOOD TRANSPORT GROUP      
2012 - JUN,CS -Oth Operating Inc & Expend,Trading A/c Surpluses/Deficits,Transport-Contract Hire                 ,J01374,Transport Related Expenditure ,Contract Hire and Op Leasing  ,CC64,Mini Cab Hire for Education,570,"1,362.90",5/31/2012,R,SHERWOOD TRANSPORT GROUP      
2012 - JUN,CS -Oth Operating Inc & Expend,Trading A/c Surpluses/Deficits,Transport-Contract Hire                 ,J01374,Transport Related Expenditure ,Contract Hire and Op Leasing  ,CC64,Mini Cab Hire for Education,571,"1,298.00",5/31/2012,R,SHERWOOD TRANSPORT GROUP      
2012 - JUN,CS -Oth Operating Inc & Expend,Trading A/c Surpluses/Deficits,Transport-Contract Hire                 ,J01374,Transport Related Expenditure ,Contract Hire and Op Leasing  ,CC64,Mini Cab Hire for Education,572,"2,123.80",5/31/2012,R,SHERWOOD TRANSPORT GROUP      
2012 - JUN,CS -Oth Operating Inc & Expend,Trading A/c Surpluses/Deficits,Transport-Contract Hire                 ,J01374,Transport Related Expenditure ,Contract Hire and Op Leasing  ,CC64,Mini Cab Hire for Education,573,770,5/31/2012,R,SHERWOOD TRANSPORT GROUP      
2012 - JUN,CS -Oth Operating Inc & Expend,Trading A/c Surpluses/Deficits,Transport-Contract Hire                 ,J01374,Transport Related Expenditure ,Contract Hire and Op Leasing  ,CC64,Mini Cab Hire for Education,574,"1,932.00",5/31/2012,R,SILVERBURN FINANCE (UK) LTD   
2012 - JUN,CS -Oth Operating Inc & Expend,Trading A/c Surpluses/Deficits,Transport-Contract Hire                 ,J01374,Transport Related Expenditure ,Contract Hire and Op Leasing  ,CC64,Mini Cab Hire for Education,575,945,5/31/2012,R,SILVERBURN FINANCE (UK) LTD   
2012 - JUN,CS -Oth Operating Inc & Expend,Trading A/c Surpluses/Deficits,Transport-Contract Hire                 ,J01374,Transport Related Expenditure ,Contract Hire and Op Leasing  ,CC64,Mini Cab Hire for Education,576,880,5/31/2012,R,SILVERBURN FINANCE (UK) LTD   
2012 - JUN,CS -Oth Operating Inc & Expend,Trading A/c Surpluses/Deficits,Transport-Contract Hire                 ,J01374,Transport Related Expenditure ,Contract Hire and Op Leasing  ,CC64,Mini Cab Hire for Education,577,880,5/31/2012,R,SILVERBURN FINANCE (UK) LTD   
2012 - JUN,CS -Oth Operating Inc & Expend,Trading A/c Surpluses/Deficits,Transport-Contract Hire                 ,J01374,Transport Related Expenditure ,Contract Hire and Op Leasing  ,CC64,Mini Cab Hire for Education,578,"1,452.00",5/31/2012,R,SILVERBURN FINANCE (UK) LTD   
2012 - JUN,CS -Oth Operating Inc & Expend,Trading A/c Surpluses/Deficits,Transport-Contract Hire                 ,J01374,Transport Related Expenditure ,Contract Hire and Op Leasing  ,CC64,Mini Cab Hire for Education,579,"1,584.00",5/31/2012,R,SILVERBURN FINANCE (UK) LTD   
2012 - JUN,CS -Oth Operating Inc & Expend,Trading A/c Surpluses/Deficits,Transport-Contract Hire                 ,J01374,Transport Related Expenditure ,Contract Hire and Op Leasing  ,CC64,Mini Cab Hire for Education,580,"1,537.25",5/31/2012,R,SILVERBURN FINANCE (UK) LTD   
2012 - JUN,CS -Oth Operating Inc & Expend,Trading A/c Surpluses/Deficits,Transport-Contract Hire                 ,J01374,Transport Related Expenditure ,Contract Hire and Op Leasing  ,CC64,Mini Cab Hire for Education,581,"1,320.00",5/31/2012,R,SILVERBURN FINANCE (UK) LTD   
2012 - JUN,CS -Oth Operating Inc & Expend,Trading A/c Surpluses/Deficits,Transport-Contract Hire                 ,J01374,Transport Related Expenditure ,Contract Hire and Op Leasing  ,CC64,Mini Cab Hire for Education,582,"3,067.68",5/31/2012,R,SILVERBURN FINANCE (UK) LTD   
2012 - JUN,CS -Oth Operating Inc & Expend,Trading A/c Surpluses/Deficits,Transport-Contract Hire                 ,J01374,Transport Related Expenditure ,Contract Hire and Op Leasing  ,CC64,Mini Cab Hire for Education,583,726,5/31/2012,R,GALPINS SERVICE               
2012 - JUN,CS -Oth Operating Inc & Expend,Trading A/c Surpluses/Deficits,Transport-Contract Hire                 ,J01374,Transport Related Expenditure ,Contract Hire and Op Leasing  ,CC64,Mini Cab Hire for Education,584,608,5/31/2012,R,SILVERBURN FINANCE (UK) LTD   
2012 - JUN,CS -Oth Operating Inc & Expend,Trading A/c Surpluses/Deficits,Transport-Contract Hire                 ,J01374,Transport Related Expenditure ,Contract Hire and Op Leasing  ,CC64,Mini Cab Hire for Education,585,"1,320.00",5/31/2012,R,CHEAM STATION CARS            
2012 - JUN,CS -Oth Operating Inc & Expend,Trading A/c Surpluses/Deficits,Transport-Contract Hire                 ,J01374,Transport Related Expenditure ,Contract Hire and Op Leasing  ,CC64,Mini Cab Hire for Education,586,682,5/31/2012,R,CHEAM STATION CARS            
2012 - JUN,CS -Oth Operating Inc & Expend,Trading A/c Surpluses/Deficits,Transport-Contract Hire                 ,J01374,Transport Related Expenditure ,Contract Hire and Op Leasing  ,CC64,Mini Cab Hire for Education,587,800,5/31/2012,R,GALPINS SERVICE               
2012 - JUN,CS -Oth Operating Inc & Expend,Trading A/c Surpluses/Deficits,Transport-Contract Hire                 ,J01374,Transport Related Expenditure ,Contract Hire and Op Leasing  ,CC64,Mini Cab Hire for Education,588,"1,560.00",5/31/2012,R,CHEAM STATION CARS            
2012 - JUN,CS -Oth Operating Inc & Expend,Trading A/c Surpluses/Deficits,Transport-Contract Hire                 ,J01374,Transport Related Expenditure ,Contract Hire and Op Leasing  ,CC64,Mini Cab Hire for Education,589,"8,823.30",6/24/2012,R,KINGSTON ACCESSIBILITY TRAN LT
2012 - JUN,CS -Oth Operating Inc & Expend,Trading A/c Surpluses/Deficits,Transport-Contract Hire                 ,J01374,Transport Related Expenditure ,Contract Hire and Op Leasing  ,CC66,Mini Cab Hire -Soc Serv -Child,590,"2,112.69",6/3/2012,R,KINGSTON ACCESSIBILITY TRAN LT
2012 - JUN,CS -Oth Operating Inc & Expend,Trading A/c Surpluses/Deficits,Transport-Contract Hire                 ,J01374,Transport Related Expenditure ,Contract Hire and Op Leasing  ,CC66,Mini Cab Hire -Soc Serv -Child,591,"1,907.70",6/17/2012,R,KINGSTON ACCESSIBILITY TRAN LT
2012 - JUN,CS -Oth Operating Inc & Expend,Trading A/c Surpluses/Deficits,Transport-Contract Hire                 ,J01374,Transport Related Expenditure ,Contract Hire and Op Leasing  ,CC66,Mini Cab Hire -Soc Serv -Child,592,"1,075.00",5/31/2012,R,CHEAM STATION CARS            
2012 - JUN,CS -Oth Operating Inc & Expend,Trading A/c Surpluses/Deficits,Transport-Contract Hire                 ,J01374,Transport Related Expenditure ,Contract Hire and Op Leasing  ,CC66,Mini Cab Hire -Soc Serv -Child,593,"1,962.70",6/24/2012,R,KINGSTON ACCESSIBILITY TRAN LT
2012 - JUN,CS -Oth Operating Inc & Expend,Trading A/c Surpluses/Deficits,Transport-Contract Hire                 ,J01374,Transport Related Expenditure ,Contract Hire and Op Leasing  ,CC67,Mini Cab Hire -Soc Serv -Adult,594,"1,236.00",6/3/2012,R,KINGSTON ACCESSIBILITY TRAN LT
2012 - JUN,CS -Oth Operating Inc & Expend,Trading A/c Surpluses/Deficits,Transport-Contract Hire                 ,J01374,Transport Related Expenditure ,Contract Hire and Op Leasing  ,CC67,Mini Cab Hire -Soc Serv -Adult,595,"2,054.00",5/31/2012,R,BARCLAYS ASSET & SALES FINANCE
2012 - JUN,CS -Oth Operating Inc & Expend,Trading A/c Surpluses/Deficits,Transport-Contract Hire                 ,J01374,Transport Related Expenditure ,Contract Hire and Op Leasing  ,CC67,Mini Cab Hire -Soc Serv -Adult,596,754,5/31/2012,R,BARCLAYS ASSET & SALES FINANCE
2012 - JUN,CS -Oth Operating Inc & Expend,Trading A/c Surpluses/Deficits,Transport-Contract Hire                 ,J01374,Transport Related Expenditure ,Contract Hire and Op Leasing  ,CC67,Mini Cab Hire -Soc Serv -Adult,597,"1,806.00",5/31/2012,R,BARCLAYS ASSET & SALES FINANCE
2012 - JUN,CS -Oth Operating Inc & Expend,Trading A/c Surpluses/Deficits,Transport-Contract Hire                 ,J01374,Transport Related Expenditure ,Contract Hire and Op Leasing  ,CC67,Mini Cab Hire -Soc Serv -Adult,598,"1,460.00",5/31/2012,R,BARCLAYS ASSET & SALES FINANCE
2012 - JUN,CS -Oth Operating Inc & Expend,Trading A/c Surpluses/Deficits,Transport-Contract Hire                 ,J01374,Transport Related Expenditure ,Contract Hire and Op Leasing  ,CC67,Mini Cab Hire -Soc Serv -Adult,599,504,5/31/2012,R,BARCLAYS ASSET & SALES FINANCE
2012 - JUN,CS -Oth Operating Inc & Expend,Trading A/c Surpluses/Deficits,Transport-Contract Hire                 ,J01374,Transport Related Expenditure ,Contract Hire and Op Leasing  ,CC67,Mini Cab Hire -Soc Serv -Adult,600,522,5/31/2012,R,BARCLAYS ASSET & SALES FINANCE
2012 - JUN,CS -Oth Operating Inc & Expend,Trading A/c Surpluses/Deficits,Transport-Contract Hire                 ,J01374,Transport Related Expenditure ,Contract Hire and Op Leasing  ,CC67,Mini Cab Hire -Soc Serv -Adult,601,812,5/31/2012,R,BARCLAYS ASSET & SALES FINANCE
2012 - JUN,CS -Oth Operating Inc & Expend,Trading A/c Surpluses/Deficits,Transport-Contract Hire                 ,J01374,Transport Related Expenditure ,Contract Hire and Op Leasing  ,CC67,Mini Cab Hire -Soc Serv -Adult,602,728,5/31/2012,R,BARCLAYS ASSET & SALES FINANCE
2012 - JUN,CS -Oth Operating Inc & Expend,Trading A/c Surpluses/Deficits,Transport-Contract Hire                 ,J01374,Transport Related Expenditure ,Contract Hire and Op Leasing  ,CC67,Mini Cab Hire -Soc Serv -Adult,603,"1,412.00",5/31/2012,R,NVCAR HIRE LTD                
2012 - JUN,CS -Oth Operating Inc & Expend,Trading A/c Surpluses/Deficits,Transport-Contract Hire                 ,J01374,Transport Related Expenditure ,Contract Hire and Op Leasing  ,CC67,Mini Cab Hire -Soc Serv -Adult,604,504,5/31/2012,R,BARCLAYS ASSET & SALES FINANCE
2012 - JUN,CS -Oth Operating Inc & Expend,Trading A/c Surpluses/Deficits,Transport-Contract Hire                 ,J01374,Transport Related Expenditure ,Contract Hire and Op Leasing  ,CC67,Mini Cab Hire -Soc Serv -Adult,605,576,5/31/2012,R,BARCLAYS ASSET & SALES FINANCE
2012 - JUN,CS -Oth Operating Inc & Expend,Trading A/c Surpluses/Deficits,Transport-Contract Hire                 ,J01374,Transport Related Expenditure ,Contract Hire and Op Leasing  ,CC67,Mini Cab Hire -Soc Serv -Adult,606,"1,552.00",5/31/2012,R,BARCLAYS ASSET & SALES FINANCE
2012 - JUN,CS -Oth Operating Inc & Expend,Trading A/c Surpluses/Deficits,Transport-Contract Hire                 ,J01374,Transport Related Expenditure ,Contract Hire and Op Leasing  ,CC67,Mini Cab Hire -Soc Serv -Adult,607,"1,056.00",5/31/2012,R,BARCLAYS ASSET & SALES FINANCE
2012 - JUN,CS -Oth Operating Inc & Expend,Trading A/c Surpluses/Deficits,Transport-Contract Hire                 ,J01374,Transport Related Expenditure ,Contract Hire and Op Leasing  ,CC67,Mini Cab Hire -Soc Serv -Adult,608,784,5/31/2012,R,CAPITAL CARS                  
2012 - JUN,CS -Oth Operating Inc & Expend,Trading A/c Surpluses/Deficits,Transport-Contract Hire                 ,J01374,Transport Related Expenditure ,Contract Hire and Op Leasing  ,CC67,Mini Cab Hire -Soc Serv -Adult,609,672,5/31/2012,R,BARCLAYS ASSET & SALES FINANCE
2012 - JUN,CS -Oth Operating Inc & Expend,Trading A/c Surpluses/Deficits,Transport-Contract Hire                 ,J01374,Transport Related Expenditure ,Contract Hire and Op Leasing  ,CC67,Mini Cab Hire -Soc Serv -Adult,610,640,5/31/2012,R,BARCLAYS ASSET & SALES FINANCE
2012 - JUN,CS -Oth Operating Inc & Expend,Trading A/c Surpluses/Deficits,Transport-Contract Hire                 ,J01374,Transport Related Expenditure ,Contract Hire and Op Leasing  ,CC67,Mini Cab Hire -Soc Serv -Adult,611,704,5/31/2012,R,CAPITAL CARS                  
2012 - JUN,CS -Oth Operating Inc & Expend,Trading A/c Surpluses/Deficits,Transport-Contract Hire                 ,J01374,Transport Related Expenditure ,Contract Hire and Op Leasing  ,CC67,Mini Cab Hire -Soc Serv -Adult,612,979.38,5/31/2012,R,SILVERBURN FINANCE (UK) LTD   
2012 - JUN,CS -Oth Operating Inc & Expend,Trading A/c Surpluses/Deficits,Transport-Contract Hire                 ,J01374,Transport Related Expenditure ,Contract Hire and Op Leasing  ,CC67,Mini Cab Hire -Soc Serv -Adult,613,888,5/31/2012,R,AERIAL CAR SERVICES LTD       
2012 - JUN,CS -Oth Operating Inc & Expend,Trading A/c Surpluses/Deficits,Transport-Contract Hire                 ,J01374,Transport Related Expenditure ,Contract Hire and Op Leasing  ,CC67,Mini Cab Hire -Soc Serv -Adult,614,880,4/30/2012,R,AERIAL CAR SERVICES LTD       
2012 - JUN,CS -Oth Operating Inc & Expend,Trading A/c Surpluses/Deficits,Transport-Contract Hire                 ,J01374,Transport Related Expenditure ,Contract Hire and Op Leasing  ,CC67,Mini Cab Hire -Soc Serv -Adult,615,"1,216.00",6/17/2012,R,KINGSTON ACCESSIBILITY TRAN LT
2012 - JUN,CS -Oth Operating Inc & Expend,Trading A/c Surpluses/Deficits,Transport-Contract Hire                 ,J01374,Transport Related Expenditure ,Contract Hire and Op Leasing  ,CC67,Mini Cab Hire -Soc Serv -Adult,616,"1,216.00",6/24/2012,R,KINGSTON ACCESSIBILITY TRAN LT
2012 - JUN,CS -Oth Operating Inc & Expend,Trading A/c Surpluses/Deficits,Transport-Contract Hire                 ,J01374,Transport Related Expenditure ,Contract Hire and Op Leasing  ,CC68,Vehicle Hire Special Projects,617,"1,666.00",6/3/2012,R,KINGSTON ACCESSIBILITY TRAN LT
2012 - JUN,CS -Oth Operating Inc & Expend,Trading A/c Surpluses/Deficits,Transport-Contract Hire                 ,J01374,Transport Related Expenditure ,Contract Hire and Op Leasing  ,CC68,Vehicle Hire Special Projects,618,"1,848.00",5/31/2012,R,BARCLAYS ASSET & SALES FINANCE
2012 - JUN,CS -Oth Operating Inc & Expend,Trading A/c Surpluses/Deficits,Transport-Contract Hire                 ,J01374,Transport Related Expenditure ,Contract Hire and Op Leasing  ,CC68,Vehicle Hire Special Projects,619,756,5/31/2012,R,BARCLAYS ASSET & SALES FINANCE
2012 - JUN,CS -Oth Operating Inc & Expend,Trading A/c Surpluses/Deficits,Transport-Contract Hire                 ,J01374,Transport Related Expenditure ,Contract Hire and Op Leasing  ,CC68,Vehicle Hire Special Projects,620,"1,408.00",5/31/2012,R,BARCLAYS ASSET & SALES FINANCE
2012 - JUN,CS -Oth Operating Inc & Expend,Trading A/c Surpluses/Deficits,Transport-Contract Hire                 ,J01374,Transport Related Expenditure ,Contract Hire and Op Leasing  ,CC68,Vehicle Hire Special Projects,621,"2,992.00",5/31/2012,R,BARCLAYS ASSET & SALES FINANCE
2012 - JUN,CS -Oth Operating Inc & Expend,Trading A/c Surpluses/Deficits,Transport-Contract Hire                 ,J01374,Transport Related Expenditure ,Contract Hire and Op Leasing  ,CC68,Vehicle Hire Special Projects,622,"1,119.00",5/30/2012,R,BARCLAYS ASSET & SALES FINANCE
2012 - JUN,CS -Oth Operating Inc & Expend,Trading A/c Surpluses/Deficits,Transport-Contract Hire                 ,J01374,Transport Related Expenditure ,Contract Hire and Op Leasing  ,CC68,Vehicle Hire Special Projects,623,"2,054.00",5/31/2012,R,BARCLAYS ASSET & SALES FINANCE
2012 - JUN,CS -Oth Operating Inc & Expend,Trading A/c Surpluses/Deficits,Transport-Contract Hire                 ,J01374,Transport Related Expenditure ,Contract Hire and Op Leasing  ,CC68,Vehicle Hire Special Projects,624,"3,080.00",5/31/2012,R,BARCLAYS ASSET & SALES FINANCE
2012 - JUN,CS -Oth Operating Inc & Expend,Trading A/c Surpluses/Deficits,Transport-Contract Hire                 ,J01374,Transport Related Expenditure ,Contract Hire and Op Leasing  ,CC68,Vehicle Hire Special Projects,625,"1,408.00",5/31/2012,R,BARCLAYS ASSET & SALES FINANCE
2012 - JUN,CS -Oth Operating Inc & Expend,Trading A/c Surpluses/Deficits,Transport-Contract Hire                 ,J01374,Transport Related Expenditure ,Contract Hire and Op Leasing  ,CC68,Vehicle Hire Special Projects,626,"1,496.00",5/31/2012,R,SILVERBURN FINANCE (UK) LTD   
2012 - JUN,CS -Oth Operating Inc & Expend,Trading A/c Surpluses/Deficits,Transport-Contract Hire                 ,J01374,Transport Related Expenditure ,Contract Hire and Op Leasing  ,CC68,Vehicle Hire Special Projects,627,"1,666.00",6/17/2012,R,KINGSTON ACCESSIBILITY TRAN LT
2012 - JUN,CS -Oth Operating Inc & Expend,Trading A/c Surpluses/Deficits,Transport-Contract Hire                 ,J01374,Transport Related Expenditure ,Contract Hire and Op Leasing  ,CC68,Vehicle Hire Special Projects,628,984,5/31/2012,R,GALPINS SERVICE               
2012 - JUN,CS -Oth Operating Inc & Expend,Trading A/c Surpluses/Deficits,Transport-Contract Hire                 ,J01374,Transport Related Expenditure ,Contract Hire and Op Leasing  ,CC68,Vehicle Hire Special Projects,629,"1,666.00",6/24/2012,R,KINGSTON ACCESSIBILITY TRAN LT
2012 - JUN,CS -Oth Operating Inc & Expend,Trading A/c Surpluses/Deficits,Transport-Workshop                      ,J01376,Transport Related Expenditure ,Direct Transport Costs        ,CA01,Petrol Derv & Oil,630,"1,000.00",5/24/2012,R,REDACTED
2012 - JUN,CS -Oth Operating Inc & Expend,Trading A/c Surpluses/Deficits,Transport-Workshop                      ,J01376,Transport Related Expenditure ,Direct Transport Costs        ,CA02,Tyres,631,990,5/31/2012,R,MORDEN TYRE SERVICES LTD      
2012 - JUN,CS -Oth Operating Inc & Expend,Trading A/c Surpluses/Deficits,Transport-Workshop                      ,J01376,Transport Related Expenditure ,Direct Transport Costs        ,CA02,Tyres,632,585,6/22/2012,R,MORDEN TYRE SERVICES LTD      
2012 - JUN,CS -Oth Operating Inc & Expend,Trading A/c Surpluses/Deficits,Transport-Workshop                      ,J01376,Transport Related Expenditure ,Direct Transport Costs        ,CA55,Specialist Maint. (Off Site),633,"1,087.87",4/30/2012,R,REDACTED
2012 - JUN,CS -Oth Operating Inc & Expend,Trading A/c Surpluses/Deficits,Transport-Workshop                      ,J01376,Transport Related Expenditure ,Direct Transport Costs        ,CA55,Specialist Maint. (Off Site),634,835.5,6/4/2012,R,GREEN MACHINES                
2012 - JUN,CS -Oth Operating Inc & Expend,Trading A/c Surpluses/Deficits,Transport-Workshop                      ,J01376,Transport Related Expenditure ,Direct Transport Costs        ,CA55,Specialist Maint. (Off Site),635,835.5,6/4/2012,R,GREEN MACHINES                
2012 - JUN,CS -Oth Operating Inc & Expend,Trading A/c Surpluses/Deficits,Transport-Workshop                      ,J01376,Transport Related Expenditure ,Direct Transport Costs        ,CA55,Specialist Maint. (Off Site),636,"3,960.47",6/8/2012,R,REDACTED
2012 - JUN,CS -Oth Operating Inc & Expend,Trading A/c Surpluses/Deficits,Transport-Workshop                      ,J01376,Transport Related Expenditure ,Direct Transport Costs        ,CA55,Specialist Maint. (Off Site),637,848,5/30/2012,R,REDACTED
2012 - JUN,CS -Oth Operating Inc & Expend,Trading A/c Surpluses/Deficits,Transport-Workshop                      ,J01376,Transport Related Expenditure ,Direct Transport Costs        ,CA56,Specialist Maint. (On Site),638,579.86,5/28/2012,R,GEESINK NORBA                 
2012 - JUN,CS -Oth Operating Inc & Expend,Trading A/c Surpluses/Deficits,Transport-Workshop                      ,J01376,Transport Related Expenditure ,Direct Transport Costs        ,CA56,Specialist Maint. (On Site),639,958.77,5/28/2012,R,T H WHITE LTD                 
2012 - JUN,CS -Oth Operating Inc & Expend,Trading A/c Surpluses/Deficits,Transport-Workshop                      ,J01376,Transport Related Expenditure ,Direct Transport Costs        ,CA56,Specialist Maint. (On Site),640,757.94,6/6/2012,R,R.J.H.WELDING                 
2012 - JUN,CS -Oth Operating Inc & Expend,Trading A/c Surpluses/Deficits,Transport-Workshop                      ,J01376,Transport Related Expenditure ,Direct Transport Costs        ,CA56,Specialist Maint. (On Site),641,645.44,6/6/2012,R,R.J.H.WELDING                 
2012 - JUN,CS -Oth Operating Inc & Expend,Trading A/c Surpluses/Deficits,Transport-Workshop                      ,J01376,Transport Related Expenditure ,Direct Transport Costs        ,CA56,Specialist Maint. (On Site),642,734.36,6/6/2012,R,R.J.H.WELDING                 
2012 - JUN,CS -Oth Operating Inc & Expend,Trading A/c Surpluses/Deficits,Transport-Workshop                      ,J01376,Transport Related Expenditure ,Direct Transport Costs        ,CA56,Specialist Maint. (On Site),643,525,6/6/2012,R,R.J.H.WELDING                 
2012 - JUN,CS -Oth Operating Inc & Expend,Trading A/c Surpluses/Deficits,Transport-Workshop                      ,J01376,Transport Related Expenditure ,Direct Transport Costs        ,CA56,Specialist Maint. (On Site),644,678.11,6/6/2012,R,R.J.H.WELDING                 
2012 - JUN,CS -Oth Operating Inc & Expend,Trading A/c Surpluses/Deficits,Transport-Workshop                      ,J01376,Transport Related Expenditure ,Direct Transport Costs        ,CA56,Specialist Maint. (On Site),645,525,6/25/2012,R,R.J.H.WELDING                 
2012 - JUN,CS -Oth Operating Inc & Expend,Trading A/c Surpluses/Deficits,Transport-Workshop                      ,J01376,Transport Related Expenditure ,Direct Transport Costs        ,CA56,Specialist Maint. (On Site),646,"1,050.00",6/25/2012,R,R.J.H.WELDING                 
2012 - JUN,CS -Oth Operating Inc & Expend,Trading A/c Surpluses/Deficits,Transport-Workshop                      ,J01376,Transport Related Expenditure ,Direct Transport Costs        ,CA72,Vehicle Parts,647,992.37,5/25/2012,R,GEESINK NORBA                 
2012 - JUN,CS -Oth Operating Inc & Expend,Trading A/c Surpluses/Deficits,Transport-Workshop                      ,J01376,Transport Related Expenditure ,Direct Transport Costs        ,CA72,Vehicle Parts,648,938.98,6/6/2012,R,COMMERCIAL & PLANT LTD        
2012 - JUN,CS -Oth Operating Inc & Expend,Trading A/c Surpluses/Deficits,Transport-Workshop                      ,J01376,Transport Related Expenditure ,Direct Transport Costs        ,CA72,Vehicle Parts,649,636.62,5/29/2012,R,GEESINK NORBA                 
2012 - JUN,CS -Oth Operating Inc & Expend,Trading A/c Surpluses/Deficits,Transport-Workshop                      ,J01376,Transport Related Expenditure ,Direct Transport Costs        ,CA72,Vehicle Parts,650,518.62,6/8/2012,R,JD ASSOCIATES                 
2012 - JUN,CS -Oth Operating Inc & Expend,Trading A/c Surpluses/Deficits,Transport-Workshop                      ,J01376,Transport Related Expenditure ,Direct Transport Costs        ,CA72,Vehicle Parts,651,"2,034.17",6/11/2012,R,GEESINK NORBA                 
2012 - JUN,CS -Oth Operating Inc & Expend,Trading A/c Surpluses/Deficits,Transport-Workshop                      ,J01376,Transport Related Expenditure ,Direct Transport Costs        ,CA72,Vehicle Parts,652,"2,967.03",5/31/2012,R,OPTIMUM OILS LTD              
2012 - JUN,CS -Oth Operating Inc & Expend,Trading A/c Surpluses/Deficits,Transport-Workshop                      ,J01376,Transport Related Expenditure ,Contract Hire and Op Leasing  ,CC60,Vehicle Hire for LB Sutton,653,660,5/31/2012,R,BARCLAYS ASSET & SALES FINANCE
2012 - JUN,CS -Oth Operating Inc & Expend,Trading A/c Surpluses/Deficits,Transport-Workshop                      ,J01376,Transport Related Expenditure ,Contract Hire and Op Leasing  ,CC60,Vehicle Hire for LB Sutton,654,"1,575.00",5/31/2012,R,BARCLAYS ASSET & SALES FINANCE
2012 - JUN,CS -Oth Operating Inc & Expend,Trading A/c Surpluses/Deficits,Transport-Workshop                      ,J01376,Transport Related Expenditure ,Contract Hire and Op Leasing  ,CC60,Vehicle Hire for LB Sutton,655,"1,218.00",5/30/2012,R,CALVERTON FACTORS LTD         
2012 - JUN,CS -Oth Operating Inc & Expend,Trading A/c Surpluses/Deficits,Transport-Workshop                      ,J01376,Transport Related Expenditure ,Contract Hire and Op Leasing  ,CC60,Vehicle Hire for LB Sutton,656,"3,080.00",5/31/2012,R,BRUNSWICK CARS LTD            
2012 - JUN,CS -Oth Operating Inc & Expend,Trading A/c Surpluses/Deficits,Transport-Workshop                      ,J01376,Transport Related Expenditure ,Contract Hire and Op Leasing  ,CC60,Vehicle Hire for LB Sutton,657,"2,618.00",5/31/2012,R,BRUNSWICK CARS LTD            
2012 - JUN,CS -Oth Operating Inc & Expend,Trading A/c Surpluses/Deficits,Transport-Workshop                      ,J01376,Transport Related Expenditure ,Contract Hire and Op Leasing  ,CC60,Vehicle Hire for LB Sutton,658,"2,205.00",5/30/2012,R,CALVERTON FACTORS LTD         
2012 - JUN,CS -Oth Operating Inc & Expend,Trading A/c Surpluses/Deficits,Transport-Workshop                      ,J01376,Transport Related Expenditure ,Contract Hire and Op Leasing  ,CC60,Vehicle Hire for LB Sutton,659,"1,892.00",5/31/2012,R,BARCLAYS ASSET & SALES FINANCE
2012 - JUN,CS -Oth Operating Inc & Expend,Trading A/c Surpluses/Deficits,Transport-Workshop                      ,J01376,Transport Related Expenditure ,Contract Hire and Op Leasing  ,CC60,Vehicle Hire for LB Sutton,660,"1,320.00",6/1/2012,R,BARCLAYS ASSET & SALES FINANCE
2012 - JUN,CS -Oth Operating Inc & Expend,Trading A/c Surpluses/Deficits,Transport-Workshop                      ,J01376,Transport Related Expenditure ,Contract Hire and Op Leasing  ,CC60,Vehicle Hire for LB Sutton,661,"3,876.00",5/31/2012,R,BARCLAYS ASSET & SALES FINANCE
2012 - JUN,CS -Oth Operating Inc & Expend,Trading A/c Surpluses/Deficits,Transport-Workshop                      ,J01376,Transport Related Expenditure ,Contract Hire and Op Leasing  ,CC60,Vehicle Hire for LB Sutton,662,"1,140.00",5/30/2012,R,BARCLAYS ASSET & SALES FINANCE
2012 - JUN,CS -Oth Operating Inc & Expend,Trading A/c Surpluses/Deficits,Transport-Workshop                      ,J01376,Transport Related Expenditure ,Contract Hire and Op Leasing  ,CC60,Vehicle Hire for LB Sutton,663,"2,266.00",5/31/2012,R,BRUNSWICK CARS LTD            
2012 - JUN,CS -Oth Operating Inc & Expend,Trading A/c Surpluses/Deficits,Transport-Workshop                      ,J01376,Transport Related Expenditure ,Contract Hire and Op Leasing  ,CC60,Vehicle Hire for LB Sutton,664,960,5/30/2012,R,CALVERTON FACTORS LTD         
2012 - JUN,CS -Oth Operating Inc & Expend,Trading A/c Surpluses/Deficits,Transport-Workshop                      ,J01376,Transport Related Expenditure ,Contract Hire and Op Leasing  ,CC60,Vehicle Hire for LB Sutton,665,"1,672.00",5/30/2012,R,CALVERTON FACTORS LTD         
2012 - JUN,CS -Oth Operating Inc & Expend,Trading A/c Surpluses/Deficits,Transport-Workshop                      ,J01376,Transport Related Expenditure ,Contract Hire and Op Leasing  ,CC65,Vehicle Hire for Education,666,"2,508.00",5/31/2012,R,BARCLAYS ASSET & SALES FINANCE
2012 - JUN,CS -Oth Operating Inc & Expend,Trading A/c Surpluses/Deficits,Transport-Workshop                      ,J01376,Transport Related Expenditure ,Contract Hire and Op Leasing  ,CC65,Vehicle Hire for Education,667,"4,312.00",5/31/2012,R,BARCLAYS ASSET & SALES FINANCE
2012 - JUN,CS -Oth Operating Inc & Expend,Trading A/c Surpluses/Deficits,Transport-Workshop                      ,J01376,Transport Related Expenditure ,Contract Hire and Op Leasing  ,CC65,Vehicle Hire for Education,668,"1,275.00",5/31/2012,R,BARCLAYS ASSET & SALES FINANCE
2012 - JUN,CS -Oth Operating Inc & Expend,Trading A/c Surpluses/Deficits,Transport-Workshop                      ,J01376,Transport Related Expenditure ,Contract Hire and Op Leasing  ,CC65,Vehicle Hire for Education,669,967.5,5/31/2012,R,BARCLAYS ASSET & SALES FINANCE
2012 - JUN,CS -Oth Operating Inc & Expend,Trading A/c Surpluses/Deficits,Transport-Workshop                      ,J01376,Transport Related Expenditure ,Contract Hire and Op Leasing  ,CC65,Vehicle Hire for Education,670,700,5/31/2012,R,BARCLAYS ASSET & SALES FINANCE
2012 - JUN,CS -Oth Operating Inc & Expend,Trading A/c Surpluses/Deficits,Transport-Workshop                      ,J01376,Transport Related Expenditure ,Contract Hire and Op Leasing  ,CC65,Vehicle Hire for Education,671,"2,369.00",5/31/2012,R,BARCLAYS ASSET & SALES FINANCE
2012 - JUN,CS -Oth Operating Inc & Expend,Trading A/c Surpluses/Deficits,Transport-Workshop                      ,J01376,Transport Related Expenditure ,Contract Hire and Op Leasing  ,CC65,Vehicle Hire for Education,672,"1,785.00",5/31/2012,R,REDACTED
2012 - JUN,CS -Oth Operating Inc & Expend,Trading A/c Surpluses/Deficits,Transport-Workshop                      ,J01376,Transport Related Expenditure ,Contract Hire and Op Leasing  ,CC65,Vehicle Hire for Education,673,650,6/6/2012,R,FREEWAY COACH SERVICES        
2012 - JUN,CS -Oth Operating Inc & Expend,Trading A/c Surpluses/Deficits,Transport-Workshop                      ,J01376,Supplies & Services           ,Services                      ,DF01,General Office Expenses,674,500,6/22/2012,R,MARKS AND SPENCER GIFT VOUCHER
2012 - JUN,Cultural Env Reg&Plan Services,SMSS (Env),Estates Mgt                             ,J01420,Supplies & Services           ,Services                      ,DF03,Consultants,675,"2,638.50",5/3/2012,R,QUINTON SCOTT                 
2012 - JUN,Cultural Env Reg&Plan Services,SMSS (Env),Estates Mgt                             ,J01420,Supplies & Services           ,Grants and Subscriptions      ,DJ04,Subscriptions,676,"2,748.00",6/2/2012,R,COSTAR UK LTD                 
2012 - JUN,CS -Oth Operating Inc & Expend,INVESTMENT PROPERTIES,Pollards Hill Comm Cntre                ,J08074,Premises Related Expenditure  ,RepairsAlterations&MtceOfBldgs,BA05,DDM - Electrical,677,"1,270.04",4/18/2012,R,COFELY LIMITED                
2012 - JUN,Childrens & Education Services,Schools Strategic Management,Senior Mngt & Support Services          ,K01005,Supplies & Services           ,Services                      ,DF03,Consultants,678,"8,433.30",5/31/2012,R,ODGERS RAY & BERNDTSON INTERIM
2012 - JUN,Childrens & Education Services,Schools Strategic Management,Senior Mngt & Support Services          ,K01005,Supplies & Services           ,Services                      ,DF03,Consultants,679,"6,435.00",6/12/2012,R,ODGERS RAY & BERNDTSON INTERIM
2012 - JUN,Childrens & Education Services,Schools Strategic Management,Senior Mngt & Support Services          ,K01005,Supplies & Services           ,Services                      ,DF03,Consultants,680,"4,500.00",6/6/2012,R,MOORE INSIGHT LIMITED         
2012 - JUN,Childrens & Education Services,Schools Strategic Management,Senior Mngt & Support Services          ,K01005,Supplies & Services           ,Services                      ,DF11,Counsel's fees,681,"9,766.00",3/26/2012,R,REDACTED
2012 - JUN,Childrens & Education Services,Schools Strategic Management,Senior Mngt & Support Services          ,K01005,Supplies & Services           ,Services                      ,DF11,Counsel's fees,682,700,5/1/2012,R,REDACTED
2012 - JUN,Childrens & Education Services,Schools Strategic Management,Senior Mngt & Support Services          ,K01005,Supplies & Services           ,Services                      ,DF11,Counsel's fees,683,700,5/15/2012,R,REDACTED
2012 - JUN,Childrens & Education Services,Schools Strategic Management,Central Administration                  ,K01008,Supplies & Services           ,Comms and Computing           ,DG04,Postage - General,684,600,5/29/2012,R,TRAVELCARE                    
2012 - JUN,Childrens & Education Services,Schools Strategic Management,Schools IT Support                      ,K02008,Supplies & Services           ,Services                      ,DF03,Consultants,685,"4,972.50",4/23/2012,R,CREATIVE SHAREPOINT           
2012 - JUN,Childrens & Education Services,Schools Strategic Management,Schools IT Support                      ,K02008,Supplies & Services           ,Comms and Computing           ,DG50,Other IT Expenditure,686,"1,400.00",5/25/2012,R,ATOMWIDE LTD                  
2012 - JUN,Childrens & Education Services,Schools Strategic Management,Schools IT Support                      ,K02008,Supplies & Services           ,Comms and Computing           ,DG50,Other IT Expenditure,687,"4,200.00",5/23/2012,R,LONDON GRID FOR LEARNING TRUST
2012 - JUN,Childrens & Education Services,Schools Strategic Management,Schools IT Support                      ,K02008,Supplies & Services           ,Comms and Computing           ,DG50,Other IT Expenditure,688,"394,252.34",6/1/2012,R,LONDON GRID FOR LEARNING TRUST
2012 - JUN,Childrens & Education Services,Schools Strategic Management,LSC                                     ,K03003,Supplies & Services           ,Expenses                      ,DH17,Advances,689,"3,000.00",5/3/2012,R,CRICKET GREEN SCHOOL          
2012 - JUN,Childrens & Education Services,Schools Strategic Management,LSC                                     ,K03003,Supplies & Services           ,Expenses                      ,DH17,Advances,690,"8,500.00",3/29/2012,R,VOLUNTEER CENTRE MERTON       
2012 - JUN,Childrens & Education Services,Schools Strategic Management,LSC                                     ,K03003,Supplies & Services           ,Expenses                      ,DH17,Advances,691,"3,000.00",3/30/2012,R,SMART CENTRE                  
2012 - JUN,Childrens & Education Services,Schools Strategic Management,LSC                                     ,K03003,Supplies & Services           ,Expenses                      ,DH17,Advances,692,"3,000.00",3/30/2012,R,PERSEID SCHOOL                
2012 - JUN,Childrens & Education Services,Schools Strategic Management,LSC                                     ,K03003,Supplies & Services           ,Expenses                      ,DH17,Advances,693,"3,000.00",5/2/2012,R,MELROSE SPECIAL SCHOOL        
2012 - JUN,Childrens & Education Services,Non-Delegated School Grants,Early Int - Foundation Learn            ,K03005,Supplies & Services           ,Expenses                      ,DH17,Advances,694,"6,000.00",3/30/2012,R,RAYNES PARK SECONDARY SCHOOL  
2012 - JUN,Childrens & Education Services,Non-Delegated School Grants,Early Int - Foundation Learn            ,K03005,Supplies & Services           ,Expenses                      ,DH17,Advances,695,"6,000.00",3/30/2012,R,RUTLISH SCHOOL                
2012 - JUN,Childrens & Education Services,Non-Delegated School Grants,Early Int - Foundation Learn            ,K03005,Supplies & Services           ,Expenses                      ,DH17,Advances,696,"6,000.00",5/2/2012,R,URSULINE PREPARATORY SCHOOL   
2012 - JUN,Childrens & Education Services,Non-Delegated School Grants,Early Int - Foundation Learn            ,K03005,Supplies & Services           ,Expenses                      ,DH17,Advances,697,"6,000.00",3/30/2012,R,RICARDS LODGE SECONDARY SCHOOL
2012 - JUN,Childrens & Education Services,Non-Delegated School Grants,Early Int - Foundation Learn            ,K03005,Supplies & Services           ,Expenses                      ,DH17,Advances,698,"6,000.00",3/30/2012,R,WIMBLEDON COLLEGE SCHOOL      
2012 - JUN,Childrens & Education Services,Schools Strategic Management,Research and Statistics                 ,K03016,Supplies & Services           ,Comms and Computing           ,DG02,Software Licences,699,"2,175.28",5/25/2012,R,CACI LIMITED                  
2012 - JUN,Childrens & Education Services,Assuring Access To Schools,PFI Unitary Charges                     ,K03023,Third Party Payments          ,Private Contractors           ,EH02,Miscellaneous Hired Services,700,808,4/26/2012,R,NEWSCHOOLS (MERTON) LIMITED   
2012 - JUN,Childrens & Education Services,Assuring Access To Schools,PFI Unitary Charges                     ,K03023,Third Party Payments          ,Private Contractors           ,EH02,Miscellaneous Hired Services,701,"-4,659.34",4/30/2012,R,NEWSCHOOLS (MERTON) LIMITED   
2012 - JUN,Childrens & Education Services,Assuring Access To Schools,PFI Unitary Charges                     ,K03023,Third Party Payments          ,Private Contractors           ,EH02,Miscellaneous Hired Services,702,"15,656.74",4/30/2012,R,NEWSCHOOLS (MERTON) LIMITED   
2012 - JUN,Childrens & Education Services,Assuring Access To Schools,PFI Unitary Charges                     ,K03023,Third Party Payments          ,Private Contractors           ,EH02,Miscellaneous Hired Services,703,"3,065.55",3/30/2012,R,NEWSCHOOLS (MERTON) LIMITED   
2012 - JUN,Childrens & Education Services,Assuring Access To Schools,PFI Unitary Charges                     ,K03023,Third Party Payments          ,Private Contractors           ,EH02,Miscellaneous Hired Services,704,"1,133.00",6/15/2012,R,CHUBB FIRE & SECURITY LTD     
2012 - JUN,Childrens & Education Services,Assuring Access To Schools,PFI Unitary Charges                     ,K03023,Third Party Payments          ,Private Contractors           ,EH10,Contract Payments,705,"-34,217.50",4/30/2012,R,NEWSCHOOLS (MERTON) LIMITED   
2012 - JUN,Childrens & Education Services,Assuring Access To Schools,PFI Unitary Charges                     ,K03023,Third Party Payments          ,Private Contractors           ,EH10,Contract Payments,706,"-3,125.50",4/30/2012,R,NEWSCHOOLS (MERTON) LIMITED   
2012 - JUN,Childrens & Education Services,Assuring Access To Schools,PFI Unitary Charges                     ,K03023,Third Party Payments          ,Private Contractors           ,EH10,Contract Payments,707,"312,998.54",4/30/2012,R,NEWSCHOOLS (MERTON) LIMITED   
2012 - JUN,Childrens & Education Services,Assuring Access To Schools,PFI Unitary Charges                     ,K03023,Third Party Payments          ,Private Contractors           ,EH10,Contract Payments,708,"881,296.70",6/1/2012,R,NEWSCHOOLS (MERTON) LIMITED   
2012 - JUN,Childrens & Education Services,Supporting SEN,Education Psychology.                   ,K04018,Employees                     ,Direct Employee Expenses      ,AA17,Agency Staff & Casual Paymts,709,562.5,5/26/2012,R,REDACTED
2012 - JUN,Childrens & Education Services,Supporting SEN,Education Psychology.                   ,K04018,Employees                     ,Direct Employee Expenses      ,AA17,Agency Staff & Casual Paymts,710,562.5,5/26/2012,R,REDACTED
2012 - JUN,Childrens & Education Services,Supporting SEN,Statementing-Transport                  ,K04023,Transport Related Expenditure ,Public Transport              ,CD50,Home Sch/Coll Trans(Trav Exps),711,567,6/1/2012,R,REDACTED
2012 - JUN,Childrens & Education Services,Supporting SEN,Statement Support Team                  ,K04034,Employees                     ,Direct Employee Expenses      ,AA17,Agency Staff & Casual Paymts,712,900,5/19/2012,R,PERMANENT FUTURES             
2012 - JUN,Childrens & Education Services,Supporting SEN,Statement Support Team                  ,K04034,Employees                     ,Direct Employee Expenses      ,AA17,Agency Staff & Casual Paymts,713,"1,200.00",5/12/2012,R,PERMANENT FUTURES             
2012 - JUN,Childrens & Education Services,Supporting SEN,Statement Support Team                  ,K04034,Employees                     ,Direct Employee Expenses      ,AA17,Agency Staff & Casual Paymts,714,"1,400.00",5/19/2012,R,PERMANENT FUTURES             
2012 - JUN,Childrens & Education Services,Supporting SEN,Statement Support Team                  ,K04034,Employees                     ,Direct Employee Expenses      ,AA17,Agency Staff & Casual Paymts,715,"1,120.00",5/12/2012,R,PERMANENT FUTURES             
2012 - JUN,Childrens & Education Services,Supporting SEN,Statement Support Team                  ,K04034,Employees                     ,Direct Employee Expenses      ,AA17,Agency Staff & Casual Paymts,716,"1,120.00",5/26/2012,R,PERMANENT FUTURES             
2012 - JUN,Childrens & Education Services,Supporting SEN,Statement Support Team                  ,K04034,Employees                     ,Direct Employee Expenses      ,AA17,Agency Staff & Casual Paymts,717,"1,120.00",6/2/2012,R,PERMANENT FUTURES             
2012 - JUN,Childrens & Education Services,Supporting SEN,Expanded Pupil Referral Unit            ,K05099,Third Party Payments          ,Private Contractors           ,EH01,Miscellaneous Agency Services,718,"5,316.78",5/28/2012,R,SW LONDON ST GEORGES NHS TRUST
2012 - JUN,Childrens & Education Services,Pre-School Ed (inc Nursery),GSSG Workforce Development              ,K05111,Employees                     ,Indirect Employee Expenses    ,AB56,Internal Training Costs,719,"1,350.00",6/14/2012,R,REDACTED
2012 - JUN,Childrens & Education Services,Pre-School Ed (inc Nursery),GSSG Workforce Development              ,K05111,Employees                     ,Indirect Employee Expenses    ,AB56,Internal Training Costs,720,920,6/22/2012,R,ACTUAL FIRST AID LTD          
2012 - JUN,Childrens & Education Services,Pre-School Ed (inc Nursery),GSSG Central Administration             ,K05400,Supplies & Services           ,Comms and Computing           ,DG02,Software Licences,721,"25,000.00",5/25/2012,R,CACI LIMITED                  
2012 - JUN,Childrens & Education Services,Pre-School Ed (inc Nursery),Nursery Grant payment-2 yr old          ,K05408,Supplies & Services           ,Grants and Subscriptions      ,DJ01,Grants,722,555,6/7/2012,R,ST SAVIOUR'S PRE SCHOOL       
2012 - JUN,Childrens & Education Services,Pre-School Ed (inc Nursery),Nursery Grant payment-2 yr old          ,K05408,Supplies & Services           ,Grants and Subscriptions      ,DJ01,Grants,723,"1,134.00",6/7/2012,R,MINI TREASURES DAY NURSERY    
2012 - JUN,Childrens & Education Services,Pre-School Ed (inc Nursery),Nursery Grant payment-2 yr old          ,K05408,Supplies & Services           ,Grants and Subscriptions      ,DJ01,Grants,724,861,6/7/2012,R,HASLEMERE HOUSE DAY NURSERY   
2012 - JUN,Childrens & Education Services,Pre-School Ed (inc Nursery),Nursery Grant payment-2 yr old          ,K05408,Supplies & Services           ,Grants and Subscriptions      ,DJ01,Grants,725,720,6/7/2012,R,IVY GARDENS CHILDREN' S CENTRE
2012 - JUN,Childrens & Education Services,Pre-School Ed (inc Nursery),Nursery Grant payment-2 yr old          ,K05408,Supplies & Services           ,Grants and Subscriptions      ,DJ01,Grants,726,720,6/7/2012,R,IVY GARDENS CHILDREN' S CENTRE
2012 - JUN,Childrens & Education Services,Pre-School Ed (inc Nursery),Nursery Grant payment-2 yr old          ,K05408,Supplies & Services           ,Grants and Subscriptions      ,DJ01,Grants,727,810,6/7/2012,R,REDACTED
2012 - JUN,Childrens & Education Services,Pre-School Ed (inc Nursery),Nursery Grant payment-2 yr old          ,K05408,Supplies & Services           ,Grants and Subscriptions      ,DJ01,Grants,728,"1,080.00",6/7/2012,R,REDACTED
2012 - JUN,Childrens & Education Services,Pre-School Ed (inc Nursery),Nursery Grant payment-2 yr old          ,K05408,Supplies & Services           ,Grants and Subscriptions      ,DJ01,Grants,729,549.12,6/7/2012,R,BOW LANE PRE-SCHOOL           
2012 - JUN,Childrens & Education Services,Pre-School Ed (inc Nursery),Nursery Grant payment-2 yr old          ,K05408,Supplies & Services           ,Grants and Subscriptions      ,DJ01,Grants,730,"1,134.00",6/14/2012,R,MINI TREASURES NURSERY LTD    
2012 - JUN,Childrens & Education Services,Pre-School Ed (inc Nursery),Nursery Grant payment-2 yr old          ,K05408,Supplies & Services           ,Grants and Subscriptions      ,DJ01,Grants,731,"1,350.00",6/19/2012,R,MINI TREASURES NURSERY LTD    
2012 - JUN,Childrens & Education Services,Pre-School Ed (inc Nursery),Nursery Grant payment-2 yr old          ,K05408,Supplies & Services           ,Grants and Subscriptions      ,DJ01,Grants,732,810,6/21/2012,R,CHERUBS @ NEWMINSTER          
2012 - JUN,Childrens & Education Services,Pre-School Ed (inc Nursery),Nursery Grant payment-2 yr old          ,K05408,Supplies & Services           ,Grants and Subscriptions      ,DJ01,Grants,733,"1,152.00",6/21/2012,R,CHERUBS @ NEWMINSTER          
2012 - JUN,Childrens & Education Services,Pre-School Ed (inc Nursery),Nursery Grant payment-2 yr old          ,K05408,Supplies & Services           ,Grants and Subscriptions      ,DJ01,Grants,734,540,6/21/2012,R,CHERUBS @ ST THOMAS           
2012 - JUN,Childrens & Education Services,Pre-School Ed (inc Nursery),Nursery Grant payment-2 yr old          ,K05408,Supplies & Services           ,Grants and Subscriptions      ,DJ01,Grants,735,540,6/21/2012,R,MINI TREASURES NURSERY LTD    
2012 - JUN,Childrens & Education Services,Pre-School Ed (inc Nursery),Nursery Grant payment-2 yr old          ,K05408,Supplies & Services           ,Grants and Subscriptions      ,DJ01,Grants,736,540,6/21/2012,R,CHERUBS @ NEWMINSTER          
2012 - JUN,Childrens & Education Services,Pre-School Ed (inc Nursery),Nursery Grant payment-2 yr old          ,K05408,Supplies & Services           ,Grants and Subscriptions      ,DJ01,Grants,737,529,6/28/2012,R,BUMBLE BEES'S DAY NURSERY-COCC
2012 - JUN,Childrens & Education Services,Pre-School Ed (inc Nursery),Nursery Grant payment-2 yr old          ,K05408,Supplies & Services           ,Grants and Subscriptions      ,DJ01,Grants,738,"1,080.00",6/28/2012,R,BOW LANE PRE-SCHOOL           
2012 - JUN,Childrens & Education Services,Pre-School Ed (inc Nursery),Nursery Grant payment-2 yr old          ,K05408,Supplies & Services           ,Grants and Subscriptions      ,DJ01,Grants,739,"1,080.00",6/28/2012,R,BOW LANE PRE-SCHOOL           
2012 - JUN,Childrens & Education Services,Pre-School Ed (inc Nursery),Nursery Grant payment-2 yr old          ,K05408,Supplies & Services           ,Grants and Subscriptions      ,DJ54,Contributions,740,"22,000.00",6/18/2012,R,HAPPY FACES@CRANMER           
2012 - JUN,Childrens & Education Services,Pre-School Ed (inc Nursery),Lavender Children's Centre              ,K05410,Premises Related Expenditure  ,Cleaning and Domestic Supplies,BH03,Cleaning Services,741,564.2,5/18/2012,R,RE MCS CLEANING SERVICES LTD  
2012 - JUN,Childrens & Education Services,Pre-School Ed (inc Nursery),Lavender CC Non Childcare               ,K05415,Premises Related Expenditure  ,Cleaning and Domestic Supplies,BH03,Cleaning Services,742,564.2,5/18/2012,R,RE MCS CLEANING SERVICES LTD  
2012 - JUN,Childrens & Education Services,Pre-School Ed (inc Nursery),Lavender CC Non Childcare               ,K05415,Supplies & Services           ,Comms and Computing           ,DG05,Telephones - Gen-Creditors,743,"7,089.00",5/28/2012,R,SYNETRIX LIMITED              
2012 - JUN,Childrens & Education Services,Pre-School Ed (inc Nursery),E.Years-Intergenerational Cntr          ,K05416,Premises Related Expenditure  ,RepairsAlterations&MtceOfBldgs,BA06,Repairs & Maintenance General,744,"1,050.00",5/16/2012,R,SSD LIMITED                   
2012 - JUN,Childrens & Education Services,Pre-School Ed (inc Nursery),E.Years-Intergenerational Cntr          ,K05416,Premises Related Expenditure  ,RepairsAlterations&MtceOfBldgs,BA06,Repairs & Maintenance General,745,607.5,5/16/2012,R,SSD LIMITED                   
2012 - JUN,Childrens & Education Services,Pre-School Ed (inc Nursery),E.Years-Intergenerational Cntr          ,K05416,Premises Related Expenditure  ,Cleaning and Domestic Supplies,BH03,Cleaning Services,746,964.45,4/25/2012,R,JULIUS RUTHERFOORD & CO LTD   
2012 - JUN,Childrens & Education Services,Youth Service,Youth Service                           ,K06053,Employees                     ,Indirect Employee Expenses    ,AB57,External Training Costs,747,700,10/31/2010,R,UK YOUTH                      
2012 - JUN,Childrens & Education Services,Youth Service,Youth Service                           ,K06053,Employees                     ,Indirect Employee Expenses    ,AB57,External Training Costs,748,700,10/31/2010,R,UK YOUTH                      
2012 - JUN,Childrens & Education Services,Youth Service,Detached Projects                       ,K06066,Transport Related Expenditure ,Direct Transport Costs        ,CA04,R & M of Veh - General,749,850,5/10/2012,R,VEHICLE GRAPHICS LTD          
2012 - JUN,Childrens & Education Services,Youth Service,Youth Office Premises Cost              ,K06073,Premises Related Expenditure  ,RepairsAlterations&MtceOfBldgs,BA06,Repairs & Maintenance General,750,735,5/26/2012,R,REDACTED
2012 - JUN,Childrens & Education Services,Youth Service,PAYP Moving Forward in Life             ,K06092,Premises Related Expenditure  ,Rents                         ,BC01,Miscellaneous Rents,751,"6,000.00",6/8/2012,R,GOLDPLAZA (MITCHAM) LIMITED   
2012 - JUN,Childrens & Education Services,Youth Service,Youth Opps Fund (GF C G)                ,K06093,Supplies & Services           ,Grants and Subscriptions      ,DJ01,Grants,752,602,6/7/2012,R,FIRST CALL HOUSING            
2012 - JUN,Childrens & Education Services,Assuring Access To Schools,Careers Educ IAG Contracts              ,K06097,Third Party Payments          ,Private Contractors           ,EH01,Miscellaneous Agency Services,753,"2,599.00",6/11/2012,R,ROYAL BOR'GH KINGSTON U THAMES
2012 - JUN,Childrens & Education Services,Assuring Access To Schools,Careers Educ IAG Contracts              ,K06097,Third Party Payments          ,Private Contractors           ,EH01,Miscellaneous Agency Services,754,"38,073.00",6/11/2012,R,ROYAL BOR'GH KINGSTON U THAMES
2012 - JUN,Childrens & Education Services,Assuring Access To Schools,Children & Yth Participation            ,K06115,Supplies & Services           ,Expenses                      ,DH03,Hospitality,755,"2,156.25",5/21/2012,R,ANTOINETTE HOTEL              
2012 - JUN,Childrens & Education Services,Assuring Access To Schools,Centre Commissioned Servs               ,K08078,Supplies & Services           ,Grants and Subscriptions      ,DJ01,Grants,756,"12,125.00",5/5/2012,R,JIGSAW4U                      
2012 - JUN,Childrens & Education Services,Assuring Access To Schools,Centre Commissioned Servs               ,K08078,Supplies & Services           ,Grants and Subscriptions      ,DJ01,Grants,757,"4,000.00",5/16/2012,R,ENDEAVOUR CLUB                
2012 - JUN,Childrens & Education Services,Assuring Access To Schools,Centre Commissioned Servs               ,K08078,Supplies & Services           ,Grants and Subscriptions      ,DJ01,Grants,758,"27,053.00",4/18/2012,R,HOME-START MERTON             
2012 - JUN,Childrens & Education Services,Assuring Access To Schools,Centre Commissioned Servs               ,K08078,Supplies & Services           ,Grants and Subscriptions      ,DJ01,Grants,759,"5,000.00",4/12/2012,R,BROADWAY HOMELESS & SUPPORT   
2012 - JUN,Childrens & Education Services,Assuring Access To Schools,Centre Commissioned Servs               ,K08078,Supplies & Services           ,Grants and Subscriptions      ,DJ01,Grants,760,"4,500.00",5/10/2012,R,CARERS SUPPORT MERTON         
2012 - JUN,Childrens & Education Services,Assuring Access To Schools,Centre Commissioned Servs               ,K08078,Supplies & Services           ,Grants and Subscriptions      ,DJ01,Grants,761,"7,500.00",5/21/2012,R,MERTON VOLUNTARY SERV COUNCIL 
2012 - JUN,Childrens & Education Services,Assuring Access To Schools,Centre Commissioned Servs               ,K08078,Supplies & Services           ,Grants and Subscriptions      ,DJ01,Grants,762,"2,400.00",6/13/2012,R,HERCULES WIMBLEDON ATHELETICS 
2012 - JUN,Childrens & Education Services,Assuring Access To Schools,Centre Commissioned Servs               ,K08078,Supplies & Services           ,Grants and Subscriptions      ,DJ01,Grants,763,"3,750.00",5/31/2012,R,SOUTH LONDON REFUGEE ASSOC.   
2012 - JUN,Childrens & Education Services,Assuring Access To Schools,Centre Commissioned Servs               ,K08078,Supplies & Services           ,Grants and Subscriptions      ,DJ01,Grants,764,"23,089.75",6/12/2012,R,CARERS SUPPORT MERTON         
2012 - JUN,Childrens & Education Services,Facilitating Sch Improvement,SSQ                                     ,K09077,Supplies & Services           ,Services                      ,DF03,Consultants,765,"1,050.00",5/31/2012,R,REDACTED
2012 - JUN,Childrens & Education Services,Facilitating Sch Improvement,SSQ                                     ,K09077,Supplies & Services           ,Services                      ,DF03,Consultants,766,750,6/21/2012,R,REDACTED
2012 - JUN,Childrens & Education Services,Assuring Access To Schools,Stouthall                               ,K09082,Premises Related Expenditure  ,RepairsAlterations&MtceOfBldgs,BA06,Repairs & Maintenance General,767,"1,036.00",5/30/2012,R,AMBERWELL ENGINEERING SERVICES
2012 - JUN,Childrens & Education Services,Assuring Access To Schools,Stouthall                               ,K09082,Premises Related Expenditure  ,Rents                         ,BC01,Miscellaneous Rents,768,"4,125.00",6/6/2012,R,ROBERT MORGAN & SONS LTD      
2012 - JUN,Childrens & Education Services,Schools Strategic Management,Profess Develop Cntre                   ,K09084,Premises Related Expenditure  ,Energy Costs                  ,BB03,Gas (incl. Butane),769,698.58,5/24/2012,R,KENT COUNTY COUNCIL           
2012 - JUN,Childrens & Education Services,Schools Strategic Management,Profess Develop Cntre                   ,K09084,Premises Related Expenditure  ,Cleaning and Domestic Supplies,BH03,Cleaning Services,770,"2,854.20",4/25/2012,R,JULIUS RUTHERFOORD & CO LTD   
2012 - JUN,Childrens & Education Services,Schools Strategic Management,Profess Develop Cntre                   ,K09084,Premises Related Expenditure  ,Cleaning and Domestic Supplies,BH03,Cleaning Services,771,"2,645.92",5/25/2012,R,JULIUS RUTHERFOORD & CO LTD   
2012 - JUN,Childrens & Education Services,Assuring Access To Schools,Free School Meals                       ,K90002,Premises Related Expenditure  ,RepairsAlterations&MtceOfBldgs,BA01,DDM - General Building,772,"1,130.00",5/30/2012,R,DF20 LTD                      
2012 - JUN,Childrens & Education Services,Assuring Access To Schools,Free School Meals                       ,K90002,Premises Related Expenditure  ,RepairsAlterations&MtceOfBldgs,BA01,DDM - General Building,773,707.1,6/11/2012,R,CATERCRAFT SUPPLIES LTD       
2012 - JUN,Childrens & Education Services,Assuring Access To Schools,Free School Meals                       ,K90002,Supplies & Services           ,Equip Furniture/Materials     ,DA70,Milk and Meals,774,"9,247.20",5/23/2012,R,ISS COLLECTIONS LTD           
2012 - JUN,Childrens & Education Services,Assuring Access To Schools,Free School Meals                       ,K90002,Supplies & Services           ,Grants and Subscriptions      ,DJ80,Free School Meals,775,"180,832.80",5/23/2012,R,ISS COLLECTIONS LTD           
2012 - JUN,Childrens & Education Services,Supporting SEN,Alt Educn(Incl Yr 11 Project)           ,K90009,Supplies & Services           ,Services                      ,DF07,Bought in Teaching Services,776,"14,650.00",5/3/2012,R,IMMANUEL HOUSE-COMM TRAINING  
2012 - JUN,Childrens & Education Services,Supporting SEN,Alt Educn(Incl Yr 11 Project)           ,K90009,Supplies & Services           ,Services                      ,DF07,Bought in Teaching Services,777,943,5/16/2012,R,HA TUTORS LTD                 
2012 - JUN,Childrens & Education Services,Supporting SEN,Alt Educn(Incl Yr 11 Project)           ,K90009,Supplies & Services           ,Services                      ,DF07,Bought in Teaching Services,778,"2,000.00",5/11/2012,R,SUTTON & DISTRICT TRAINING LTD
2012 - JUN,Childrens & Education Services,Supporting SEN,Alt Educn(Incl Yr 11 Project)           ,K90009,Supplies & Services           ,Services                      ,DF07,Bought in Teaching Services,779,663.5,5/24/2012,R,HA TUTORS LTD                 
2012 - JUN,Childrens & Education Services,Supporting SEN,Alt Educn(Incl Yr 11 Project)           ,K90009,Supplies & Services           ,Services                      ,DF07,Bought in Teaching Services,780,"1,359.50",5/24/2012,R,HA TUTORS LTD                 
2012 - JUN,Childrens & Education Services,Supporting SEN,Alt Educn(Incl Yr 11 Project)           ,K90009,Supplies & Services           ,Services                      ,DF07,Bought in Teaching Services,781,"1,230.00",6/13/2012,R,HA TUTORS LTD                 
2012 - JUN,Childrens & Education Services,Supporting SEN,Alt Educn(Incl Yr 11 Project)           ,K90009,Supplies & Services           ,Services                      ,DF07,Bought in Teaching Services,782,"1,906.50",6/12/2012,R,HA TUTORS LTD                 
2012 - JUN,Childrens & Education Services,Supporting SEN,Alt Educn(Incl Yr 11 Project)           ,K90009,Supplies & Services           ,Services                      ,DF07,Bought in Teaching Services,783,"2,337.00",6/13/2012,R,HA TUTORS LTD                 
2012 - JUN,Childrens & Education Services,Supporting SEN,Alt Educn(Incl Yr 11 Project)           ,K90009,Supplies & Services           ,Services                      ,DF07,Bought in Teaching Services,784,"1,230.00",6/13/2012,R,HA TUTORS LTD                 
2012 - JUN,Childrens & Education Services,Supporting SEN,Alt Educn(Incl Yr 11 Project)           ,K90009,Supplies & Services           ,Services                      ,DF07,Bought in Teaching Services,785,984,6/12/2012,R,HA TUTORS LTD                 
2012 - JUN,Childrens & Education Services,Facilitating Sch Improvement,Refugees Education Service              ,K90012,Employees                     ,Indirect Employee Expenses    ,AB56,Internal Training Costs,786,700,5/24/2012,R,EDUCATION WORKS               
2012 - JUN,Childrens & Education Services,Supporting SEN,Smart Centre (Pupil Refer Unit          ,K90019,Employees                     ,Direct Employee Expenses      ,AA17,Agency Staff & Casual Paymts,787,"1,100.00",5/27/2012,R,TRADEWIND RECRUITMENT         
2012 - JUN,Childrens & Education Services,Supporting SEN,Smart Centre (Pupil Refer Unit          ,K90019,Employees                     ,Direct Employee Expenses      ,AA74,Public Duties (AP),788,"1,475.00",5/9/2012,R,EDUCATION PLUS                
2012 - JUN,Childrens & Education Services,Supporting SEN,Smart Centre (Pupil Refer Unit          ,K90019,Employees                     ,Direct Employee Expenses      ,AA74,Public Duties (AP),789,"1,400.00",5/16/2012,R,EDUCATION PLUS                
2012 - JUN,Childrens & Education Services,Supporting SEN,Smart Centre (Pupil Refer Unit          ,K90019,Employees                     ,Direct Employee Expenses      ,AA74,Public Duties (AP),790,"2,135.00",5/23/2012,R,EDUCATION PLUS                
2012 - JUN,Childrens & Education Services,Supporting SEN,Smart Centre (Pupil Refer Unit          ,K90019,Employees                     ,Direct Employee Expenses      ,AA74,Public Duties (AP),791,"1,649.00",5/30/2012,R,EDUCATION PLUS                
2012 - JUN,Childrens & Education Services,Supporting SEN,Smart Centre (Pupil Refer Unit          ,K90019,Premises Related Expenditure  ,RepairsAlterations&MtceOfBldgs,BA79,Security of Premises,792,518,5/8/2012,R,IMPULSE SECURITY SYSTEMS LTD  
2012 - JUN,Childrens & Education Services,Supporting SEN,Smart Centre (Pupil Refer Unit          ,K90019,Supplies & Services           ,Comms and Computing           ,DG09,Computer Purchases - Misc,793,"1,738.00",5/21/2012,R,TECHNOLOGY RENTALS            
2012 - JUN,Childrens & Education Services,Supporting SEN,Smart Centre (Pupil Refer Unit          ,K90019,Supplies & Services           ,Comms and Computing           ,DG50,Other IT Expenditure,794,"5,400.00",11/8/2011,R,GET A LONG IT SERVICES        
2012 - JUN,Childrens & Education Services,Supporting SEN,Smart Centre (Pupil Refer Unit          ,K90019,Third Party Payments          ,Other Local Authorities       ,EB51,OLA Payments - Special Units,795,"2,040.00",6/11/2012,R,COTELANDS PUPIL REFERRAL UNIT 
2012 - JUN,Childrens & Education Services,Supporting SEN,Smart Centre (Pupil Refer Unit          ,K90019,Third Party Payments          ,Other Local Authorities       ,EB55,Placements,796,"6,040.00",5/3/2012,R,IMMANUEL HOUSE-COMM TRAINING  
2012 - JUN,Childrens & Education Services,Supporting SEN,Smart Centre (Pupil Refer Unit          ,K90019,Third Party Payments          ,Other Local Authorities       ,EB55,Placements,797,"6,500.00",5/15/2012,R,S.I.L.C.TRAINING LTD          
2012 - JUN,Childrens & Education Services,Supporting SEN,Non-Delegated Statements                ,K90024,Employees                     ,Direct Employee Expenses      ,AA17,Agency Staff & Casual Paymts,798,712.5,5/27/2012,R,SENSATIONAL KIDS              
2012 - JUN,Childrens & Education Services,Supporting SEN,Non-Delegated Statements                ,K90024,Employees                     ,Direct Employee Expenses      ,AA17,Agency Staff & Casual Paymts,799,815,4/30/2012,R,REDACTED
2012 - JUN,Childrens & Education Services,Supporting SEN,Non-Delegated Statements                ,K90024,Employees                     ,Direct Employee Expenses      ,AA17,Agency Staff & Casual Paymts,800,530,5/17/2012,R,CHILDTALK SOLUTION LTD        
2012 - JUN,Childrens & Education Services,Supporting SEN,Non-Delegated Statements                ,K90024,Employees                     ,Direct Employee Expenses      ,AA17,Agency Staff & Casual Paymts,801,"2,200.00",6/1/2012,R,REDACTED
2012 - JUN,Childrens & Education Services,Supporting SEN,Non-Delegated Statements                ,K90024,Employees                     ,Direct Employee Expenses      ,AA17,Agency Staff & Casual Paymts,802,"1,650.00",5/29/2012,R,INTEGRATIA THERAPY SERVICES   
2012 - JUN,Childrens & Education Services,Supporting SEN,Non-Delegated Statements                ,K90024,Supplies & Services           ,Services                      ,DF09,Miscellaneous Fees,803,"4,520.00",5/17/2012,R,PERSEID SCHOOL                
2012 - JUN,Childrens & Education Services,Supporting SEN,Non-Delegated Statements                ,K90024,Supplies & Services           ,Services                      ,DF09,Miscellaneous Fees,804,"7,232.00",5/14/2012,R,PERSEID SCHOOL                
2012 - JUN,Childrens & Education Services,Supporting SEN,Non-Delegated Statements                ,K90024,Supplies & Services           ,Services                      ,DF09,Miscellaneous Fees,805,"5,094.00",5/17/2012,R,CLIFTON HILL SCHOOL           
2012 - JUN,Childrens & Education Services,Supporting SEN,Non-Delegated Statements                ,K90024,Supplies & Services           ,Services                      ,DF09,Miscellaneous Fees,806,"6,384.00",5/14/2012,R,PERSEID SCHOOL                
2012 - JUN,Childrens & Education Services,Supporting SEN,Non-Delegated Statements                ,K90024,Supplies & Services           ,Services                      ,DF11,Counsel's fees,807,"1,375.00",6/1/2012,R,REDACTED
2012 - JUN,Childrens & Education Services,Supporting SEN,Non-Delegated Statements                ,K90024,Third Party Payments          ,Other Local Authorities       ,EB55,Placements,808,"1,977.60",6/6/2012,R,THE GRANGE DAY NURSERY        
2012 - JUN,Childrens & Education Services,Supporting SEN,Non-Delegated Statements                ,K90024,Third Party Payments          ,Other Establishments          ,EG01,Alternative SEN Provision,809,"1,663.20",5/15/2012,R,FACE YOUTH                    
2012 - JUN,Childrens & Education Services,Supporting SEN,Non-Delegated Statements                ,K90024,Third Party Payments          ,Other Establishments          ,EG01,Alternative SEN Provision,810,"1,663.20",5/15/2012,R,FACE YOUTH                    
2012 - JUN,Childrens & Education Services,Supporting SEN,Non-Delegated Statements                ,K90024,Third Party Payments          ,Other Establishments          ,EG01,Alternative SEN Provision,811,516,5/28/2012,R,HA TUTORS LTD                 
2012 - JUN,Childrens & Education Services,Supporting SEN,Non-Delegated Statements                ,K90024,Third Party Payments          ,Other Establishments          ,EG01,Alternative SEN Provision,812,"9,600.00",6/12/2012,R,REDACTED
2012 - JUN,Childrens & Education Services,Supporting SEN,Non-Delegated Statements                ,K90024,Third Party Payments          ,Other Establishments          ,EG01,Alternative SEN Provision,813,"1,079.43",5/31/2012,R,PROSPECT EDUC (TECH)TRUST LTD 
2012 - JUN,Childrens & Education Services,Supporting SEN,Non-Delegated Statements                ,K90024,Third Party Payments          ,Other Establishments          ,EG01,Alternative SEN Provision,814,"2,240.90",6/6/2012,R,REDACTED
2012 - JUN,Childrens & Education Services,Supporting SEN,Non-Delegated Statements                ,K90024,Third Party Payments          ,Other Establishments          ,EG01,Alternative SEN Provision,815,"1,463.00",6/7/2012,R,HA TUTORS LTD                 
2012 - JUN,Childrens & Education Services,Supporting SEN,Non-Delegated Statements                ,K90024,Third Party Payments          ,Other Establishments          ,EG01,Alternative SEN Provision,816,"3,477.60",6/12/2012,R,FACE YOUTH                    
2012 - JUN,Childrens & Education Services,Supporting SEN,Non-Delegated Statements                ,K90024,Third Party Payments          ,Other Establishments          ,EG01,Alternative SEN Provision,817,"1,045.00",6/18/2012,R,HA TUTORS LTD                 
2012 - JUN,Childrens & Education Services,Supporting SEN,Non-Delegated Statements                ,K90024,Third Party Payments          ,Other Establishments          ,EG01,Alternative SEN Provision,818,508,6/14/2012,R,HA TUTORS LTD                 
2012 - JUN,Childrens & Education Services,Supporting SEN,Non-Delegated Statements                ,K90024,Third Party Payments          ,Other Establishments          ,EG01,Alternative SEN Provision,819,"7,571.38",4/10/2012,R,LONDON BOROUGH OF SUTTON      
